Organisation Code,Organisation Label,Effective Date,Organisational Unit,Service Division Label,Category Internal Name,Purpose,Detailed Expenditure Code,Payment Date,Transaction Number,Irrecoverable VAT Amount,Amount,Capital Or Revenue,Beneficiary Name,Procurement Card
Http://opendatacommunities.org/id/metropolitan-district-council/leeds,Leeds City Council,28/02/2021,Resources and Housing,Leeds Building Services,Supplies and Services,Operational Materials,205,19/02/2021,2102-00001 ,0,107.2,R,A & A ELECTRICAL DISTRIBUTORS LTD,No
Http://opendatacommunities.org/id/metropolitan-district-council/leeds,Leeds City Council,28/02/2021,Adults and Health,Services For Older People Under 65 P/Dis,Third Party Payments,Sheltered Accommodation,569,03/02/2021,2102-00002,0,5400,R,A & V TRANSITIONAL HOMES,No
Http://opendatacommunities.org/id/metropolitan-district-council/leeds,Leeds City Council,28/02/2021,Resources and Housing,HRA Housing Leeds,Capital,OTHER COSTS,7,25/02/2021,2102-00003,0,170.09,C,REDACTED PERSONAL DATA,No
Http://opendatacommunities.org/id/metropolitan-district-council/leeds,Leeds City Council,28/02/2021,Resources and Housing,Leeds Building Services,Supplies and Services,Operational Materials,205,09/02/2021,2102-00004,0,55.49,R,A ANDREWS & SONS (MARBLES & TILES),No
Http://opendatacommunities.org/id/metropolitan-district-council/leeds,Leeds City Council,28/02/2021,Resources and Housing,Leeds Building Services,Supplies and Services,Operational Materials,205,26/02/2021,2102-00005,0,12.48,R,A ANDREWS & SONS (MARBLES & TILES),No
Http://opendatacommunities.org/id/metropolitan-district-council/leeds,Leeds City Council,28/02/2021,Children and Families,Social Care,Third Party Payments,Services Rendered By Other Organisations,511,05/02/2021,2102-00006,0,262.8,R,REDACTED PERSONAL DATA,No
Http://opendatacommunities.org/id/metropolitan-district-council/leeds,Leeds City Council,28/02/2021,Resources and Housing,HRA Housing Leeds,Capital,OTHER COSTS,7,22/02/2021,2102-00007,0,60,C,REDACTED PERSONAL DATA,No
Http://opendatacommunities.org/id/metropolitan-district-council/leeds,Leeds City Council,28/02/2021,Resources and Housing,Leeds Building Services,Supplies and Services,Other Hired And Contracted Services,265,25/02/2021,2102-00008,0,25681,R,A Buckler (Haulage) Ltd,No
Http://opendatacommunities.org/id/metropolitan-district-council/leeds,Leeds City Council,28/02/2021,City Development,Highways,Capital,OTHER COSTS,7,10/02/2021,2102-00009,0,1500,C,REDACTED PERSONAL DATA,No
Http://opendatacommunities.org/id/metropolitan-district-council/leeds,Leeds City Council,28/02/2021,Communities and Environment,Benefits Wlefare and Poverty,Supplies and Services,Grant Related Expenditure,298,16/02/2021,2102-00010,0,500,R,REDACTED PERSONAL DATA,No
Http://opendatacommunities.org/id/metropolitan-district-council/leeds,Leeds City Council,28/02/2021,Children and Families,Social Care,Third Party Payments,Services Rendered By Other Organisations,511,05/02/2021,2102-00011,0,528.52,R,REDACTED PERSONAL DATA,No
Http://opendatacommunities.org/id/metropolitan-district-council/leeds,Leeds City Council,28/02/2021,Resources and Housing,Leeds Building Services,Supplies and Services,Other Hired And Contracted Services,265,05/02/2021,2102-00012,0,2483,R,A Coole Electrical Ltd,No
Http://opendatacommunities.org/id/metropolitan-district-council/leeds,Leeds City Council,28/02/2021,Resources and Housing,Leeds Building Services,Supplies and Services,Other Hired And Contracted Services,265,05/02/2021,2102-00013,0,2303,R,A Coole Electrical Ltd,No
Http://opendatacommunities.org/id/metropolitan-district-council/leeds,Leeds City Council,28/02/2021,Resources and Housing,Leeds Building Services,Supplies and Services,Other Hired And Contracted Services,265,05/02/2021,2102-00014,0,2303,R,A Coole Electrical Ltd,No
Http://opendatacommunities.org/id/metropolitan-district-council/leeds,Leeds City Council,28/02/2021,Resources and Housing,Leeds Building Services,Supplies and Services,Other Hired And Contracted Services,265,05/02/2021,2102-00015,0,2393,R,A Coole Electrical Ltd,No
Http://opendatacommunities.org/id/metropolitan-district-council/leeds,Leeds City Council,28/02/2021,Resources and Housing,Leeds Building Services,Supplies and Services,Other Hired And Contracted Services,265,23/02/2021,2102-00016,0,95,R,A Coole Electrical Ltd,No
Http://opendatacommunities.org/id/metropolitan-district-council/leeds,Leeds City Council,28/02/2021,Resources and Housing,Leeds Building Services,Supplies and Services,Other Hired And Contracted Services,265,25/02/2021,2102-00017,0,85,R,A Coole Electrical Ltd,No
Http://opendatacommunities.org/id/metropolitan-district-council/leeds,Leeds City Council,28/02/2021,Resources and Housing,Leeds Building Services,Supplies and Services,Other Hired And Contracted Services,265,25/02/2021,2102-00018,0,160,R,A Coole Electrical Ltd,No
Http://opendatacommunities.org/id/metropolitan-district-council/leeds,Leeds City Council,28/02/2021,Communities and Environment,Customer Access,Supplies and Services,Bought In Professional Services,277,10/02/2021,2102-00019,0,18,R,A D Dumitru,No
Http://opendatacommunities.org/id/metropolitan-district-council/leeds,Leeds City Council,28/02/2021,Communities and Environment,Customer Access,Supplies and Services,Bought In Professional Services,277,10/02/2021,2102-00020,0,9,R,A D Dumitru,No
Http://opendatacommunities.org/id/metropolitan-district-council/leeds,Leeds City Council,28/02/2021,Communities and Environment,Customer Access,Supplies and Services,Bought In Professional Services,277,10/02/2021,2102-00021,0,9,R,A D Dumitru,No
Http://opendatacommunities.org/id/metropolitan-district-council/leeds,Leeds City Council,28/02/2021,Communities and Environment,Communities,Supplies and Services,Other Hired And Contracted Services,265,18/02/2021,2102-00022,0,90,R,A D Dumitru,No
Http://opendatacommunities.org/id/metropolitan-district-council/leeds,Leeds City Council,28/02/2021,Communities and Environment,Customer Access,Supplies and Services,Bought In Professional Services,277,24/02/2021,2102-00023,0,18,R,A D Dumitru,No
Http://opendatacommunities.org/id/metropolitan-district-council/leeds,Leeds City Council,28/02/2021,Communities and Environment,Customer Access,Supplies and Services,Bought In Professional Services,277,24/02/2021,2102-00024,0,18,R,A D Dumitru,No
Http://opendatacommunities.org/id/metropolitan-district-council/leeds,Leeds City Council,28/02/2021,Children and Families,Social Care,Third Party Payments,Services Rendered By Voluntary Sector,505,03/02/2021,2102-00025,0,1900.8,R,REDACTED PERSONAL DATA,No
Http://opendatacommunities.org/id/metropolitan-district-council/leeds,Leeds City Council,28/02/2021,Children and Families,Social Care,Third Party Payments,Services Rendered By Voluntary Sector,505,05/02/2021,2102-00026,0,7621.2,R,REDACTED PERSONAL DATA,No
Http://opendatacommunities.org/id/metropolitan-district-council/leeds,Leeds City Council,28/02/2021,Children and Families,Social Care,Support Services,Legal Disbursements,411,25/02/2021,2102-00027,0,388.8,R,A F F Ghaly,No
Http://opendatacommunities.org/id/metropolitan-district-council/leeds,Leeds City Council,28/02/2021,Children and Families,Social Care,Third Party Payments,Services Rendered By Other Organisations,511,03/02/2021,2102-00028,0,633.6,R,REDACTED PERSONAL DATA,No
Http://opendatacommunities.org/id/metropolitan-district-council/leeds,Leeds City Council,28/02/2021,Children and Families,Social Care,Third Party Payments,Services Rendered By Other Organisations,511,05/02/2021,2102-00029,0,367.92,R,REDACTED PERSONAL DATA,No
Http://opendatacommunities.org/id/metropolitan-district-council/leeds,Leeds City Council,28/02/2021,Children and Families,Social Care,Third Party Payments,Services Rendered By Other Organisations,511,03/02/2021,2102-00030,0,316.8,R,REDACTED PERSONAL DATA,No
Http://opendatacommunities.org/id/metropolitan-district-council/leeds,Leeds City Council,28/02/2021,Children and Families,Social Care,Third Party Payments,Services Rendered By Other Organisations,511,05/02/2021,2102-00031,0,262.8,R,REDACTED PERSONAL DATA,No
Http://opendatacommunities.org/id/metropolitan-district-council/leeds,Leeds City Council,28/02/2021,Children and Families,Social Care,Third Party Payments,Services Rendered By Other Organisations,511,05/02/2021,2102-00032,0,525.6,R,REDACTED PERSONAL DATA,No
Http://opendatacommunities.org/id/metropolitan-district-council/leeds,Leeds City Council,28/02/2021,Children and Families,Social Care,Third Party Payments,Services Rendered By Other Organisations,511,03/02/2021,2102-00033,0,633.6,R,REDACTED PERSONAL DATA,No
Http://opendatacommunities.org/id/metropolitan-district-council/leeds,Leeds City Council,28/02/2021,Children and Families,Social Care,Third Party Payments,Services Rendered By Other Organisations,511,05/02/2021,2102-00034,0,578.16,R,REDACTED PERSONAL DATA,No
Http://opendatacommunities.org/id/metropolitan-district-council/leeds,Leeds City Council,28/02/2021,Adults and Health,Other Generic Services,Third Party Payments,Fees To Carers,563,05/02/2021,2102-00035,0,80.3,R,REDACTED PERSONAL DATA,No
Http://opendatacommunities.org/id/metropolitan-district-council/leeds,Leeds City Council,28/02/2021,Adults and Health,Other Generic Services,Third Party Payments,Fees To Carers,563,16/02/2021,2102-00036,0,440.64,R,REDACTED PERSONAL DATA,No
Http://opendatacommunities.org/id/metropolitan-district-council/leeds,Leeds City Council,28/02/2021,Adults and Health,Other Generic Services,Third Party Payments,Fees To Carers,563,16/02/2021,2102-00037,0,50.4,R,REDACTED PERSONAL DATA,No
Http://opendatacommunities.org/id/metropolitan-district-council/leeds,Leeds City Council,28/02/2021,Resources and Housing,Leeds Building Services,Supplies and Services,Operational Materials,205,15/02/2021,2102-00038,0,76.25,R,A J H  Pump Supply & Repair Ltd,No
Http://opendatacommunities.org/id/metropolitan-district-council/leeds,Leeds City Council,28/02/2021,Resources and Housing,Leeds Building Services,Supplies and Services,Operational Materials,205,15/02/2021,2102-00039,0,511,R,A J H  Pump Supply & Repair Ltd,No
Http://opendatacommunities.org/id/metropolitan-district-council/leeds,Leeds City Council,28/02/2021,Resources and Housing,Leeds Building Services,Supplies and Services,Operational Materials,205,15/02/2021,2102-00040,0,592,R,A J H  Pump Supply & Repair Ltd,No
Http://opendatacommunities.org/id/metropolitan-district-council/leeds,Leeds City Council,28/02/2021,Resources and Housing,Leeds Building Services,Supplies and Services,Operational Materials,205,15/02/2021,2102-00041,0,2540,R,A J H  Pump Supply & Repair Ltd,No
Http://opendatacommunities.org/id/metropolitan-district-council/leeds,Leeds City Council,28/02/2021,Resources and Housing,Leeds Building Services,Supplies and Services,Operational Materials,205,15/02/2021,2102-00042,0,48,R,A J H  Pump Supply & Repair Ltd,No
Http://opendatacommunities.org/id/metropolitan-district-council/leeds,Leeds City Council,28/02/2021,Resources and Housing,Leeds Building Services,Supplies and Services,Operational Materials,205,18/02/2021,2102-00043,0,29,R,A J H  Pump Supply & Repair Ltd,No
Http://opendatacommunities.org/id/metropolitan-district-council/leeds,Leeds City Council,28/02/2021,Resources and Housing,Leeds Building Services,Supplies and Services,Operational Materials,205,18/02/2021,2102-00044,0,291,R,A J H  Pump Supply & Repair Ltd,No
Http://opendatacommunities.org/id/metropolitan-district-council/leeds,Leeds City Council,28/02/2021,Resources and Housing,Leeds Building Services,Supplies and Services,Operational Materials,205,18/02/2021,2102-00045,0,75,R,A J H  Pump Supply & Repair Ltd,No
Http://opendatacommunities.org/id/metropolitan-district-council/leeds,Leeds City Council,28/02/2021,Resources and Housing,Leeds Building Services,Supplies and Services,Operational Furniture And Equipment,203,18/02/2021,2102-00046,0,75.75,R,A J H  Pump Supply & Repair Ltd,No
Http://opendatacommunities.org/id/metropolitan-district-council/leeds,Leeds City Council,28/02/2021,Resources and Housing,Leeds Building Services,Supplies and Services,Operational Materials,205,18/02/2021,2102-00047,0,35,R,A J H  Pump Supply & Repair Ltd,No
Http://opendatacommunities.org/id/metropolitan-district-council/leeds,Leeds City Council,28/02/2021,Resources and Housing,Leeds Building Services,Supplies and Services,Operational Materials,205,18/02/2021,2102-00048,0,7.9,R,A J H  Pump Supply & Repair Ltd,No
Http://opendatacommunities.org/id/metropolitan-district-council/leeds,Leeds City Council,28/02/2021,Resources and Housing,Leeds Building Services,Supplies and Services,Operational Materials,205,18/02/2021,2102-00049,0,294,R,A J H  Pump Supply & Repair Ltd,No
Http://opendatacommunities.org/id/metropolitan-district-council/leeds,Leeds City Council,28/02/2021,Resources and Housing,Leeds Building Services,Supplies and Services,Operational Materials,205,18/02/2021,2102-00050,0,595,R,A J H  Pump Supply & Repair Ltd,No
Http://opendatacommunities.org/id/metropolitan-district-council/leeds,Leeds City Council,28/02/2021,Resources and Housing,Leeds Building Services,Supplies and Services,Operational Materials,205,18/02/2021,2102-00051,0,172.4,R,A J H  Pump Supply & Repair Ltd,No
Http://opendatacommunities.org/id/metropolitan-district-council/leeds,Leeds City Council,28/02/2021,Resources and Housing,Leeds Building Services,Supplies and Services,Operational Materials,205,19/02/2021,2102-00052,0,253.95,R,A J H  Pump Supply & Repair Ltd,No
Http://opendatacommunities.org/id/metropolitan-district-council/leeds,Leeds City Council,28/02/2021,Resources and Housing,Leeds Building Services,Supplies and Services,Operational Materials,205,19/02/2021,2102-00053,0,138.41,R,A J H  Pump Supply & Repair Ltd,No
Http://opendatacommunities.org/id/metropolitan-district-council/leeds,Leeds City Council,28/02/2021,Resources and Housing,Leeds Building Services,Supplies and Services,Operational Materials,205,19/02/2021,2102-00054,0,595,R,A J H  Pump Supply & Repair Ltd,No
Http://opendatacommunities.org/id/metropolitan-district-council/leeds,Leeds City Council,28/02/2021,Resources and Housing,Leeds Building Services,Supplies and Services,Operational Materials,205,19/02/2021,2102-00055,0,2466.05,R,A J H  Pump Supply & Repair Ltd,No
Http://opendatacommunities.org/id/metropolitan-district-council/leeds,Leeds City Council,28/02/2021,Resources and Housing,Leeds Building Services,Supplies and Services,Operational Materials,205,19/02/2021,2102-00056,0,70,R,A J H  Pump Supply & Repair Ltd,No
Http://opendatacommunities.org/id/metropolitan-district-council/leeds,Leeds City Council,28/02/2021,Resources and Housing,Leeds Building Services,Supplies and Services,Operational Materials,205,19/02/2021,2102-00057,0,9.95,R,A J H  Pump Supply & Repair Ltd,No
Http://opendatacommunities.org/id/metropolitan-district-council/leeds,Leeds City Council,28/02/2021,Resources and Housing,Leeds Building Services,Supplies and Services,Operational Materials,205,19/02/2021,2102-00058,0,274,R,A J H  Pump Supply & Repair Ltd,No
Http://opendatacommunities.org/id/metropolitan-district-council/leeds,Leeds City Council,28/02/2021,Resources and Housing,Leeds Building Services,Supplies and Services,Operational Materials,205,19/02/2021,2102-00059,0,22.79,R,A J H  Pump Supply & Repair Ltd,No
Http://opendatacommunities.org/id/metropolitan-district-council/leeds,Leeds City Council,28/02/2021,Resources and Housing,Leeds Building Services,Supplies and Services,Operational Materials,205,19/02/2021,2102-00060,0,68,R,A J H  Pump Supply & Repair Ltd,No
Http://opendatacommunities.org/id/metropolitan-district-council/leeds,Leeds City Council,28/02/2021,Resources and Housing,Leeds Building Services,Supplies and Services,Operational Materials,205,19/02/2021,2102-00061,0,916,R,A J H  Pump Supply & Repair Ltd,No
Http://opendatacommunities.org/id/metropolitan-district-council/leeds,Leeds City Council,28/02/2021,Resources and Housing,Leeds Building Services,Supplies and Services,Operational Materials,205,19/02/2021,2102-00062,0,1244,R,A J H  Pump Supply & Repair Ltd,No
Http://opendatacommunities.org/id/metropolitan-district-council/leeds,Leeds City Council,28/02/2021,Resources and Housing,Leeds Building Services,Supplies and Services,Operational Materials,205,19/02/2021,2102-00063,0,496,R,A J H  Pump Supply & Repair Ltd,No
Http://opendatacommunities.org/id/metropolitan-district-council/leeds,Leeds City Council,28/02/2021,Resources and Housing,Leeds Building Services,Supplies and Services,Operational Materials,205,25/02/2021,2102-00064,0,118.44,R,A J H  Pump Supply & Repair Ltd,No
Http://opendatacommunities.org/id/metropolitan-district-council/leeds,Leeds City Council,28/02/2021,Resources and Housing,Leeds Building Services,Supplies and Services,Operational Materials,205,25/02/2021,2102-00065,0,38.79,R,A J H  Pump Supply & Repair Ltd,No
Http://opendatacommunities.org/id/metropolitan-district-council/leeds,Leeds City Council,28/02/2021,Resources and Housing,Leeds Building Services,Supplies and Services,Operational Materials,205,25/02/2021,2102-00066,0,25.07,R,A J H  Pump Supply & Repair Ltd,No
Http://opendatacommunities.org/id/metropolitan-district-council/leeds,Leeds City Council,28/02/2021,Resources and Housing,Leeds Building Services,Supplies and Services,Operational Materials,205,25/02/2021,2102-00067,0,96.88,R,A J H  Pump Supply & Repair Ltd,No
Http://opendatacommunities.org/id/metropolitan-district-council/leeds,Leeds City Council,28/02/2021,Resources and Housing,Leeds Building Services,Supplies and Services,Operational Materials,205,25/02/2021,2102-00068,0,42.92,R,A J H  Pump Supply & Repair Ltd,No
Http://opendatacommunities.org/id/metropolitan-district-council/leeds,Leeds City Council,28/02/2021,Resources and Housing,Leeds Building Services,Supplies and Services,Operational Materials,205,25/02/2021,2102-00069,0,68.23,R,A J H  Pump Supply & Repair Ltd,No
Http://opendatacommunities.org/id/metropolitan-district-council/leeds,Leeds City Council,28/02/2021,Resources and Housing,Leeds Building Services,Supplies and Services,Operational Materials,205,25/02/2021,2102-00070,0,395,R,A J H  Pump Supply & Repair Ltd,No
Http://opendatacommunities.org/id/metropolitan-district-council/leeds,Leeds City Council,28/02/2021,Resources and Housing,Leeds Building Services,Supplies and Services,Operational Materials,205,25/02/2021,2102-00071,0,176.23,R,A J H  Pump Supply & Repair Ltd,No
Http://opendatacommunities.org/id/metropolitan-district-council/leeds,Leeds City Council,28/02/2021,Resources and Housing,Leeds Building Services,Supplies and Services,Operational Materials,205,25/02/2021,2102-00072,0,226.4,R,A J H  Pump Supply & Repair Ltd,No
Http://opendatacommunities.org/id/metropolitan-district-council/leeds,Leeds City Council,28/02/2021,Resources and Housing,Leeds Building Services,Supplies and Services,Operational Materials,205,25/02/2021,2102-00073,0,107.08,R,A J H  Pump Supply & Repair Ltd,No
Http://opendatacommunities.org/id/metropolitan-district-council/leeds,Leeds City Council,28/02/2021,Resources and Housing,Leeds Building Services,Supplies and Services,Operational Materials,205,25/02/2021,2102-00074,0,32.05,R,A J H  Pump Supply & Repair Ltd,No
Http://opendatacommunities.org/id/metropolitan-district-council/leeds,Leeds City Council,28/02/2021,Resources and Housing,Leeds Building Services,Supplies and Services,Operational Materials,205,25/02/2021,2102-00075,0,163.68,R,A J H  Pump Supply & Repair Ltd,No
Http://opendatacommunities.org/id/metropolitan-district-council/leeds,Leeds City Council,28/02/2021,Resources and Housing,Leeds Building Services,Supplies and Services,Operational Materials,205,25/02/2021,2102-00076,0,238.75,R,A J H  Pump Supply & Repair Ltd,No
Http://opendatacommunities.org/id/metropolitan-district-council/leeds,Leeds City Council,28/02/2021,Resources and Housing,Leeds Building Services,Supplies and Services,Operational Materials,205,25/02/2021,2102-00077,0,48.94,R,A J H  Pump Supply & Repair Ltd,No
Http://opendatacommunities.org/id/metropolitan-district-council/leeds,Leeds City Council,28/02/2021,Resources and Housing,Leeds Building Services,Supplies and Services,Operational Materials,205,25/02/2021,2102-00078,0,228.35,R,A J H  Pump Supply & Repair Ltd,No
Http://opendatacommunities.org/id/metropolitan-district-council/leeds,Leeds City Council,28/02/2021,Resources and Housing,Leeds Building Services,Supplies and Services,Operational Materials,205,25/02/2021,2102-00079,0,422.1,R,A J H  Pump Supply & Repair Ltd,No
Http://opendatacommunities.org/id/metropolitan-district-council/leeds,Leeds City Council,28/02/2021,Resources and Housing,Leeds Building Services,Supplies and Services,Operational Materials,205,25/02/2021,2102-00080,0,475,R,A J H  Pump Supply & Repair Ltd,No
Http://opendatacommunities.org/id/metropolitan-district-council/leeds,Leeds City Council,28/02/2021,Resources and Housing,Leeds Building Services,Supplies and Services,Operational Materials,205,25/02/2021,2102-00081,0,69.99,R,A J H  Pump Supply & Repair Ltd,No
Http://opendatacommunities.org/id/metropolitan-district-council/leeds,Leeds City Council,28/02/2021,Resources and Housing,Leeds Building Services,Supplies and Services,Operational Materials,205,25/02/2021,2102-00082,0,98.87,R,A J H  Pump Supply & Repair Ltd,No
Http://opendatacommunities.org/id/metropolitan-district-council/leeds,Leeds City Council,28/02/2021,Resources and Housing,Leeds Building Services,Supplies and Services,Operational Materials,205,25/02/2021,2102-00083,0,18.9,R,A J H  Pump Supply & Repair Ltd,No
Http://opendatacommunities.org/id/metropolitan-district-council/leeds,Leeds City Council,28/02/2021,Resources and Housing,Leeds Building Services,Supplies and Services,Operational Materials,205,25/02/2021,2102-00084,0,219.85,R,A J H  Pump Supply & Repair Ltd,No
Http://opendatacommunities.org/id/metropolitan-district-council/leeds,Leeds City Council,28/02/2021,Resources and Housing,Leeds Building Services,Supplies and Services,Operational Materials,205,25/02/2021,2102-00085,0,201.95,R,A J H  Pump Supply & Repair Ltd,No
Http://opendatacommunities.org/id/metropolitan-district-council/leeds,Leeds City Council,28/02/2021,Resources and Housing,Leeds Building Services,Supplies and Services,Operational Materials,205,25/02/2021,2102-00086,0,255.46,R,A J H  Pump Supply & Repair Ltd,No
Http://opendatacommunities.org/id/metropolitan-district-council/leeds,Leeds City Council,28/02/2021,Resources and Housing,Leeds Building Services,Supplies and Services,Operational Materials,205,25/02/2021,2102-00087,0,51,R,A J H  Pump Supply & Repair Ltd,No
Http://opendatacommunities.org/id/metropolitan-district-council/leeds,Leeds City Council,28/02/2021,Children and Families,Social Care,Third Party Payments,Services Rendered By Other Organisations,511,03/02/2021,2102-00088,0,316.8,R,REDACTED PERSONAL DATA,No
Http://opendatacommunities.org/id/metropolitan-district-council/leeds,Leeds City Council,28/02/2021,Children and Families,Social Care,Third Party Payments,Services Rendered By Other Organisations,511,05/02/2021,2102-00089,0,2102.4,R,REDACTED PERSONAL DATA,No
Http://opendatacommunities.org/id/metropolitan-district-council/leeds,Leeds City Council,28/02/2021,Children and Families,Social Care,Third Party Payments,Placement Support,550,05/02/2021,2102-00090,0,50,R,A Lowrie Care Service Limited,No
Http://opendatacommunities.org/id/metropolitan-district-council/leeds,Leeds City Council,28/02/2021,Communities and Environment,Customer Access,Supplies and Services,Bought In Professional Services,277,03/02/2021,2102-00091,0,13.5,R,A MOHAMMED,No
Http://opendatacommunities.org/id/metropolitan-district-council/leeds,Leeds City Council,28/02/2021,Communities and Environment,Customer Access,Supplies and Services,Bought In Professional Services,277,03/02/2021,2102-00092,0,18,R,A MOHAMMED,No
Http://opendatacommunities.org/id/metropolitan-district-council/leeds,Leeds City Council,28/02/2021,Communities and Environment,Customer Access,Supplies and Services,Bought In Professional Services,277,03/02/2021,2102-00093,0,18,R,A MOHAMMED,No
Http://opendatacommunities.org/id/metropolitan-district-council/leeds,Leeds City Council,28/02/2021,Communities and Environment,Customer Access,Supplies and Services,Bought In Professional Services,277,10/02/2021,2102-00094,0,22.5,R,A MOHAMMED,No
Http://opendatacommunities.org/id/metropolitan-district-council/leeds,Leeds City Council,28/02/2021,Communities and Environment,Customer Access,Supplies and Services,Bought In Professional Services,277,10/02/2021,2102-00095,0,18,R,A MOHAMMED,No
Http://opendatacommunities.org/id/metropolitan-district-council/leeds,Leeds City Council,28/02/2021,Communities and Environment,Customer Access,Supplies and Services,Bought In Professional Services,277,10/02/2021,2102-00096,0,9,R,A MOHAMMED,No
Http://opendatacommunities.org/id/metropolitan-district-council/leeds,Leeds City Council,28/02/2021,Communities and Environment,Customer Access,Supplies and Services,Bought In Professional Services,277,19/02/2021,2102-00097,0,27,R,A MOHAMMED,No
Http://opendatacommunities.org/id/metropolitan-district-council/leeds,Leeds City Council,28/02/2021,Communities and Environment,Customer Access,Supplies and Services,Bought In Professional Services,277,19/02/2021,2102-00098,0,22.5,R,A MOHAMMED,No
Http://opendatacommunities.org/id/metropolitan-district-council/leeds,Leeds City Council,28/02/2021,Communities and Environment,Customer Access,Supplies and Services,Bought In Professional Services,277,19/02/2021,2102-00099,0,18,R,A MOHAMMED,No
Http://opendatacommunities.org/id/metropolitan-district-council/leeds,Leeds City Council,28/02/2021,Communities and Environment,Customer Access,Supplies and Services,Bought In Professional Services,277,19/02/2021,2102-00100,0,22.5,R,A MOHAMMED,No
Http://opendatacommunities.org/id/metropolitan-district-council/leeds,Leeds City Council,28/02/2021,Communities and Environment,Customer Access,Supplies and Services,Bought In Professional Services,277,19/02/2021,2102-00101,0,18,R,A MOHAMMED,No
Http://opendatacommunities.org/id/metropolitan-district-council/leeds,Leeds City Council,28/02/2021,Communities and Environment,Customer Access,Supplies and Services,Bought In Professional Services,277,24/02/2021,2102-00102,0,22.5,R,A MOHAMMED,No
Http://opendatacommunities.org/id/metropolitan-district-council/leeds,Leeds City Council,28/02/2021,Communities and Environment,Customer Access,Supplies and Services,Bought In Professional Services,277,24/02/2021,2102-00103,0,22.5,R,A MOHAMMED,No
Http://opendatacommunities.org/id/metropolitan-district-council/leeds,Leeds City Council,28/02/2021,Communities and Environment,Customer Access,Supplies and Services,Bought In Professional Services,277,24/02/2021,2102-00104,0,22.5,R,A MOHAMMED,No
Http://opendatacommunities.org/id/metropolitan-district-council/leeds,Leeds City Council,28/02/2021,Children and Families,Social Care,Third Party Payments,Services Rendered By Other Organisations,511,03/02/2021,2102-00105,0,2217.6,R,REDACTED PERSONAL DATA,No
Http://opendatacommunities.org/id/metropolitan-district-council/leeds,Leeds City Council,28/02/2021,Children and Families,Social Care,Third Party Payments,Services Rendered By Other Organisations,511,05/02/2021,2102-00106,0,1314,R,REDACTED PERSONAL DATA,No
Http://opendatacommunities.org/id/metropolitan-district-council/leeds,Leeds City Council,28/02/2021,Resources and Housing,HRA Housing Leeds,Capital,OTHER COSTS,7,18/02/2021,2102-00107,0,100,C,REDACTED PERSONAL DATA,No
Http://opendatacommunities.org/id/metropolitan-district-council/leeds,Leeds City Council,28/02/2021,Communities and Environment,Customer Access,Supplies and Services,Bought In Professional Services,277,10/02/2021,2102-00108,0,18,R,A NAMAKI,No
Http://opendatacommunities.org/id/metropolitan-district-council/leeds,Leeds City Council,28/02/2021,Communities and Environment,Customer Access,Supplies and Services,Bought In Professional Services,277,10/02/2021,2102-00109,0,9,R,A NAMAKI,No
Http://opendatacommunities.org/id/metropolitan-district-council/leeds,Leeds City Council,28/02/2021,Communities and Environment,Customer Access,Supplies and Services,Bought In Professional Services,277,10/02/2021,2102-00110,0,9,R,A NAMAKI,No
Http://opendatacommunities.org/id/metropolitan-district-council/leeds,Leeds City Council,28/02/2021,Children and Families,Social Care,Third Party Payments,Services Rendered By Other Organisations,511,05/02/2021,2102-00111,0,262.8,R,REDACTED PERSONAL DATA,No
Http://opendatacommunities.org/id/metropolitan-district-council/leeds,Leeds City Council,28/02/2021,Communities and Environment,Benefits Wlefare and Poverty,Supplies and Services,Grant Related Expenditure,290,15/02/2021,2102-00112,0,500,R,REDACTED PERSONAL DATA,No
Http://opendatacommunities.org/id/metropolitan-district-council/leeds,Leeds City Council,28/02/2021,Children and Families,Social Care,Third Party Payments,Services Rendered By Other Organisations,511,05/02/2021,2102-00113,0,788.4,R,REDACTED PERSONAL DATA,No
Http://opendatacommunities.org/id/metropolitan-district-council/leeds,Leeds City Council,28/02/2021,Children and Families,Social Care,Third Party Payments,Services Rendered By Other Organisations,511,03/02/2021,2102-00114,0,316.8,R,REDACTED PERSONAL DATA,No
Http://opendatacommunities.org/id/metropolitan-district-council/leeds,Leeds City Council,28/02/2021,Children and Families,Social Care,Third Party Payments,Services Rendered By Other Organisations,511,05/02/2021,2102-00115,0,525.6,R,REDACTED PERSONAL DATA,No
Http://opendatacommunities.org/id/metropolitan-district-council/leeds,Leeds City Council,28/02/2021,Children and Families,Social Care,Third Party Payments,General External Residential Placements,507,05/02/2021,2102-00116,0,382.5,R,A Wilderness Way Ltd,No
Http://opendatacommunities.org/id/metropolitan-district-council/leeds,Leeds City Council,28/02/2021,Children and Families,Social Care,Third Party Payments,General External Residential Placements,507,05/02/2021,2102-00117,0,33595.01,R,A Wilderness Way Ltd,No
Http://opendatacommunities.org/id/metropolitan-district-council/leeds,Leeds City Council,28/02/2021,Children and Families,Social Care,Third Party Payments,General External Residential Placements,507,05/02/2021,2102-00118,0,33595.01,R,A Wilderness Way Ltd,No
Http://opendatacommunities.org/id/metropolitan-district-council/leeds,Leeds City Council,28/02/2021,Children and Families,Social Care,Third Party Payments,General External Residential Placements,507,05/02/2021,2102-00119,0,2660,R,A Wilderness Way Ltd,No
Http://opendatacommunities.org/id/metropolitan-district-council/leeds,Leeds City Council,28/02/2021,Communities and Environment,Waste Management,Capital,FURNITURE AND EQUIPMENT,5,12/02/2021,2102-00120,0,11925,C,A&C Weber Uk Ltd,No
Http://opendatacommunities.org/id/metropolitan-district-council/leeds,Leeds City Council,28/02/2021,Resources and Housing,Commercial Services  ,Supplies and Services,Operational Furniture And Equipment,203,15/01/2021,2102-00121,0,795,R,A1 Pressure Washers Ltd,Yes
Http://opendatacommunities.org/id/metropolitan-district-council/leeds,Leeds City Council,28/02/2021,City Development,Libraries Arts & Heritage,Supplies and Services,Contributions To Extended Facilities,271,08/02/2021,2102-00122,0,200,R,AARDVARK ART SERVICES LTD,No
Http://opendatacommunities.org/id/metropolitan-district-council/leeds,Leeds City Council,28/02/2021,Insurance,Insurance,Supplies and Services,Insurance Claims,248,12/02/2021,2102-00123,0,2075,R,REDACTED PERSONAL DATA,No
Http://opendatacommunities.org/id/metropolitan-district-council/leeds,Leeds City Council as Accountable Body,28/02/2021,Social Services Pooled Budgets,Leeds Community Equip Store Pooled Budgt,Supplies and Services,Other Equipment,203,18/02/2021,2102-00124,0,699,R,AAT (GB) LTD,No
Http://opendatacommunities.org/id/metropolitan-district-council/leeds,Leeds City Council as Accountable Body,28/02/2021,Social Services Pooled Budgets,Leeds Community Equip Store Pooled Budgt,Supplies and Services,Other Equipment,203,18/02/2021,2102-00125,0,779,R,AAT (GB) LTD,No
Http://opendatacommunities.org/id/metropolitan-district-council/leeds,Leeds City Council as Accountable Body,28/02/2021,Social Services Pooled Budgets,Leeds Community Equip Store Pooled Budgt,Supplies and Services,Other Equipment,203,18/02/2021,2102-00126,0,858,R,AAT (GB) LTD,No
Http://opendatacommunities.org/id/metropolitan-district-council/leeds,Leeds City Council as Accountable Body,28/02/2021,Social Services Pooled Budgets,Leeds Community Equip Store Pooled Budgt,Supplies and Services,Other Equipment,203,26/02/2021,2102-00127,0,684,R,AAT (GB) LTD,No
Http://opendatacommunities.org/id/metropolitan-district-council/leeds,Leeds City Council,28/02/2021,Communities and Environment,Customer Access,Supplies and Services,Bought In Professional Services,277,03/02/2021,2102-00128,0,27,R,Abadit Kiros,No
Http://opendatacommunities.org/id/metropolitan-district-council/leeds,Leeds City Council,28/02/2021,Communities and Environment,Customer Access,Supplies and Services,Bought In Professional Services,277,10/02/2021,2102-00129,0,18,R,Abadit Kiros,No
Http://opendatacommunities.org/id/metropolitan-district-council/leeds,Leeds City Council,28/02/2021,Communities and Environment,Customer Access,Supplies and Services,Bought In Professional Services,277,10/02/2021,2102-00130,0,18,R,Abadit Kiros,No
Http://opendatacommunities.org/id/metropolitan-district-council/leeds,Leeds City Council,28/02/2021,Communities and Environment,Customer Access,Supplies and Services,Bought In Professional Services,277,10/02/2021,2102-00131,0,18,R,Abadit Kiros,No
Http://opendatacommunities.org/id/metropolitan-district-council/leeds,Leeds City Council,28/02/2021,Communities and Environment,Customer Access,Supplies and Services,Bought In Professional Services,277,10/02/2021,2102-00132,0,18,R,Abadit Kiros,No
Http://opendatacommunities.org/id/metropolitan-district-council/leeds,Leeds City Council,28/02/2021,Communities and Environment,Customer Access,Supplies and Services,Bought In Professional Services,277,10/02/2021,2102-00133,0,18,R,Abadit Kiros,No
Http://opendatacommunities.org/id/metropolitan-district-council/leeds,Leeds City Council,28/02/2021,Communities and Environment,Customer Access,Supplies and Services,Bought In Professional Services,277,19/02/2021,2102-00134,0,18,R,Abadit Kiros,No
Http://opendatacommunities.org/id/metropolitan-district-council/leeds,Leeds City Council,28/02/2021,Communities and Environment,Customer Access,Supplies and Services,Bought In Professional Services,277,19/02/2021,2102-00135,0,13.5,R,Abadit Kiros,No
Http://opendatacommunities.org/id/metropolitan-district-council/leeds,Leeds City Council,28/02/2021,Adults and Health,Public Health,Third Party Payments,Public Health Commissioned Services,526,15/02/2021,2102-00136,0,754.92,R,Abbey Grange Medical Practice,No
Http://opendatacommunities.org/id/metropolitan-district-council/leeds,Leeds City Council,28/02/2021,Communities and Environment,Communities,Supplies and Services,Grant Related Expenditure,290,11/02/2021,2102-00137,0,1000,R,Abbey Multi Academy Trust,No
Http://opendatacommunities.org/id/metropolitan-district-council/leeds,Leeds City Council,28/02/2021,Children and Families,Learning,Supplies and Services,Other Hired And Contracted Services,265,11/02/2021,2102-00138,0,750,R,Abbey Multi Academy Trust,No
Http://opendatacommunities.org/id/metropolitan-district-council/leeds,Leeds City Council,28/02/2021,Communities and Environment,Benefits Wlefare and Poverty,Supplies and Services,Schools related grant expenditure,299,19/02/2021,2102-00139,0,5505,R,Abbey Multi Academy Trust,No
Http://opendatacommunities.org/id/metropolitan-district-council/leeds,Leeds City Council,28/02/2021,Communities and Environment,Benefits Wlefare and Poverty,Supplies and Services,Schools related grant expenditure,299,19/02/2021,2102-00140,0,1260,R,Abbey Multi Academy Trust,No
Http://opendatacommunities.org/id/metropolitan-district-council/leeds,Leeds City Council,28/02/2021,Communities and Environment,Benefits Wlefare and Poverty,Supplies and Services,Schools related grant expenditure,299,19/02/2021,2102-00141,0,3690,R,Abbey Multi Academy Trust,No
Http://opendatacommunities.org/id/metropolitan-district-council/leeds,Leeds City Council,28/02/2021,Communities and Environment,Benefits Wlefare and Poverty,Supplies and Services,Schools related grant expenditure,299,19/02/2021,2102-00142,0,210,R,Abbey Multi Academy Trust,No
Http://opendatacommunities.org/id/metropolitan-district-council/leeds,Leeds City Council,28/02/2021,Communities and Environment,Benefits Wlefare and Poverty,Supplies and Services,Grant Related Expenditure,298,08/02/2021,2102-00143,0,500,R,REDACTED PERSONAL DATA,No
Http://opendatacommunities.org/id/metropolitan-district-council/leeds,Leeds City Council,28/02/2021,Children and Families,Social Care,Third Party Payments,Allowances,546,17/02/2021,2102-00144,0,709.55,R,ABBIE O MAHONEY,No
Http://opendatacommunities.org/id/metropolitan-district-council/leeds,Leeds City Council,28/02/2021,Children and Families,Social Care,Third Party Payments,Services Rendered By Other Organisations,511,03/02/2021,2102-00145,0,475.2,R,REDACTED PERSONAL DATA,No
Http://opendatacommunities.org/id/metropolitan-district-council/leeds,Leeds City Council,28/02/2021,Children and Families,Social Care,Third Party Payments,Services Rendered By Other Organisations,511,05/02/2021,2102-00146,0,591.3,R,REDACTED PERSONAL DATA,No
Http://opendatacommunities.org/id/metropolitan-district-council/leeds,Leeds City Council,28/02/2021,Communities and Environment,Parks and Countryside,Supplies and Services,Other Hired And Contracted Services,265,05/02/2021,2102-00147,0,550,R,Abbotts Memorials,No
Http://opendatacommunities.org/id/metropolitan-district-council/leeds,Leeds City Council,28/02/2021,Communities and Environment,Parks and Countryside,Supplies and Services,Other Hired And Contracted Services,265,05/02/2021,2102-00148,0,550,R,Abbotts Memorials,No
Http://opendatacommunities.org/id/metropolitan-district-council/leeds,Leeds City Council,28/02/2021,Communities and Environment,Parks and Countryside,Supplies and Services,Other Hired And Contracted Services,265,18/02/2021,2102-00149,0,550,R,Abbotts Memorials,No
Http://opendatacommunities.org/id/metropolitan-district-council/leeds,Leeds City Council,28/02/2021,Communities and Environment,Parks and Countryside,Supplies and Services,Other Hired And Contracted Services,265,18/02/2021,2102-00150,0,550,R,Abbotts Memorials,No
Http://opendatacommunities.org/id/metropolitan-district-council/leeds,Leeds City Council,28/02/2021,Communities and Environment,Parks and Countryside,Supplies and Services,Other Hired And Contracted Services,265,18/02/2021,2102-00151,0,550,R,Abbotts Memorials,No
Http://opendatacommunities.org/id/metropolitan-district-council/leeds,Leeds City Council,28/02/2021,Communities and Environment,Parks and Countryside,Supplies and Services,Other Hired And Contracted Services,265,18/02/2021,2102-00152,0,550,R,Abbotts Memorials,No
Http://opendatacommunities.org/id/metropolitan-district-council/leeds,Leeds City Council,28/02/2021,Communities and Environment,Parks and Countryside,Supplies and Services,Other Hired And Contracted Services,265,25/02/2021,2102-00153,0,550,R,Abbotts Memorials,No
Http://opendatacommunities.org/id/metropolitan-district-council/leeds,Leeds City Council,28/02/2021,Communities and Environment,Parks and Countryside,Supplies and Services,Other Hired And Contracted Services,265,25/02/2021,2102-00154,0,550,R,Abbotts Memorials,No
Http://opendatacommunities.org/id/metropolitan-district-council/leeds,Leeds City Council,28/02/2021,Communities and Environment,Parks and Countryside,Supplies and Services,Other Hired And Contracted Services,265,25/02/2021,2102-00155,0,550,R,Abbotts Memorials,No
Http://opendatacommunities.org/id/metropolitan-district-council/leeds,Leeds City Council,28/02/2021,Children and Families,Social Care,Third Party Payments,Services Rendered By Other Organisations,511,03/02/2021,2102-00156,0,2534.4,R,Abc Daycare And Ozone Out Of School,No
Http://opendatacommunities.org/id/metropolitan-district-council/leeds,Leeds City Council,28/02/2021,Children and Families,Social Care,Third Party Payments,Services Rendered By Other Organisations,511,05/02/2021,2102-00157,0,7621.2,R,Abc Daycare And Ozone Out Of School,No
Http://opendatacommunities.org/id/metropolitan-district-council/leeds,Leeds City Council,28/02/2021,Children and Families,Social Care,Third Party Payments,Services Rendered By Other Organisations,511,03/02/2021,2102-00158,0,5491.2,R,ABC NURSERY AT LUFC,No
Http://opendatacommunities.org/id/metropolitan-district-council/leeds,Leeds City Council,28/02/2021,Children and Families,Social Care,Third Party Payments,Services Rendered By Other Organisations,511,04/02/2021,2102-00159,0,7621.2,R,ABC NURSERY AT LUFC,No
Http://opendatacommunities.org/id/metropolitan-district-council/leeds,Leeds City Council,28/02/2021,Children and Families,Social Care,Third Party Payments,Services Rendered By Other Organisations,511,03/02/2021,2102-00160,0,3168,R,Abc@D'S Childcare,No
Http://opendatacommunities.org/id/metropolitan-district-council/leeds,Leeds City Council,28/02/2021,Children and Families,Social Care,Third Party Payments,Services Rendered By Other Organisations,511,05/02/2021,2102-00161,0,7358.4,R,Abc@D'S Childcare,No
Http://opendatacommunities.org/id/metropolitan-district-council/leeds,Leeds City Council,28/02/2021,Communities and Environment,Benefits Wlefare and Poverty,Supplies and Services,Grant Related Expenditure,298,25/02/2021,2102-00162,0,500,R,REDACTED PERSONAL DATA,No
Http://opendatacommunities.org/id/metropolitan-district-council/leeds,Leeds City Council,28/02/2021,Communities and Environment,Customer Access,Supplies and Services,Bought In Professional Services,277,03/02/2021,2102-00163,0,18,R,Abdul Kalam,No
Http://opendatacommunities.org/id/metropolitan-district-council/leeds,Leeds City Council,28/02/2021,Communities and Environment,Customer Access,Supplies and Services,Bought In Professional Services,277,19/02/2021,2102-00164,0,9,R,Abdul Kalam,No
Http://opendatacommunities.org/id/metropolitan-district-council/leeds,Leeds City Council,28/02/2021,Communities and Environment,Customer Access,Supplies and Services,Bought In Professional Services,277,03/02/2021,2102-00165,0,18,R,Abdulahad Denha,No
Http://opendatacommunities.org/id/metropolitan-district-council/leeds,Leeds City Council,28/02/2021,Communities and Environment,Customer Access,Supplies and Services,Bought In Professional Services,277,03/02/2021,2102-00166,0,9,R,Abdulahad Denha,No
Http://opendatacommunities.org/id/metropolitan-district-council/leeds,Leeds City Council,28/02/2021,Communities and Environment,Customer Access,Supplies and Services,Bought In Professional Services,277,10/02/2021,2102-00167,0,9,R,Abdulahad Denha,No
Http://opendatacommunities.org/id/metropolitan-district-council/leeds,Leeds City Council,28/02/2021,Communities and Environment,Customer Access,Supplies and Services,Bought In Professional Services,277,10/02/2021,2102-00168,0,13.5,R,Abdulahad Denha,No
Http://opendatacommunities.org/id/metropolitan-district-council/leeds,Leeds City Council,28/02/2021,Communities and Environment,Customer Access,Supplies and Services,Bought In Professional Services,277,19/02/2021,2102-00169,0,9,R,Abdulahad Denha,No
Http://opendatacommunities.org/id/metropolitan-district-council/leeds,Leeds City Council,28/02/2021,Communities and Environment,Customer Access,Supplies and Services,Bought In Professional Services,277,19/02/2021,2102-00170,0,9,R,Abdulahad Denha,No
Http://opendatacommunities.org/id/metropolitan-district-council/leeds,Leeds City Council,28/02/2021,Communities and Environment,Customer Access,Supplies and Services,Bought In Professional Services,277,19/02/2021,2102-00171,0,18,R,Abdulahad Denha,No
Http://opendatacommunities.org/id/metropolitan-district-council/leeds,Leeds City Council,28/02/2021,Communities and Environment,Customer Access,Supplies and Services,Bought In Professional Services,277,19/02/2021,2102-00172,0,18,R,Abdulahad Denha,No
Http://opendatacommunities.org/id/metropolitan-district-council/leeds,Leeds City Council,28/02/2021,Communities and Environment,Customer Access,Supplies and Services,Bought In Professional Services,277,24/02/2021,2102-00173,0,18,R,Abdulahad Denha,No
Http://opendatacommunities.org/id/metropolitan-district-council/leeds,Leeds City Council,28/02/2021,Communities and Environment,Customer Access,Supplies and Services,Bought In Professional Services,277,03/02/2021,2102-00174,0,9,R,Abdulrahim Dastyar,No
Http://opendatacommunities.org/id/metropolitan-district-council/leeds,Leeds City Council,28/02/2021,Communities and Environment,Customer Access,Supplies and Services,Bought In Professional Services,277,03/02/2021,2102-00175,0,18,R,Abdulrahim Dastyar,No
Http://opendatacommunities.org/id/metropolitan-district-council/leeds,Leeds City Council,28/02/2021,Communities and Environment,Customer Access,Supplies and Services,Bought In Professional Services,277,03/02/2021,2102-00176,0,31.5,R,Abdulrahim Dastyar,No
Http://opendatacommunities.org/id/metropolitan-district-council/leeds,Leeds City Council,28/02/2021,Communities and Environment,Customer Access,Supplies and Services,Bought In Professional Services,277,03/02/2021,2102-00177,0,18,R,Abdulrahim Dastyar,No
Http://opendatacommunities.org/id/metropolitan-district-council/leeds,Leeds City Council,28/02/2021,Communities and Environment,Customer Access,Supplies and Services,Bought In Professional Services,277,19/02/2021,2102-00178,0,22.5,R,Abdulrahim Dastyar,No
Http://opendatacommunities.org/id/metropolitan-district-council/leeds,Leeds City Council,28/02/2021,Communities and Environment,Customer Access,Supplies and Services,Bought In Professional Services,277,19/02/2021,2102-00179,0,36,R,Abdulrahim Dastyar,No
Http://opendatacommunities.org/id/metropolitan-district-council/leeds,Leeds City Council,28/02/2021,Resources and Housing,Strategy and Improvement,Supplies and Services,Publication And Promotion,267,26/02/2021,2102-00180,0,3166.7,R,Aberfield Communications Limited,No
Http://opendatacommunities.org/id/metropolitan-district-council/leeds,Leeds City Council,28/02/2021,Communities and Environment,Communities,Supplies and Services,'Well Being' Large Grants Projects,230,24/02/2021,2102-00181,0,1239.99,R,Aberford CofE Primary School PTA,No
Http://opendatacommunities.org/id/metropolitan-district-council/leeds,Leeds City Council,28/02/2021,Adults and Health,Services For Older People - 65 And Over,Third Party Payments,Nursing Home,570,03/02/2021,2102-00182,0,5055.81,R,Aberford Hall,No
Http://opendatacommunities.org/id/metropolitan-district-council/leeds,Leeds City Council,28/02/2021,Adults and Health,Services For Older People - 65 And Over,Third Party Payments,Nursing Care Dementia,574,03/02/2021,2102-00183,0,1868.6,R,Aberford Hall,No
Http://opendatacommunities.org/id/metropolitan-district-council/leeds,Leeds City Council,28/02/2021,Insurance,Insurance,Supplies and Services,Insurance Claims,248,12/02/2021,2102-00184,0,1552,R,REDACTED PERSONAL DATA,No
Http://opendatacommunities.org/id/metropolitan-district-council/leeds,Leeds City Council,28/02/2021,Resources and Housing,Leeds Building Services,Supplies and Services,Operational Materials,205,18/02/2021,2102-00185,0,281.04,R,ABI GARAGE DOORS LTD,No
Http://opendatacommunities.org/id/metropolitan-district-council/leeds,Leeds City Council,28/02/2021,Resources and Housing,Leeds Building Services,Supplies and Services,Operational Materials,205,18/02/2021,2102-00186,0,281.04,R,ABI GARAGE DOORS LTD,No
Http://opendatacommunities.org/id/metropolitan-district-council/leeds,Leeds City Council,28/02/2021,Resources and Housing,Leeds Building Services,Supplies and Services,Operational Materials,205,19/02/2021,2102-00187,0,562.07,R,ABI GARAGE DOORS LTD,No
Http://opendatacommunities.org/id/metropolitan-district-council/leeds,Leeds City Council,28/02/2021,Resources and Housing,Leeds Building Services,Supplies and Services,Operational Materials,205,24/02/2021,2102-00188,0,281.04,R,ABI GARAGE DOORS LTD,No
Http://opendatacommunities.org/id/metropolitan-district-council/leeds,Leeds City Council,28/02/2021,Resources and Housing,Leeds Building Services,Supplies and Services,Operational Materials,205,24/02/2021,2102-00189,0,281.04,R,ABI GARAGE DOORS LTD,No
Http://opendatacommunities.org/id/metropolitan-district-council/leeds,Leeds City Council,28/02/2021,Resources and Housing,Leeds Building Services,Supplies and Services,Operational Materials,205,25/02/2021,2102-00190,0,226.81,R,ABI GARAGE DOORS LTD,No
Http://opendatacommunities.org/id/metropolitan-district-council/leeds,Leeds City Council,28/02/2021,Resources and Housing,Leeds Building Services,Supplies and Services,Operational Materials,205,26/02/2021,2102-00191,0,20,R,ABI GARAGE DOORS LTD,No
Http://opendatacommunities.org/id/metropolitan-district-council/leeds,Leeds City Council,28/02/2021,Resources and Housing,Leeds Building Services,Supplies and Services,Operational Materials,205,26/02/2021,2102-00192,0,10.83,R,ABI GARAGE DOORS LTD,No
Http://opendatacommunities.org/id/metropolitan-district-council/leeds,Leeds City Council,28/02/2021,Communities and Environment,Benefits Wlefare and Poverty,Supplies and Services,Grant Related Expenditure,290,05/02/2021,2102-00193,0,500,R,REDACTED PERSONAL DATA,No
Http://opendatacommunities.org/id/metropolitan-district-council/leeds,Leeds City Council,28/02/2021,Children and Families,Social Care,Third Party Payments, Direct Work,549,22/02/2021,2102-00194,0,62.05,R,REDACTED PERSONAL DATA,No
Http://opendatacommunities.org/id/metropolitan-district-council/leeds,Leeds City Council,28/02/2021,Children and Families,Social Care,Third Party Payments, Direct Work,549,23/02/2021,2102-00195,0,34,R,REDACTED PERSONAL DATA,No
Http://opendatacommunities.org/id/metropolitan-district-council/leeds,Leeds City Council,28/02/2021,Communities and Environment,Customer Access,Supplies and Services,Schools related grant expenditure,299,19/02/2021,2102-00196,0,250,R,REDACTED PERSONAL DATA,No
Http://opendatacommunities.org/id/metropolitan-district-council/leeds,Leeds City Council,28/02/2021,Children and Families,Social Care  ,Supplies and Services,Bedding & Linen,222,19/01/2021,2102-00197,0,203,R,Absolute,Yes
Http://opendatacommunities.org/id/metropolitan-district-council/leeds,Leeds City Council,28/02/2021,Children and Families,Social Care  ,Supplies and Services,Food & Drink,231,07/01/2021,2102-00198,0,16.62,R,Abu Bakar,Yes
Http://opendatacommunities.org/id/metropolitan-district-council/leeds,Leeds City Council,28/02/2021,Children and Families,Social Care  ,Supplies and Services,Food & Drink,231,12/01/2021,2102-00199,0,18.91,R,Abu Bakar,Yes
Http://opendatacommunities.org/id/metropolitan-district-council/leeds,Leeds City Council,28/02/2021,Adults and Health,Services For Adults Under 65 Mental/Dis,Third Party Payments,Fees - Level 4,520,12/02/2021,2102-00200,0,175,R,Abubaker Denja Mohammed,No
Http://opendatacommunities.org/id/metropolitan-district-council/leeds,Leeds City Council,28/02/2021,Adults and Health,Services For Adults Under 65 Mental/Dis,Third Party Payments,Fees - Level 4,520,12/02/2021,2102-00201,0,175,R,Abubaker Denja Mohammed,No
Http://opendatacommunities.org/id/metropolitan-district-council/leeds,Leeds City Council,28/02/2021,Adults and Health,Services For Adults Under 65 Mental/Dis,Third Party Payments,Fees - Level 4,520,12/02/2021,2102-00202,0,175,R,Abubaker Denja Mohammed,No
Http://opendatacommunities.org/id/metropolitan-district-council/leeds,Leeds City Council,28/02/2021,Adults and Health,Services For Adults Under 65 Mental/Dis,Third Party Payments,Fees - Level 4,520,24/02/2021,2102-00203,0,175,R,Abubaker Denja Mohammed,No
Http://opendatacommunities.org/id/metropolitan-district-council/leeds,Leeds City Council,28/02/2021,Adults and Health,Services For Adults Under 65 Mental/Dis,Third Party Payments,Fees - Level 4,520,24/02/2021,2102-00204,0,175,R,Abubaker Denja Mohammed,No
Http://opendatacommunities.org/id/metropolitan-district-council/leeds,Leeds City Council,28/02/2021,City Development,Economic Development,Supplies and Services,Grant Related Expenditure,298,17/02/2021,2102-00205,0,8775,R,Abuv Ltd,No
Http://opendatacommunities.org/id/metropolitan-district-council/leeds,Leeds City Council,28/02/2021,Communities and Environment,Benefits Wlefare and Poverty,Supplies and Services,Schools related grant expenditure,299,19/02/2021,2102-00206,0,2190,R,Academies Enterprise Trust (AET),No
Http://opendatacommunities.org/id/metropolitan-district-council/leeds,Leeds City Council,28/02/2021,Adults and Health,Services For Older People - 65 And Over,Third Party Payments,Home Care,568,17/02/2021,2102-00207,0,780.78,R,Academy Care Ltd,No
Http://opendatacommunities.org/id/metropolitan-district-council/leeds,Leeds City Council,28/02/2021,Adults and Health,Services For Older People - 65 And Over,Third Party Payments,Home Care,568,17/02/2021,2102-00208,0,1561.56,R,Academy Care Ltd,No
Http://opendatacommunities.org/id/metropolitan-district-council/leeds,Leeds City Council,28/02/2021,Adults and Health,Social Services Support Services,Employees,Training & Development,70,26/02/2021,2102-00209,0,1370,R,ACAS,No
Http://opendatacommunities.org/id/metropolitan-district-council/leeds,Leeds City Council,28/02/2021,Resources and Housing,Strategic Housing Partnership & Support,Supplies and Services,Other Hired And Contracted Services,265,04/02/2021,2102-00210,0,775.06,R,Accent Foundation Ltd,No
Http://opendatacommunities.org/id/metropolitan-district-council/leeds,Leeds City Council,28/02/2021,City Development,Economic Development,Supplies and Services,Grant Related Expenditure,298,22/02/2021,2102-00211,0,10000,R,Accent Menswear Ltd,No
Http://opendatacommunities.org/id/metropolitan-district-council/leeds,Leeds City Council,28/02/2021,Resources and Housing,Technology,Supplies and Services,Computer Software & Equipment,214,17/02/2021,2102-00212,0,5162.6,R,ACCENTURE (UK) LTD,No
Http://opendatacommunities.org/id/metropolitan-district-council/leeds,Leeds City Council,28/02/2021,Resources and Housing,Strategic Housing Partnership & Support  ,Supplies and Services,Other Hired And Contracted Services,265,20/01/2021,2102-00213,0,20,R,Access Locksmiths,Yes
Http://opendatacommunities.org/id/metropolitan-district-council/leeds,Leeds City Council,28/02/2021,Strategic Landlord,Property and Contracts,Premises,General Maintenance,104,04/02/2021,2102-00214,0,1437.96,R,ACCESS LOCKSMITHS (LEEDS) LIMITED,No
Http://opendatacommunities.org/id/metropolitan-district-council/leeds,Leeds City Council,28/02/2021,Strategic Landlord,Property and Contracts,Premises,General Maintenance,104,05/02/2021,2102-00215,0,246.15,R,ACCESS LOCKSMITHS (LEEDS) LIMITED,No
Http://opendatacommunities.org/id/metropolitan-district-council/leeds,Leeds City Council,28/02/2021,Strategic Landlord,Property and Contracts,Premises,General Maintenance,104,05/02/2021,2102-00216,0,48.45,R,ACCESS LOCKSMITHS (LEEDS) LIMITED,No
Http://opendatacommunities.org/id/metropolitan-district-council/leeds,Leeds City Council,28/02/2021,Strategic Landlord,Property and Contracts,Premises,General Maintenance,104,08/02/2021,2102-00217,0,179.09,R,ACCESS LOCKSMITHS (LEEDS) LIMITED,No
Http://opendatacommunities.org/id/metropolitan-district-council/leeds,Leeds City Council,28/02/2021,Resources and Housing,Leeds Building Services,Supplies and Services,Operational Materials,205,15/02/2021,2102-00218,0,188.06,R,ACCESS LOCKSMITHS (LEEDS) LIMITED,No
Http://opendatacommunities.org/id/metropolitan-district-council/leeds,Leeds City Council,28/02/2021,Resources and Housing,Leeds Building Services,Supplies and Services,Operational Materials,205,15/02/2021,2102-00219,0,17.43,R,ACCESS LOCKSMITHS (LEEDS) LIMITED,No
Http://opendatacommunities.org/id/metropolitan-district-council/leeds,Leeds City Council,28/02/2021,Resources and Housing,Leeds Building Services,Supplies and Services,Operational Materials,205,15/02/2021,2102-00220,0,85.94,R,ACCESS LOCKSMITHS (LEEDS) LIMITED,No
Http://opendatacommunities.org/id/metropolitan-district-council/leeds,Leeds City Council,28/02/2021,Resources and Housing,Leeds Building Services,Supplies and Services,Operational Materials,205,15/02/2021,2102-00221,0,16,R,ACCESS LOCKSMITHS (LEEDS) LIMITED,No
Http://opendatacommunities.org/id/metropolitan-district-council/leeds,Leeds City Council,28/02/2021,Resources and Housing,Leeds Building Services,Supplies and Services,Operational Materials,205,15/02/2021,2102-00222,0,39.66,R,ACCESS LOCKSMITHS (LEEDS) LIMITED,No
Http://opendatacommunities.org/id/metropolitan-district-council/leeds,Leeds City Council,28/02/2021,Resources and Housing,Leeds Building Services,Supplies and Services,Operational Materials,205,15/02/2021,2102-00223,0,43.06,R,ACCESS LOCKSMITHS (LEEDS) LIMITED,No
Http://opendatacommunities.org/id/metropolitan-district-council/leeds,Leeds City Council,28/02/2021,Resources and Housing,Leeds Building Services,Supplies and Services,Operational Materials,205,15/02/2021,2102-00224,0,17.5,R,ACCESS LOCKSMITHS (LEEDS) LIMITED,No
Http://opendatacommunities.org/id/metropolitan-district-council/leeds,Leeds City Council,28/02/2021,Resources and Housing,Leeds Building Services,Supplies and Services,Operational Materials,205,15/02/2021,2102-00225,0,23.47,R,ACCESS LOCKSMITHS (LEEDS) LIMITED,No
Http://opendatacommunities.org/id/metropolitan-district-council/leeds,Leeds City Council,28/02/2021,Resources and Housing,Leeds Building Services,Supplies and Services,Operational Materials,205,15/02/2021,2102-00226,0,34.87,R,ACCESS LOCKSMITHS (LEEDS) LIMITED,No
Http://opendatacommunities.org/id/metropolitan-district-council/leeds,Leeds City Council,28/02/2021,Resources and Housing,Leeds Building Services,Supplies and Services,Operational Materials,205,15/02/2021,2102-00227,0,72.46,R,ACCESS LOCKSMITHS (LEEDS) LIMITED,No
Http://opendatacommunities.org/id/metropolitan-district-council/leeds,Leeds City Council,28/02/2021,Strategic Landlord,Property and Contracts,Premises,General Maintenance,104,18/02/2021,2102-00228,0,61.78,R,ACCESS LOCKSMITHS (LEEDS) LIMITED,No
Http://opendatacommunities.org/id/metropolitan-district-council/leeds,Leeds City Council,28/02/2021,Strategic Landlord,Property and Contracts,Premises,General Maintenance,104,18/02/2021,2102-00229,0,109.58,R,ACCESS LOCKSMITHS (LEEDS) LIMITED,No
Http://opendatacommunities.org/id/metropolitan-district-council/leeds,Leeds City Council,28/02/2021,Strategic Landlord,Property and Contracts,Premises,General Maintenance,104,18/02/2021,2102-00230,0,152.87,R,ACCESS LOCKSMITHS (LEEDS) LIMITED,No
Http://opendatacommunities.org/id/metropolitan-district-council/leeds,Leeds City Council,28/02/2021,Strategic Landlord,Property and Contracts,Premises,General Maintenance,104,18/02/2021,2102-00231,0,177.82,R,ACCESS LOCKSMITHS (LEEDS) LIMITED,No
Http://opendatacommunities.org/id/metropolitan-district-council/leeds,Leeds City Council,28/02/2021,Strategic Landlord,Property and Contracts,Premises,General Maintenance,104,18/02/2021,2102-00232,0,223.82,R,ACCESS LOCKSMITHS (LEEDS) LIMITED,No
Http://opendatacommunities.org/id/metropolitan-district-council/leeds,Leeds City Council,28/02/2021,Strategic Landlord,Housing Management,Supplies and Services,Resaleable Materials,204,24/02/2021,2102-00233,0,166.8,R,ACCESS LOCKSMITHS (LEEDS) LIMITED,No
Http://opendatacommunities.org/id/metropolitan-district-council/leeds,Leeds City Council,28/02/2021,Resources and Housing,Commercial Services,Supplies and Services,Operational Materials,205,24/02/2021,2102-00234,0,201.8,R,ACCESS LOCKSMITHS (LEEDS) LIMITED,No
Http://opendatacommunities.org/id/metropolitan-district-council/leeds,Leeds City Council,28/02/2021,Resources and Housing,HRA Housing Leeds,Capital,FURNITURE AND EQUIPMENT,5,26/02/2021,2102-00235,0,155.53,C,ACCESS LOCKSMITHS (LEEDS) LIMITED,No
Http://opendatacommunities.org/id/metropolitan-district-council/leeds,Leeds City Council,28/02/2021,Resources and Housing,HRA Housing Leeds,Capital,FURNITURE AND EQUIPMENT,5,26/02/2021,2102-00236,0,179.55,C,ACCESS LOCKSMITHS (LEEDS) LIMITED,No
Http://opendatacommunities.org/id/metropolitan-district-council/leeds,Leeds City Council,28/02/2021,Resources and Housing,HRA Housing Leeds,Capital,FURNITURE AND EQUIPMENT,5,26/02/2021,2102-00237,0,64.29,C,ACCESS LOCKSMITHS (LEEDS) LIMITED,No
Http://opendatacommunities.org/id/metropolitan-district-council/leeds,Leeds City Council,28/02/2021,Strategic Landlord,Property and Contracts,Premises,General Maintenance,104,26/02/2021,2102-00238,0,104.9,R,ACCESS LOCKSMITHS (LEEDS) LIMITED,No
Http://opendatacommunities.org/id/metropolitan-district-council/leeds,Leeds City Council,28/02/2021,Strategic Landlord,Property and Contracts,Premises,General Maintenance,104,26/02/2021,2102-00239,0,423.6,R,ACCESS LOCKSMITHS (LEEDS) LIMITED,No
Http://opendatacommunities.org/id/metropolitan-district-council/leeds,Leeds City Council,28/02/2021,Strategic Landlord,Property and Contracts,Premises,General Maintenance,104,26/02/2021,2102-00240,0,469.4,R,ACCESS LOCKSMITHS (LEEDS) LIMITED,No
Http://opendatacommunities.org/id/metropolitan-district-council/leeds,Leeds City Council,28/02/2021,Strategic Landlord,Property and Contracts,Premises,General Maintenance,104,26/02/2021,2102-00241,0,398,R,ACCESS LOCKSMITHS (LEEDS) LIMITED,No
Http://opendatacommunities.org/id/metropolitan-district-council/leeds,Leeds City Council,28/02/2021,Adults and Health,Home Care Services,Supplies and Services,Other Hired And Contracted Services,265,26/02/2021,2102-00242,0,22.5,R,ACCESS LOCKSMITHS (LEEDS) LIMITED,No
Http://opendatacommunities.org/id/metropolitan-district-council/leeds,Leeds City Council,28/02/2021,Strategic Landlord,Housing Management,Premises,Fixtures & Fittings,131,26/02/2021,2102-00243,0,114,R,ACCESS LOCKSMITHS (LEEDS) LIMITED,No
Http://opendatacommunities.org/id/metropolitan-district-council/leeds,Leeds City Council,28/02/2021,Strategic Landlord,Housing Management,Supplies and Services,Resaleable Materials,204,26/02/2021,2102-00244,0,68.4,R,ACCESS LOCKSMITHS (LEEDS) LIMITED,No
Http://opendatacommunities.org/id/metropolitan-district-council/leeds,Leeds City Council,28/02/2021,Resources and Housing,HRA Housing Leeds,Capital,FURNITURE AND EQUIPMENT,5,26/02/2021,2102-00245,0,55.08,C,ACCESS LOCKSMITHS (LEEDS) LIMITED,No
Http://opendatacommunities.org/id/metropolitan-district-council/leeds,Leeds City Council,28/02/2021,Resources and Housing,HRA Housing Leeds,Capital,FURNITURE AND EQUIPMENT,5,26/02/2021,2102-00246,0,158.22,C,ACCESS LOCKSMITHS (LEEDS) LIMITED,No
Http://opendatacommunities.org/id/metropolitan-district-council/leeds,Leeds City Council as Accountable Body,28/02/2021,Social Services Pooled Budgets,Leeds Community Equip Store Pooled Budgt,Supplies and Services,Other Equipment,203,18/02/2021,2102-00247,0,147,R,Accora,No
Http://opendatacommunities.org/id/metropolitan-district-council/leeds,Leeds City Council,28/02/2021,Children and Families,Learning,Supplies and Services,Advertising,211,19/02/2021,2102-00248,0,120,R,Ace Leaflet Distribution & Print Ltd,No
Http://opendatacommunities.org/id/metropolitan-district-council/leeds,Leeds City Council,28/02/2021,Adults and Health,Other Adult Services,Third Party Payments,Residential,580,08/02/2021,2102-00249,0,1326.44,R,Acorn Care & Education Ltd (Sales),No
Http://opendatacommunities.org/id/metropolitan-district-council/leeds,Leeds City Council,28/02/2021,Children and Families,Partnerships & Health,Third Party Payments,SEN Placements,566,12/02/2021,2102-00250,0,1120,R,Acorn Care & Education Ltd (Sales),No
Http://opendatacommunities.org/id/metropolitan-district-council/leeds,Leeds City Council,28/02/2021,Children and Families,Social Care,Third Party Payments,General External Residential Placements,507,26/02/2021,2102-00251,0,20374.46,R,Acorn Care & Education Ltd (Sales),No
Http://opendatacommunities.org/id/metropolitan-district-council/leeds,Leeds City Council,28/02/2021,Children and Families,Social Care,Third Party Payments,Other External Residential Placement,508,26/02/2021,2102-00252,0,24117.42,R,Acorn Care & Education Ltd (Sales),No
Http://opendatacommunities.org/id/metropolitan-district-council/leeds,Leeds City Council,28/02/2021,Adults and Health,Other Adult Services,Third Party Payments,Residential,580,26/02/2021,2102-00253,0,1014.8,R,Acorn Care & Education Ltd (Sales),No
Http://opendatacommunities.org/id/metropolitan-district-council/leeds,Leeds City Council,28/02/2021,Adults and Health,Services For Older People - 65 And Over,Third Party Payments,Residential Care Dementia,571,03/02/2021,2102-00254,0,1589.72,R,Acorn Nursing Home,No
Http://opendatacommunities.org/id/metropolitan-district-council/leeds,Leeds City Council,28/02/2021,Children and Families,Social Care,Third Party Payments,Services Rendered By Other Organisations,511,03/02/2021,2102-00255,0,950.4,R,ACORNS NURSERY,No
Http://opendatacommunities.org/id/metropolitan-district-council/leeds,Leeds City Council,28/02/2021,Children and Families,Social Care,Third Party Payments,Services Rendered By Other Organisations,511,05/02/2021,2102-00256,0,12614.4,R,ACORNS NURSERY,No
Http://opendatacommunities.org/id/metropolitan-district-council/leeds,Leeds City Council,28/02/2021,Adults and Health,Services For Older People - 65 And Over,Third Party Payments,Nursing Home,570,03/02/2021,2102-00257,0,22866.5,R,Acre Green,No
Http://opendatacommunities.org/id/metropolitan-district-council/leeds,Leeds City Council,28/02/2021,Adults and Health,Services For Older People - 65 And Over,Third Party Payments,Residential,580,03/02/2021,2102-00258,0,4085.33,R,Acre Green,No
Http://opendatacommunities.org/id/metropolitan-district-council/leeds,Leeds City Council,28/02/2021,Adults and Health,Services For Older People Under 65 P/Dis,Third Party Payments,Nursing Home,570,03/02/2021,2102-00259,0,2360,R,Acre Green,No
Http://opendatacommunities.org/id/metropolitan-district-council/leeds,Leeds City Council,28/02/2021,Adults and Health,Services For Older People Under 65 P/Dis,Third Party Payments,Residential,580,03/02/2021,2102-00260,0,1642.6,R,Acre Green,No
Http://opendatacommunities.org/id/metropolitan-district-council/leeds,Leeds City Council,28/02/2021,Children and Families,Social Care,Third Party Payments,Services Rendered By Other Organisations,511,03/02/2021,2102-00261,0,1372.8,R,Acre Wood Day Nursery,No
Http://opendatacommunities.org/id/metropolitan-district-council/leeds,Leeds City Council,28/02/2021,Children and Families,Social Care,Third Party Payments,Services Rendered By Other Organisations,511,05/02/2021,2102-00262,0,9198,R,Acre Wood Day Nursery,No
Http://opendatacommunities.org/id/metropolitan-district-council/leeds,Leeds City Council,28/02/2021,Children and Families,Social Care,Third Party Payments,Independent Fostering Agencies,509,10/02/2021,2102-00263,0,5163.67,R,Action For Children Services Ltd,No
Http://opendatacommunities.org/id/metropolitan-district-council/leeds,Leeds City Council,28/02/2021,Children and Families,Social Care,Third Party Payments,Independent Fostering Agencies,509,10/02/2021,2102-00264,0,1305.92,R,Action For Children Services Ltd,No
Http://opendatacommunities.org/id/metropolitan-district-council/leeds,Leeds City Council,28/02/2021,Children and Families,Social Care,Third Party Payments,Independent Fostering Agencies,509,19/02/2021,2102-00265,0,5163.67,R,Action For Children Services Ltd,No
Http://opendatacommunities.org/id/metropolitan-district-council/leeds,Leeds City Council,28/02/2021,Resources and Housing,Sustainable Energy & Climate Change,Capital,TRANSPORT,4,05/02/2021,2102-00266,0,3350,C,Active Cycling Projects Ltd,No
Http://opendatacommunities.org/id/metropolitan-district-council/leeds,Leeds City Council,28/02/2021,Children and Families,Social Care,Third Party Payments,Services Rendered By Other Organisations,511,03/02/2021,2102-00267,0,1267.2,R,ACTIVE KIDS YEADON LLP,No
Http://opendatacommunities.org/id/metropolitan-district-council/leeds,Leeds City Council,28/02/2021,Children and Families,Social Care,Third Party Payments,Services Rendered By Other Organisations,511,05/02/2021,2102-00268,0,7597.84,R,ACTIVE KIDS YEADON LLP,No
Http://opendatacommunities.org/id/metropolitan-district-council/leeds,Leeds City Council,28/02/2021,Adults and Health,Services For Adults Under 65 Mental/Dis,Third Party Payments,Sheltered Accommodation,569,03/02/2021,2102-00269,0,12141.08,R,Active Pathways,No
Http://opendatacommunities.org/id/metropolitan-district-council/leeds,Leeds City Council as Accountable Body,28/02/2021,Social Services Pooled Budgets,Jcs For People With Learning Disabilitie,Third Party Payments,Sheltered Accommodation,569,03/02/2021,2102-00270,0,8301.68,R,Active Pathways,No
Http://opendatacommunities.org/id/metropolitan-district-council/leeds,Leeds City Council,28/02/2021,Adults and Health,Other Adult Services,Third Party Payments,Residential,580,19/02/2021,2102-00271,0,1326.44,R,Active Pathways Supported Living,No
Http://opendatacommunities.org/id/metropolitan-district-council/leeds,Leeds City Council,28/02/2021,Adults and Health,Other Adult Services,Third Party Payments,Residential,580,24/02/2021,2102-00272,0,1014.8,R,Active Pathways Supported Living,No
Http://opendatacommunities.org/id/metropolitan-district-council/leeds,Leeds City Council,28/02/2021,Communities and Environment,Cleaner Neighbourhood Teams,Premises,Removal Of Workplace Waste,126,10/02/2021,2102-00273,0,116.6,R,Acumen Waste Services Ltd,No
Http://opendatacommunities.org/id/metropolitan-district-council/leeds,Leeds City Council,28/02/2021,Communities and Environment,Cleaner Neighbourhood Teams,Premises,Removal Of Workplace Waste,126,10/02/2021,2102-00274,0,116.6,R,Acumen Waste Services Ltd,No
Http://opendatacommunities.org/id/metropolitan-district-council/leeds,Leeds City Council,28/02/2021,Communities and Environment,Cleaner Neighbourhood Teams,Premises,Removal Of Workplace Waste,126,10/02/2021,2102-00275,0,116.6,R,Acumen Waste Services Ltd,No
Http://opendatacommunities.org/id/metropolitan-district-council/leeds,Leeds City Council,28/02/2021,Communities and Environment,Cleaner Neighbourhood Teams,Premises,Removal Of Workplace Waste,126,10/02/2021,2102-00276,0,116.6,R,Acumen Waste Services Ltd,No
Http://opendatacommunities.org/id/metropolitan-district-council/leeds,Leeds City Council,28/02/2021,Communities and Environment,Waste Management,Supplies and Services,Recycling & Reuse Charges,234,10/02/2021,2102-00277,0,820.99,R,Acumen Waste Services Ltd,No
Http://opendatacommunities.org/id/metropolitan-district-council/leeds,Leeds City Council,28/02/2021,Communities and Environment,Waste Management,Supplies and Services,Recycling & Reuse Charges,234,10/02/2021,2102-00278,0,997.12,R,Acumen Waste Services Ltd,No
Http://opendatacommunities.org/id/metropolitan-district-council/leeds,Leeds City Council,28/02/2021,Communities and Environment,Waste Management,Supplies and Services,Recycling & Reuse Charges,234,10/02/2021,2102-00279,0,997.12,R,Acumen Waste Services Ltd,No
Http://opendatacommunities.org/id/metropolitan-district-council/leeds,Leeds City Council,28/02/2021,Communities and Environment,Waste Management,Supplies and Services,Recycling & Reuse Charges,234,10/02/2021,2102-00280,0,1002.8,R,Acumen Waste Services Ltd,No
Http://opendatacommunities.org/id/metropolitan-district-council/leeds,Leeds City Council,28/02/2021,Communities and Environment,Waste Management,Supplies and Services,Recycling & Reuse Charges,234,10/02/2021,2102-00281,0,1026.95,R,Acumen Waste Services Ltd,No
Http://opendatacommunities.org/id/metropolitan-district-council/leeds,Leeds City Council,28/02/2021,Communities and Environment,Waste Management,Supplies and Services,Recycling & Reuse Charges,234,10/02/2021,2102-00282,0,1028.37,R,Acumen Waste Services Ltd,No
Http://opendatacommunities.org/id/metropolitan-district-council/leeds,Leeds City Council,28/02/2021,Communities and Environment,Waste Management,Supplies and Services,Recycling & Reuse Charges,234,10/02/2021,2102-00283,0,938.17,R,Acumen Waste Services Ltd,No
Http://opendatacommunities.org/id/metropolitan-district-council/leeds,Leeds City Council,28/02/2021,Communities and Environment,Waste Management,Supplies and Services,Recycling & Reuse Charges,234,17/02/2021,2102-00284,0,1016.3,R,Acumen Waste Services Ltd,No
Http://opendatacommunities.org/id/metropolitan-district-council/leeds,Leeds City Council,28/02/2021,Communities and Environment,Cleaner Neighbourhood Teams,Premises,Removal Of Workplace Waste,126,17/02/2021,2102-00285,0,116.6,R,Acumen Waste Services Ltd,No
Http://opendatacommunities.org/id/metropolitan-district-council/leeds,Leeds City Council,28/02/2021,Communities and Environment,Waste Management,Supplies and Services,Recycling & Reuse Charges,234,17/02/2021,2102-00286,0,976.53,R,Acumen Waste Services Ltd,No
Http://opendatacommunities.org/id/metropolitan-district-council/leeds,Leeds City Council,28/02/2021,Communities and Environment,Waste Management,Supplies and Services,Recycling & Reuse Charges,234,19/02/2021,2102-00287,0,979.37,R,Acumen Waste Services Ltd,No
Http://opendatacommunities.org/id/metropolitan-district-council/leeds,Leeds City Council,28/02/2021,Communities and Environment,Waste Management,Supplies and Services,Recycling & Reuse Charges,234,19/02/2021,2102-00288,0,2042.54,R,Acumen Waste Services Ltd,No
Http://opendatacommunities.org/id/metropolitan-district-council/leeds,Leeds City Council,28/02/2021,Communities and Environment,Cleaner Neighbourhood Teams,Premises,Removal Of Workplace Waste,126,19/02/2021,2102-00289,0,116.6,R,Acumen Waste Services Ltd,No
Http://opendatacommunities.org/id/metropolitan-district-council/leeds,Leeds City Council,28/02/2021,Communities and Environment,Cleaner Neighbourhood Teams,Premises,Removal Of Workplace Waste,126,19/02/2021,2102-00290,0,116.6,R,Acumen Waste Services Ltd,No
Http://opendatacommunities.org/id/metropolitan-district-council/leeds,Leeds City Council,28/02/2021,Communities and Environment,Cleaner Neighbourhood Teams,Premises,Removal Of Workplace Waste,126,24/02/2021,2102-00291,0,116.6,R,Acumen Waste Services Ltd,No
Http://opendatacommunities.org/id/metropolitan-district-council/leeds,Leeds City Council,28/02/2021,Communities and Environment,Waste Management,Supplies and Services,Recycling & Reuse Charges,234,24/02/2021,2102-00292,0,794,R,Acumen Waste Services Ltd,No
Http://opendatacommunities.org/id/metropolitan-district-council/leeds,Leeds City Council,28/02/2021,Communities and Environment,Waste Management,Supplies and Services,Recycling & Reuse Charges,234,24/02/2021,2102-00293,0,968.71,R,Acumen Waste Services Ltd,No
Http://opendatacommunities.org/id/metropolitan-district-council/leeds,Leeds City Council,28/02/2021,Communities and Environment,Waste Management,Supplies and Services,Recycling & Reuse Charges,234,26/02/2021,2102-00294,0,794.71,R,Acumen Waste Services Ltd,No
Http://opendatacommunities.org/id/metropolitan-district-council/leeds,Leeds City Council,28/02/2021,Communities and Environment,Waste Management,Supplies and Services,Recycling & Reuse Charges,234,26/02/2021,2102-00295,0,812.47,R,Acumen Waste Services Ltd,No
Http://opendatacommunities.org/id/metropolitan-district-council/leeds,Leeds City Council,28/02/2021,Communities and Environment,Waste Management,Supplies and Services,Recycling & Reuse Charges,234,26/02/2021,2102-00296,0,985.05,R,Acumen Waste Services Ltd,No
Http://opendatacommunities.org/id/metropolitan-district-council/leeds,Leeds City Council,28/02/2021,Communities and Environment,Waste Management,Supplies and Services,Recycling & Reuse Charges,234,26/02/2021,2102-00297,0,994.99,R,Acumen Waste Services Ltd,No
Http://opendatacommunities.org/id/metropolitan-district-council/leeds,Leeds City Council,28/02/2021,Communities and Environment,Cleaner Neighbourhood Teams,Premises,Removal Of Workplace Waste,126,26/02/2021,2102-00298,0,116.6,R,Acumen Waste Services Ltd,No
Http://opendatacommunities.org/id/metropolitan-district-council/leeds,Leeds City Council,28/02/2021,Resources and Housing,Shared Services,Supplies and Services,Operational Materials,205,18/02/2021,2102-00299,0,1131.75,R,AD3 Envelope Printers Limited,No
Http://opendatacommunities.org/id/metropolitan-district-council/leeds,Leeds City Council,28/02/2021,Resources and Housing,Shared Services,Supplies and Services,Other Hired And Contracted Services,265,26/02/2021,2102-00300,0,129.52,R,AD3 Envelope Printers Limited,No
Http://opendatacommunities.org/id/metropolitan-district-council/leeds,Leeds City Council,28/02/2021,Resources and Housing,Shared Services,Supplies and Services,Other Hired And Contracted Services,265,26/02/2021,2102-00301,0,107.09,R,AD3 Envelope Printers Limited,No
Http://opendatacommunities.org/id/metropolitan-district-council/leeds,Leeds City Council,28/02/2021,Resources and Housing,Strategic Housing Partnership & Support,Supplies and Services,Other Hired And Contracted Services,265,24/02/2021,2102-00302,0,604.1,R,Adair Paxton LLP,No
Http://opendatacommunities.org/id/metropolitan-district-council/leeds,Leeds City Council,28/02/2021,Resources and Housing,Strategic Housing Partnership & Support,Supplies and Services,Other Hired And Contracted Services,265,26/02/2021,2102-00303,0,209.33,R,Adair Paxton LLP,No
Http://opendatacommunities.org/id/metropolitan-district-council/leeds,Leeds City Council,28/02/2021,Children and Families,Social Care,Third Party Payments,Contact,548,01/02/2021,2102-00304,0,52.6,R,REDACTED PERSONAL DATA,No
Http://opendatacommunities.org/id/metropolitan-district-council/leeds,Leeds City Council,28/02/2021,Children and Families,Social Care,Transfer Payments,Leaving Care Allowances,634,12/02/2021,2102-00305,0,150,R,REDACTED PERSONAL DATA,No
Http://opendatacommunities.org/id/metropolitan-district-council/leeds,Leeds City Council,28/02/2021,Children and Families,Social Care,Transfer Payments,Leaving Care Allowances,634,25/02/2021,2102-00306,0,70,R,REDACTED PERSONAL DATA,No
Http://opendatacommunities.org/id/metropolitan-district-council/leeds,Leeds City Council,28/02/2021,Children and Families,Social Care,Third Party Payments,Placement Support,550,18/02/2021,2102-00307,0,211.2,R,REDACTED PERSONAL DATA,No
Http://opendatacommunities.org/id/metropolitan-district-council/leeds,Leeds City Council,28/02/2021,Communities and Environment,Benefits Wlefare and Poverty,Supplies and Services,Grant Related Expenditure,290,15/02/2021,2102-00308,0,500,R,REDACTED PERSONAL DATA,No
Http://opendatacommunities.org/id/metropolitan-district-council/leeds,Leeds City Council,28/02/2021,Adults and Health,Services For Older People - 65 And Over,Third Party Payments,Nursing Home,570,03/02/2021,2102-00309,0,2584,R,Adbolton Hall,No
Http://opendatacommunities.org/id/metropolitan-district-council/leeds,Leeds City Council,28/02/2021,Resources and Housing,Commercial Services,Transport,Road Fund Licences,323,10/02/2021,2102-00310,0,315,R,Addison Motors Limited,No
Http://opendatacommunities.org/id/metropolitan-district-council/leeds,Leeds City Council,28/02/2021,Resources and Housing,Commercial Services,Transport,Road Fund Licences,323,10/02/2021,2102-00311,0,315,R,Addison Motors Limited,No
Http://opendatacommunities.org/id/metropolitan-district-council/leeds,Leeds City Council,28/02/2021,Resources and Housing,Commercial Services,Transport,Road Fund Licences,323,10/02/2021,2102-00312,0,315,R,Addison Motors Limited,No
Http://opendatacommunities.org/id/metropolitan-district-council/leeds,Leeds City Council,28/02/2021,Resources and Housing,Civic Enterprise Leeds,Capital,TRANSPORT,4,17/02/2021,2102-00313,0,29571.73,C,Addison Motors Limited,No
Http://opendatacommunities.org/id/metropolitan-district-council/leeds,Leeds City Council,28/02/2021,Resources and Housing,Commercial Services,Transport,Road Fund Licences,323,17/02/2021,2102-00314,0,320,R,Addison Motors Limited,No
Http://opendatacommunities.org/id/metropolitan-district-council/leeds,Leeds City Council,28/02/2021,City Development,Highways,Supplies and Services,Clothing & Uniforms,241,04/02/2021,2102-00315,0,3400,R,Addleshaw Goddard LLP,No
Http://opendatacommunities.org/id/metropolitan-district-council/leeds,Leeds City Council,28/02/2021,Adults and Health,Public Health,Third Party Payments,Public Health Commissioned Services,526,15/02/2021,2102-00316,0,3328.04,R,Addlestone & Partners,No
Http://opendatacommunities.org/id/metropolitan-district-council/leeds,Leeds City Council,28/02/2021,Resources and Housing,Technology  ,Employees,Agency Staff,8,05/01/2021,2102-00317,0,76254.96,R,Adecco Alfred Marks,Yes
Http://opendatacommunities.org/id/metropolitan-district-council/leeds,Leeds City Council,28/02/2021,Resources and Housing,Technology  ,Employees,Agency Staff,8,12/01/2021,2102-00318,0,21729.49,R,Adecco Alfred Marks,Yes
Http://opendatacommunities.org/id/metropolitan-district-council/leeds,Leeds City Council,28/02/2021,Communities and Environment,Benefits Wlefare and Poverty,Supplies and Services,Grant Related Expenditure,290,02/02/2021,2102-00319,0,500,R,REDACTED PERSONAL DATA,No
Http://opendatacommunities.org/id/metropolitan-district-council/leeds,Leeds City Council,28/02/2021,Children and Families,Social Care,Third Party Payments,Services Rendered By Other Organisations,511,03/02/2021,2102-00320,0,570.24,R,ADEL PRE SCHOOL,No
Http://opendatacommunities.org/id/metropolitan-district-council/leeds,Leeds City Council,28/02/2021,Children and Families,Social Care,Third Party Payments,Services Rendered By Other Organisations,511,05/02/2021,2102-00321,0,8935.2,R,ADEL PRE SCHOOL,No
Http://opendatacommunities.org/id/metropolitan-district-council/leeds,Leeds City Council,28/02/2021,Communities and Environment,Benefits Wlefare and Poverty,Supplies and Services,Grant Related Expenditure,290,09/02/2021,2102-00322,0,500,R,REDACTED PERSONAL DATA,No
Http://opendatacommunities.org/id/metropolitan-district-council/leeds,Leeds City Council,28/02/2021,Children and Families,Social Care,Third Party Payments,Services Rendered By Other Organisations,511,05/02/2021,2102-00323,0,1576.8,R,REDACTED PERSONAL DATA,No
Http://opendatacommunities.org/id/metropolitan-district-council/leeds,Leeds City Council,28/02/2021,Resources and Housing,Leeds Building Services,Supplies and Services,Operational Materials,205,04/02/2021,2102-00324,0,34.15,R,ADI Global,No
Http://opendatacommunities.org/id/metropolitan-district-council/leeds,Leeds City Council,28/02/2021,Resources and Housing,Leeds Building Services,Supplies and Services,Operational Materials,205,04/02/2021,2102-00325,0,45.3,R,ADI Global,No
Http://opendatacommunities.org/id/metropolitan-district-council/leeds,Leeds City Council,28/02/2021,Resources and Housing,Leeds Building Services,Supplies and Services,Operational Materials,205,04/02/2021,2102-00326,0,47.82,R,ADI Global,No
Http://opendatacommunities.org/id/metropolitan-district-council/leeds,Leeds City Council,28/02/2021,Resources and Housing,Leeds Building Services,Supplies and Services,Operational Materials,205,04/02/2021,2102-00327,0,47.82,R,ADI Global,No
Http://opendatacommunities.org/id/metropolitan-district-council/leeds,Leeds City Council,28/02/2021,Resources and Housing,Leeds Building Services,Supplies and Services,Operational Materials,205,18/02/2021,2102-00328,0,421.14,R,ADI Global,No
Http://opendatacommunities.org/id/metropolitan-district-council/leeds,Leeds City Council,28/02/2021,Resources and Housing,Leeds Building Services,Supplies and Services,Operational Materials,205,19/02/2021,2102-00329,0,34.22,R,ADI Global,No
Http://opendatacommunities.org/id/metropolitan-district-council/leeds,Leeds City Council,28/02/2021,Resources and Housing,Leeds Building Services,Supplies and Services,Operational Materials,205,19/02/2021,2102-00330,0,767.52,R,ADI Global,No
Http://opendatacommunities.org/id/metropolitan-district-council/leeds,Leeds City Council,28/02/2021,Resources and Housing,Leeds Building Services,Supplies and Services,Operational Materials,205,25/02/2021,2102-00331,0,43.87,R,ADI Global,No
Http://opendatacommunities.org/id/metropolitan-district-council/leeds,Leeds City Council,28/02/2021,Resources and Housing,Leeds Building Services,Supplies and Services,Operational Materials,205,25/02/2021,2102-00332,0,474.19,R,ADI Global,No
Http://opendatacommunities.org/id/metropolitan-district-council/leeds,Leeds City Council,28/02/2021,Resources and Housing,Leeds Building Services,Supplies and Services,Operational Materials,205,25/02/2021,2102-00333,0,290.4,R,ADI Global,No
Http://opendatacommunities.org/id/metropolitan-district-council/leeds,Leeds City Council,28/02/2021,Resources and Housing,Leeds Building Services,Supplies and Services,Operational Materials,205,25/02/2021,2102-00334,0,290.4,R,ADI Global,No
Http://opendatacommunities.org/id/metropolitan-district-council/leeds,Leeds City Council,28/02/2021,Resources and Housing,Leeds Building Services,Supplies and Services,Operational Materials,205,25/02/2021,2102-00335,0,35.92,R,ADI Global,No
Http://opendatacommunities.org/id/metropolitan-district-council/leeds,Leeds City Council,28/02/2021,Resources and Housing,Leeds Building Services,Supplies and Services,Operational Materials,205,25/02/2021,2102-00336,0,711.24,R,ADI Global,No
Http://opendatacommunities.org/id/metropolitan-district-council/leeds,Leeds City Council,28/02/2021,Resources and Housing,Leeds Building Services,Supplies and Services,Operational Materials,205,25/02/2021,2102-00337,0,55.79,R,ADI Global,No
Http://opendatacommunities.org/id/metropolitan-district-council/leeds,Leeds City Council,28/02/2021,Resources and Housing,Leeds Building Services,Supplies and Services,Operational Materials,205,25/02/2021,2102-00338,0,34.5,R,ADI Global,No
Http://opendatacommunities.org/id/metropolitan-district-council/leeds,Leeds City Council,28/02/2021,Resources and Housing,Leeds Building Services,Supplies and Services,Operational Materials,205,25/02/2021,2102-00339,0,31.38,R,ADI Global,No
Http://opendatacommunities.org/id/metropolitan-district-council/leeds,Leeds City Council,28/02/2021,Resources and Housing,Leeds Building Services,Supplies and Services,Operational Materials,205,26/02/2021,2102-00340,0,28.03,R,ADI Global,No
Http://opendatacommunities.org/id/metropolitan-district-council/leeds,Leeds City Council,28/02/2021,Resources and Housing,Leeds Building Services,Supplies and Services,Operational Materials,205,26/02/2021,2102-00341,0,232.84,R,ADI Global,No
Http://opendatacommunities.org/id/metropolitan-district-council/leeds,Leeds City Council,28/02/2021,Communities and Environment,Benefits Wlefare and Poverty,Supplies and Services,Grant Related Expenditure,298,09/02/2021,2102-00342,0,500,R,REDACTED PERSONAL DATA,No
Http://opendatacommunities.org/id/metropolitan-district-council/leeds,Leeds City Council,28/02/2021,Children and Families,Social Care  ,Transfer Payments,Children's Homes Clothing Allowance,608,20/01/2021,2102-00343,0,30.07,R,Adidaswww.Adidas.Co.Uk,Yes
Http://opendatacommunities.org/id/metropolitan-district-council/leeds,Leeds City Council,28/02/2021,Communities and Environment,Benefits Wlefare and Poverty,Supplies and Services,Grant Related Expenditure,298,05/02/2021,2102-00344,0,500,R,REDACTED PERSONAL DATA,No
Http://opendatacommunities.org/id/metropolitan-district-council/leeds,Leeds City Council,28/02/2021,Communities and Environment,Benefits Wlefare and Poverty,Supplies and Services,Grant Related Expenditure,290,02/02/2021,2102-00345,0,500,R,REDACTED PERSONAL DATA,No
Http://opendatacommunities.org/id/metropolitan-district-council/leeds,Leeds City Council,28/02/2021,Communities and Environment,Benefits Wlefare and Poverty,Supplies and Services,Grant Related Expenditure,290,18/02/2021,2102-00346,0,500,R,REDACTED PERSONAL DATA,No
Http://opendatacommunities.org/id/metropolitan-district-council/leeds,Leeds City Council,28/02/2021,Insurance,Insurance,Supplies and Services,Insurance Claims,248,10/02/2021,2102-00347,0,1553.9,R,Admiral Law,No
Http://opendatacommunities.org/id/metropolitan-district-council/leeds,Leeds City Council,28/02/2021,Insurance,Insurance,Supplies and Services,Insurance Claims,248,12/02/2021,2102-00348,0,195,R,Admiral Law,No
Http://opendatacommunities.org/id/metropolitan-district-council/leeds,Leeds City Council,28/02/2021,Insurance,Insurance,Supplies and Services,Insurance Claims,248,17/02/2021,2102-00349,0,3256.7,R,Admiral Law,No
Http://opendatacommunities.org/id/metropolitan-district-council/leeds,Leeds City Council,28/02/2021,Insurance,Insurance,Supplies and Services,Insurance Claims,248,17/02/2021,2102-00350,0,576,R,Admiral Law,No
Http://opendatacommunities.org/id/metropolitan-district-council/leeds,Leeds City Council,28/02/2021,City Development,Libraries Arts & Heritage  ,Supplies and Services,Computer Software & Equipment,214,02/01/2021,2102-00351,0,25.28,R,Adobe Creative Cloud,Yes
Http://opendatacommunities.org/id/metropolitan-district-council/leeds,Leeds City Council,28/02/2021,City Development,Libraries Arts & Heritage  ,Supplies and Services,Computer Software & Equipment,214,17/01/2021,2102-00352,0,104.18,R,Adobe Send-For-Sign,Yes
Http://opendatacommunities.org/id/metropolitan-district-council/leeds,Leeds City Council,28/02/2021,Children and Families,Social Care,Third Party Payments,Independent Fostering Agencies,509,05/02/2021,2102-00353,0,3689,R,Adolescent And Childrens Trust,No
Http://opendatacommunities.org/id/metropolitan-district-council/leeds,Leeds City Council,28/02/2021,Children and Families,Social Care,Third Party Payments,Independent Fostering Agencies,509,05/02/2021,2102-00354,0,3503,R,Adolescent And Childrens Trust,No
Http://opendatacommunities.org/id/metropolitan-district-council/leeds,Leeds City Council,28/02/2021,Children and Families,Social Care,Third Party Payments,Independent Fostering Agencies,509,05/02/2021,2102-00355,0,3503,R,Adolescent And Childrens Trust,No
Http://opendatacommunities.org/id/metropolitan-district-council/leeds,Leeds City Council,28/02/2021,Children and Families,Social Care,Third Party Payments,Independent Fostering Agencies,509,05/02/2021,2102-00356,0,3503,R,Adolescent And Childrens Trust,No
Http://opendatacommunities.org/id/metropolitan-district-council/leeds,Leeds City Council,28/02/2021,Children and Families,Social Care,Third Party Payments,Independent Fostering Agencies,509,05/02/2021,2102-00357,0,3503,R,Adolescent And Childrens Trust,No
Http://opendatacommunities.org/id/metropolitan-district-council/leeds,Leeds City Council,28/02/2021,Children and Families,Social Care,Third Party Payments,Independent Fostering Agencies,509,05/02/2021,2102-00358,0,3503,R,Adolescent And Childrens Trust,No
Http://opendatacommunities.org/id/metropolitan-district-council/leeds,Leeds City Council,28/02/2021,Children and Families,Social Care,Third Party Payments,Independent Fostering Agencies,509,05/02/2021,2102-00359,0,3503,R,Adolescent And Childrens Trust,No
Http://opendatacommunities.org/id/metropolitan-district-council/leeds,Leeds City Council,28/02/2021,Children and Families,Social Care,Third Party Payments,Independent Fostering Agencies,509,05/02/2021,2102-00360,0,3689,R,Adolescent And Childrens Trust,No
Http://opendatacommunities.org/id/metropolitan-district-council/leeds,Leeds City Council,28/02/2021,Children and Families,Social Care,Third Party Payments,Independent Fostering Agencies,509,05/02/2021,2102-00361,0,3503,R,Adolescent And Childrens Trust,No
Http://opendatacommunities.org/id/metropolitan-district-council/leeds,Leeds City Council,28/02/2021,Children and Families,Social Care,Third Party Payments,Independent Fostering Agencies,509,05/02/2021,2102-00362,0,4534.99,R,Adolescent And Childrens Trust,No
Http://opendatacommunities.org/id/metropolitan-district-council/leeds,Leeds City Council,28/02/2021,Children and Families,Social Care,Third Party Payments,Independent Fostering Agencies,509,05/02/2021,2102-00363,0,3689,R,Adolescent And Childrens Trust,No
Http://opendatacommunities.org/id/metropolitan-district-council/leeds,Leeds City Council,28/02/2021,Children and Families,Social Care,Third Party Payments,Independent Fostering Agencies,509,05/02/2021,2102-00364,0,3689,R,Adolescent And Childrens Trust,No
Http://opendatacommunities.org/id/metropolitan-district-council/leeds,Leeds City Council,28/02/2021,Adults and Health,Services For Adults Under 65 Mental/Dis,Third Party Payments,Home Care,568,01/02/2021,2102-00365,0,49.5,R,Adopt Healthcare,No
Http://opendatacommunities.org/id/metropolitan-district-council/leeds,Leeds City Council as Accountable Body,28/02/2021,Social Services Pooled Budgets,Jcs For People With Learning Disabilitie,Third Party Payments,Residential,580,25/02/2021,2102-00366,0,2609.36,R,ADRIAN HOUSE,No
Http://opendatacommunities.org/id/metropolitan-district-council/leeds,Leeds City Council,28/02/2021,Children and Families,Social Care,Third Party Payments,Section 17,551,05/02/2021,2102-00367,0,142.86,R,REDACTED PERSONAL DATA,No
Http://opendatacommunities.org/id/metropolitan-district-council/leeds,Leeds City Council,28/02/2021,Children and Families,Social Care,Third Party Payments,Section 17,551,12/02/2021,2102-00368,0,142.86,R,REDACTED PERSONAL DATA,No
Http://opendatacommunities.org/id/metropolitan-district-council/leeds,Leeds City Council,28/02/2021,Children and Families,Social Care,Third Party Payments,Section 17,551,19/02/2021,2102-00369,0,142.86,R,REDACTED PERSONAL DATA,No
Http://opendatacommunities.org/id/metropolitan-district-council/leeds,Leeds City Council,28/02/2021,Children and Families,Social Care,Third Party Payments,Section 17,551,26/02/2021,2102-00370,0,142.86,R,REDACTED PERSONAL DATA,No
Http://opendatacommunities.org/id/metropolitan-district-council/leeds,Leeds City Council,28/02/2021,Resources and Housing,Leeds Building Services,Supplies and Services,Other Hired And Contracted Services,265,17/02/2021,2102-00371,0,720,R,Advanced Diesel Engineering,No
Http://opendatacommunities.org/id/metropolitan-district-council/leeds,Leeds City Council as Accountable Body,28/02/2021,Social Services Pooled Budgets,Jcs For People With Learning Disabilitie,Third Party Payments,Home Care,568,03/02/2021,2102-00372,0,2271.5,R,Advantage Healthcare Ltd,No
Http://opendatacommunities.org/id/metropolitan-district-council/leeds,Leeds City Council as Accountable Body,28/02/2021,Social Services Pooled Budgets,Jcs For People With Learning Disabilitie,Third Party Payments,Home Care,568,03/02/2021,2102-00373,0,2070,R,Advantage Healthcare Ltd,No
Http://opendatacommunities.org/id/metropolitan-district-council/leeds,Leeds City Council as Accountable Body,28/02/2021,Social Services Pooled Budgets,Jcs For People With Learning Disabilitie,Third Party Payments,Home Care,568,03/02/2021,2102-00374,0,4023.31,R,Advantage Healthcare Ltd,No
Http://opendatacommunities.org/id/metropolitan-district-council/leeds,Leeds City Council as Accountable Body,28/02/2021,Social Services Pooled Budgets,Jcs For People With Learning Disabilitie,Third Party Payments,Home Care,568,11/02/2021,2102-00375,0,343,R,Advantage Healthcare Ltd,No
Http://opendatacommunities.org/id/metropolitan-district-council/leeds,Leeds City Council as Accountable Body,28/02/2021,Social Services Pooled Budgets,Jcs For People With Learning Disabilitie,Third Party Payments,Home Care,568,11/02/2021,2102-00376,0,2501.25,R,Advantage Healthcare Ltd,No
Http://opendatacommunities.org/id/metropolitan-district-council/leeds,Leeds City Council as Accountable Body,28/02/2021,Social Services Pooled Budgets,Jcs For People With Learning Disabilitie,Third Party Payments,Home Care,568,11/02/2021,2102-00377,0,1607.91,R,Advantage Healthcare Ltd,No
Http://opendatacommunities.org/id/metropolitan-district-council/leeds,Leeds City Council as Accountable Body,28/02/2021,Social Services Pooled Budgets,Jcs For People With Learning Disabilitie,Third Party Payments,Home Care,568,12/02/2021,2102-00378,0,3290.14,R,Advantage Healthcare Ltd,No
Http://opendatacommunities.org/id/metropolitan-district-council/leeds,Leeds City Council as Accountable Body,28/02/2021,Social Services Pooled Budgets,Jcs For People With Learning Disabilitie,Third Party Payments,Home Care,568,12/02/2021,2102-00379,0,2156.25,R,Advantage Healthcare Ltd,No
Http://opendatacommunities.org/id/metropolitan-district-council/leeds,Leeds City Council as Accountable Body,28/02/2021,Social Services Pooled Budgets,Jcs For People With Learning Disabilitie,Third Party Payments,Home Care,568,12/02/2021,2102-00380,0,174.75,R,Advantage Healthcare Ltd,No
Http://opendatacommunities.org/id/metropolitan-district-council/leeds,Leeds City Council as Accountable Body,28/02/2021,Social Services Pooled Budgets,Jcs For People With Learning Disabilitie,Third Party Payments,Home Care,568,23/02/2021,2102-00381,0,660.1,R,Advantage Healthcare Ltd,No
Http://opendatacommunities.org/id/metropolitan-district-council/leeds,Leeds City Council as Accountable Body,28/02/2021,Social Services Pooled Budgets,Jcs For People With Learning Disabilitie,Third Party Payments,Home Care,568,23/02/2021,2102-00382,0,1552.5,R,Advantage Healthcare Ltd,No
Http://opendatacommunities.org/id/metropolitan-district-council/leeds,Leeds City Council,28/02/2021,Resources and Housing,HRA Council Housing Growth Programme,Capital,LAND,1,09/02/2021,2102-00383,0,67750,C,Advantage Property Lawyers,No
Http://opendatacommunities.org/id/metropolitan-district-council/leeds,Leeds City Council,28/02/2021,Resources and Housing,HRA Council Housing Growth Programme,Capital,LAND,1,22/02/2021,2102-00384,0,250,C,Advantage Property Lawyers,No
Http://opendatacommunities.org/id/metropolitan-district-council/leeds,Leeds City Council as Accountable Body,28/02/2021,Social Services Pooled Budgets,Jcs For People With Learning Disabilitie,Third Party Payments,Residential,580,03/02/2021,2102-00385,0,17134.76,R,ADVITAM LTD,No
Http://opendatacommunities.org/id/metropolitan-district-council/leeds,Leeds City Council,28/02/2021,Adults and Health,Services For Older People - 65 And Over,Third Party Payments,Payments To Voluntary Organisations,561,12/02/2021,2102-00386,0,103916.67,R,Advonet,No
Http://opendatacommunities.org/id/metropolitan-district-council/leeds,Leeds City Council as Accountable Body,28/02/2021,Social Services Pooled Budgets,Jcs For People With Learning Disabilitie,Supplies and Services,Other Hired And Contracted Services,265,17/02/2021,2102-00387,0,75,R,Advonet,No
Http://opendatacommunities.org/id/metropolitan-district-council/leeds,Leeds City Council,28/02/2021,Adults and Health,Services For Adults Under 65 Mental/Dis,Third Party Payments,Fees - Level 4,520,02/02/2021,2102-00388,0,198,R,AE BIA Assessments Limited,No
Http://opendatacommunities.org/id/metropolitan-district-council/leeds,Leeds City Council,28/02/2021,Adults and Health,Services For Adults Under 65 Mental/Dis,Third Party Payments,Fees - Level 4,520,05/02/2021,2102-00389,0,198,R,AE BIA Assessments Limited,No
Http://opendatacommunities.org/id/metropolitan-district-council/leeds,Leeds City Council,28/02/2021,Adults and Health,Services For Adults Under 65 Mental/Dis,Third Party Payments,Fees - Level 4,520,11/02/2021,2102-00390,0,198,R,AE BIA Assessments Limited,No
Http://opendatacommunities.org/id/metropolitan-district-council/leeds,Leeds City Council,28/02/2021,Adults and Health,Services For Adults Under 65 Mental/Dis,Third Party Payments,Fees - Level 4,520,17/02/2021,2102-00391,0,198,R,AE BIA Assessments Limited,No
Http://opendatacommunities.org/id/metropolitan-district-council/leeds,Leeds City Council,28/02/2021,Adults and Health,Services For Adults Under 65 Mental/Dis,Third Party Payments,Fees - Level 4,520,17/02/2021,2102-00392,0,198,R,AE BIA Assessments Limited,No
Http://opendatacommunities.org/id/metropolitan-district-council/leeds,Leeds City Council,28/02/2021,Adults and Health,Services For Adults Under 65 Mental/Dis,Third Party Payments,Fees - Level 4,520,17/02/2021,2102-00393,0,198,R,AE BIA Assessments Limited,No
Http://opendatacommunities.org/id/metropolitan-district-council/leeds,Leeds City Council,28/02/2021,Adults and Health,Services For Adults Under 65 Mental/Dis,Third Party Payments,Fees - Level 4,520,18/02/2021,2102-00394,0,198,R,AE BIA Assessments Limited,No
Http://opendatacommunities.org/id/metropolitan-district-council/leeds,Leeds City Council,28/02/2021,Adults and Health,Services For Adults Under 65 Mental/Dis,Third Party Payments,Fees - Level 4,520,18/02/2021,2102-00395,0,198,R,AE BIA Assessments Limited,No
Http://opendatacommunities.org/id/metropolitan-district-council/leeds,Leeds City Council,28/02/2021,Adults and Health,Services For Adults Under 65 Mental/Dis,Third Party Payments,Fees - Level 4,520,24/02/2021,2102-00396,0,198,R,AE BIA Assessments Limited,No
Http://opendatacommunities.org/id/metropolitan-district-council/leeds,Leeds City Council,28/02/2021,Adults and Health,Services For Adults Under 65 Mental/Dis,Third Party Payments,Fees - Level 4,520,24/02/2021,2102-00397,0,198,R,AE BIA Assessments Limited,No
Http://opendatacommunities.org/id/metropolitan-district-council/leeds,Leeds City Council,28/02/2021,Adults and Health,Services For Adults Under 65 Mental/Dis,Third Party Payments,Fees - Level 4,520,24/02/2021,2102-00398,0,198,R,AE BIA Assessments Limited,No
Http://opendatacommunities.org/id/metropolitan-district-council/leeds,Leeds City Council,28/02/2021,City Development,Highways,Capital,OTHER COSTS,7,15/02/2021,2102-00399,0,12598,C,Aecom Limited,No
Http://opendatacommunities.org/id/metropolitan-district-council/leeds,Leeds City Council,28/02/2021,City Development,Highways,Capital,OTHER COSTS,7,17/02/2021,2102-00400,0,50567.5,C,Aecom Limited,No
Http://opendatacommunities.org/id/metropolitan-district-council/leeds,Leeds City Council,28/02/2021,City Development,Highways,Capital,OTHER COSTS,7,18/02/2021,2102-00401,0,50567.5,C,Aecom Limited,No
Http://opendatacommunities.org/id/metropolitan-district-council/leeds,Leeds City Council,28/02/2021,City Development,Highways,Capital,OTHER COSTS,7,23/02/2021,2102-00402,0,56290.79,C,Aecom Limited,No
Http://opendatacommunities.org/id/metropolitan-district-council/leeds,Leeds City Council,28/02/2021,Adults and Health,Services For Adults Under 65 Mental/Dis,Third Party Payments,Home Care,568,04/02/2021,2102-00403,0,1229.9,R,Aegis Care Solutions Ltd,No
Http://opendatacommunities.org/id/metropolitan-district-council/leeds,Leeds City Council,28/02/2021,Adults and Health,Services For Adults Under 65 Mental/Dis,Third Party Payments,Home Care,568,04/02/2021,2102-00404,0,1607.7,R,Aegis Care Solutions Ltd,No
Http://opendatacommunities.org/id/metropolitan-district-council/leeds,Leeds City Council,28/02/2021,Adults and Health,Services For Adults Under 65 Mental/Dis,Third Party Payments,Home Care,568,04/02/2021,2102-00405,0,1315.5,R,Aegis Care Solutions Ltd,No
Http://opendatacommunities.org/id/metropolitan-district-council/leeds,Leeds City Council,28/02/2021,Adults and Health,Services For Adults Under 65 Mental/Dis,Third Party Payments,Home Care,568,04/02/2021,2102-00406,0,284.8,R,Aegis Care Solutions Ltd,No
Http://opendatacommunities.org/id/metropolitan-district-council/leeds,Leeds City Council,28/02/2021,Adults and Health,Services For Adults Under 65 Mental/Dis,Third Party Payments,Home Care,568,04/02/2021,2102-00407,0,1410.6,R,Aegis Care Solutions Ltd,No
Http://opendatacommunities.org/id/metropolitan-district-council/leeds,Leeds City Council,28/02/2021,Adults and Health,Services For Adults Under 65 Mental/Dis,Third Party Payments,Home Care,568,04/02/2021,2102-00408,0,749.6,R,Aegis Care Solutions Ltd,No
Http://opendatacommunities.org/id/metropolitan-district-council/leeds,Leeds City Council,28/02/2021,Adults and Health,Services For Adults Under 65 Mental/Dis,Third Party Payments,Home Care,568,04/02/2021,2102-00409,0,4246.4,R,Aegis Care Solutions Ltd,No
Http://opendatacommunities.org/id/metropolitan-district-council/leeds,Leeds City Council,28/02/2021,Adults and Health,Services For Adults Under 65 Mental/Dis,Third Party Payments,Home Care,568,04/02/2021,2102-00410,0,2006,R,Aegis Care Solutions Ltd,No
Http://opendatacommunities.org/id/metropolitan-district-council/leeds,Leeds City Council,28/02/2021,Adults and Health,Services For Adults Under 65 Mental/Dis,Third Party Payments,Home Care,568,04/02/2021,2102-00411,0,703.2,R,Aegis Care Solutions Ltd,No
Http://opendatacommunities.org/id/metropolitan-district-council/leeds,Leeds City Council,28/02/2021,Adults and Health,Services For Adults Under 65 Mental/Dis,Third Party Payments,Home Care,568,04/02/2021,2102-00412,0,1143.6,R,Aegis Care Solutions Ltd,No
Http://opendatacommunities.org/id/metropolitan-district-council/leeds,Leeds City Council,28/02/2021,Adults and Health,Other Adult Services,Third Party Payments,Residential,580,12/02/2021,2102-00413,0,3823.04,R,Aegis Care Solutions Ltd,No
Http://opendatacommunities.org/id/metropolitan-district-council/leeds,Leeds City Council,28/02/2021,Adults and Health,Services For Older People - 65 And Over,Third Party Payments,Home Care,568,24/02/2021,2102-00414,0,20902.93,R,Aegis Care Solutions Ltd,No
Http://opendatacommunities.org/id/metropolitan-district-council/leeds,Leeds City Council,28/02/2021,Adults and Health,Services For Older People Under 65 P/Dis,Third Party Payments,Home Care,568,24/02/2021,2102-00415,0,6347.95,R,Aegis Care Solutions Ltd,No
Http://opendatacommunities.org/id/metropolitan-district-council/leeds,Leeds City Council,28/02/2021,Adults and Health,Services For Older People Under 65 P/Dis,Third Party Payments,HCAIT Community Support,575,24/02/2021,2102-00416,0,76.6,R,Aegis Care Solutions Ltd,No
Http://opendatacommunities.org/id/metropolitan-district-council/leeds,Leeds City Council as Accountable Body,28/02/2021,Social Services Pooled Budgets,Jcs For People With Learning Disabilitie,Third Party Payments,Home Care,568,24/02/2021,2102-00417,0,1948.8,R,Aegis Care Solutions Ltd,No
Http://opendatacommunities.org/id/metropolitan-district-council/leeds,Leeds City Council,28/02/2021,City Development,Libraries Arts & Heritage,Transport,Hire Of Movable Plant & Machinery,315,18/02/2021,2102-00418,0,354.25,R,Aesg Ltd,No
Http://opendatacommunities.org/id/metropolitan-district-council/leeds,Leeds City Council,28/02/2021,Adults and Health,Services For Older People Under 65 P/Dis,Third Party Payments,Home Care,568,02/02/2021,2102-00419,0,1438.11,R,Affinity Trust,No
Http://opendatacommunities.org/id/metropolitan-district-council/leeds,Leeds City Council,28/02/2021,Adults and Health,Services For Older People Under 65 P/Dis,Third Party Payments,Home Care,568,02/02/2021,2102-00420,0,807.36,R,Affinity Trust,No
Http://opendatacommunities.org/id/metropolitan-district-council/leeds,Leeds City Council,28/02/2021,Adults and Health,Services For Older People Under 65 P/Dis,Third Party Payments,Home Care,568,02/02/2021,2102-00421,0,807.36,R,Affinity Trust,No
Http://opendatacommunities.org/id/metropolitan-district-council/leeds,Leeds City Council,28/02/2021,Adults and Health,Services For Older People Under 65 P/Dis,Third Party Payments,Home Care,568,02/02/2021,2102-00422,0,807.36,R,Affinity Trust,No
Http://opendatacommunities.org/id/metropolitan-district-council/leeds,Leeds City Council as Accountable Body,28/02/2021,Social Services Pooled Budgets,Jcs For People With Learning Disabilitie,Third Party Payments,Home Care,568,02/02/2021,2102-00423,0,-1608.75,R,Affinity Trust,No
Http://opendatacommunities.org/id/metropolitan-district-council/leeds,Leeds City Council,28/02/2021,Adults and Health,Services For Older People Under 65 P/Dis,Third Party Payments,Home Care,568,02/02/2021,2102-00424,0,-1438.11,R,Affinity Trust,No
Http://opendatacommunities.org/id/metropolitan-district-council/leeds,Leeds City Council,28/02/2021,Adults and Health,Services For Older People Under 65 P/Dis,Third Party Payments,Home Care,568,02/02/2021,2102-00425,0,1572.67,R,Affinity Trust,No
Http://opendatacommunities.org/id/metropolitan-district-council/leeds,Leeds City Council,28/02/2021,Adults and Health,Services For Older People Under 65 P/Dis,Third Party Payments,Home Care,568,02/02/2021,2102-00426,0,-1328.78,R,Affinity Trust,No
Http://opendatacommunities.org/id/metropolitan-district-council/leeds,Leeds City Council as Accountable Body,28/02/2021,Social Services Pooled Budgets,Jcs For People With Learning Disabilitie,Third Party Payments,Home Care,568,05/02/2021,2102-00427,0,1342.32,R,Affinity Trust,No
Http://opendatacommunities.org/id/metropolitan-district-council/leeds,Leeds City Council as Accountable Body,28/02/2021,Social Services Pooled Budgets,Jcs For People With Learning Disabilitie,Third Party Payments,Home Care,568,05/02/2021,2102-00428,0,239.7,R,Affinity Trust,No
Http://opendatacommunities.org/id/metropolitan-district-council/leeds,Leeds City Council as Accountable Body,28/02/2021,Social Services Pooled Budgets,Jcs For People With Learning Disabilitie,Third Party Payments,Home Care,568,05/02/2021,2102-00429,0,990.76,R,Affinity Trust,No
Http://opendatacommunities.org/id/metropolitan-district-council/leeds,Leeds City Council as Accountable Body,28/02/2021,Social Services Pooled Budgets,Jcs For People With Learning Disabilitie,Third Party Payments,Day Centre,564,05/02/2021,2102-00430,0,416.64,R,Affinity Trust,No
Http://opendatacommunities.org/id/metropolitan-district-council/leeds,Leeds City Council as Accountable Body,28/02/2021,Social Services Pooled Budgets,Jcs For People With Learning Disabilitie,Third Party Payments,Home Care,568,05/02/2021,2102-00431,0,1608.75,R,Affinity Trust,No
Http://opendatacommunities.org/id/metropolitan-district-council/leeds,Leeds City Council as Accountable Body,28/02/2021,Social Services Pooled Budgets,Jcs For People With Learning Disabilitie,Third Party Payments,Home Care,568,05/02/2021,2102-00432,0,1211.04,R,Affinity Trust,No
Http://opendatacommunities.org/id/metropolitan-district-council/leeds,Leeds City Council as Accountable Body,28/02/2021,Social Services Pooled Budgets,Jcs For People With Learning Disabilitie,Third Party Payments,Home Care,568,05/02/2021,2102-00433,0,647.19,R,Affinity Trust,No
Http://opendatacommunities.org/id/metropolitan-district-council/leeds,Leeds City Council as Accountable Body,28/02/2021,Social Services Pooled Budgets,Jcs For People With Learning Disabilitie,Third Party Payments,Day Centre,564,05/02/2021,2102-00434,0,191.76,R,Affinity Trust,No
Http://opendatacommunities.org/id/metropolitan-district-council/leeds,Leeds City Council as Accountable Body,28/02/2021,Social Services Pooled Budgets,Jcs For People With Learning Disabilitie,Third Party Payments,Home Care,568,05/02/2021,2102-00435,0,408,R,Affinity Trust,No
Http://opendatacommunities.org/id/metropolitan-district-council/leeds,Leeds City Council as Accountable Body,28/02/2021,Social Services Pooled Budgets,Jcs For People With Learning Disabilitie,Third Party Payments,Home Care,568,05/02/2021,2102-00436,0,703.12,R,Affinity Trust,No
Http://opendatacommunities.org/id/metropolitan-district-council/leeds,Leeds City Council as Accountable Body,28/02/2021,Social Services Pooled Budgets,Jcs For People With Learning Disabilitie,Third Party Payments,Home Care,568,05/02/2021,2102-00437,0,408.64,R,Affinity Trust,No
Http://opendatacommunities.org/id/metropolitan-district-council/leeds,Leeds City Council as Accountable Body,28/02/2021,Social Services Pooled Budgets,Jcs For People With Learning Disabilitie,Third Party Payments,Home Care,568,05/02/2021,2102-00438,0,538.24,R,Affinity Trust,No
Http://opendatacommunities.org/id/metropolitan-district-council/leeds,Leeds City Council as Accountable Body,28/02/2021,Social Services Pooled Budgets,Jcs For People With Learning Disabilitie,Third Party Payments,Home Care,568,05/02/2021,2102-00439,0,958.8,R,Affinity Trust,No
Http://opendatacommunities.org/id/metropolitan-district-council/leeds,Leeds City Council as Accountable Body,28/02/2021,Social Services Pooled Budgets,Jcs For People With Learning Disabilitie,Third Party Payments,Home Care,568,05/02/2021,2102-00440,0,383.52,R,Affinity Trust,No
Http://opendatacommunities.org/id/metropolitan-district-council/leeds,Leeds City Council as Accountable Body,28/02/2021,Social Services Pooled Budgets,Jcs For People With Learning Disabilitie,Third Party Payments,Home Care,568,05/02/2021,2102-00441,0,127.84,R,Affinity Trust,No
Http://opendatacommunities.org/id/metropolitan-district-council/leeds,Leeds City Council as Accountable Body,28/02/2021,Social Services Pooled Budgets,Jcs For People With Learning Disabilitie,Third Party Payments,Home Care,568,05/02/2021,2102-00442,0,207.74,R,Affinity Trust,No
Http://opendatacommunities.org/id/metropolitan-district-council/leeds,Leeds City Council as Accountable Body,28/02/2021,Social Services Pooled Budgets,Jcs For People With Learning Disabilitie,Third Party Payments,Home Care,568,05/02/2021,2102-00443,0,420,R,Affinity Trust,No
Http://opendatacommunities.org/id/metropolitan-district-council/leeds,Leeds City Council as Accountable Body,28/02/2021,Social Services Pooled Budgets,Jcs For People With Learning Disabilitie,Third Party Payments,Day Centre,564,05/02/2021,2102-00444,0,1440,R,Affinity Trust,No
Http://opendatacommunities.org/id/metropolitan-district-council/leeds,Leeds City Council as Accountable Body,28/02/2021,Social Services Pooled Budgets,Jcs For People With Learning Disabilitie,Third Party Payments,Home Care,568,05/02/2021,2102-00445,0,1080,R,Affinity Trust,No
Http://opendatacommunities.org/id/metropolitan-district-council/leeds,Leeds City Council as Accountable Body,28/02/2021,Social Services Pooled Budgets,Jcs For People With Learning Disabilitie,Third Party Payments,Home Care,568,05/02/2021,2102-00446,0,1080,R,Affinity Trust,No
Http://opendatacommunities.org/id/metropolitan-district-council/leeds,Leeds City Council as Accountable Body,28/02/2021,Social Services Pooled Budgets,Jcs For People With Learning Disabilitie,Third Party Payments,Day Centre,564,05/02/2021,2102-00447,0,720,R,Affinity Trust,No
Http://opendatacommunities.org/id/metropolitan-district-council/leeds,Leeds City Council as Accountable Body,28/02/2021,Social Services Pooled Budgets,Jcs For People With Learning Disabilitie,Third Party Payments,Home Care,568,05/02/2021,2102-00448,0,1560,R,Affinity Trust,No
Http://opendatacommunities.org/id/metropolitan-district-council/leeds,Leeds City Council as Accountable Body,28/02/2021,Social Services Pooled Budgets,Jcs For People With Learning Disabilitie,Third Party Payments,Home Care,568,05/02/2021,2102-00449,0,2640,R,Affinity Trust,No
Http://opendatacommunities.org/id/metropolitan-district-council/leeds,Leeds City Council as Accountable Body,28/02/2021,Social Services Pooled Budgets,Jcs For People With Learning Disabilitie,Third Party Payments,Home Care,568,05/02/2021,2102-00450,0,2011.2,R,Affinity Trust,No
Http://opendatacommunities.org/id/metropolitan-district-council/leeds,Leeds City Council as Accountable Body,28/02/2021,Social Services Pooled Budgets,Jcs For People With Learning Disabilitie,Third Party Payments,Home Care,568,05/02/2021,2102-00451,0,1980,R,Affinity Trust,No
Http://opendatacommunities.org/id/metropolitan-district-council/leeds,Leeds City Council as Accountable Body,28/02/2021,Social Services Pooled Budgets,Jcs For People With Learning Disabilitie,Third Party Payments,Day Centre,564,05/02/2021,2102-00452,0,1080,R,Affinity Trust,No
Http://opendatacommunities.org/id/metropolitan-district-council/leeds,Leeds City Council as Accountable Body,28/02/2021,Social Services Pooled Budgets,Jcs For People With Learning Disabilitie,Third Party Payments,Day Centre,564,05/02/2021,2102-00453,0,2031.48,R,Affinity Trust,No
Http://opendatacommunities.org/id/metropolitan-district-council/leeds,Leeds City Council as Accountable Body,28/02/2021,Social Services Pooled Budgets,Jcs For People With Learning Disabilitie,Third Party Payments,Home Care,568,05/02/2021,2102-00454,0,770.96,R,Affinity Trust,No
Http://opendatacommunities.org/id/metropolitan-district-council/leeds,Leeds City Council as Accountable Body,28/02/2021,Social Services Pooled Budgets,Jcs For People With Learning Disabilitie,Third Party Payments,Home Care,568,05/02/2021,2102-00455,0,3446.8,R,Affinity Trust,No
Http://opendatacommunities.org/id/metropolitan-district-council/leeds,Leeds City Council as Accountable Body,28/02/2021,Social Services Pooled Budgets,Jcs For People With Learning Disabilitie,Third Party Payments,Day Centre,564,05/02/2021,2102-00456,0,525.72,R,Affinity Trust,No
Http://opendatacommunities.org/id/metropolitan-district-council/leeds,Leeds City Council as Accountable Body,28/02/2021,Social Services Pooled Budgets,Jcs For People With Learning Disabilitie,Third Party Payments,Home Care,568,05/02/2021,2102-00457,0,804.48,R,Affinity Trust,No
Http://opendatacommunities.org/id/metropolitan-district-council/leeds,Leeds City Council as Accountable Body,28/02/2021,Social Services Pooled Budgets,Jcs For People With Learning Disabilitie,Third Party Payments,Home Care,568,05/02/2021,2102-00458,0,1800,R,Affinity Trust,No
Http://opendatacommunities.org/id/metropolitan-district-council/leeds,Leeds City Council as Accountable Body,28/02/2021,Social Services Pooled Budgets,Jcs For People With Learning Disabilitie,Third Party Payments,Home Care,568,05/02/2021,2102-00459,0,1005.6,R,Affinity Trust,No
Http://opendatacommunities.org/id/metropolitan-district-council/leeds,Leeds City Council as Accountable Body,28/02/2021,Social Services Pooled Budgets,Jcs For People With Learning Disabilitie,Third Party Payments,Home Care,568,05/02/2021,2102-00460,0,360,R,Affinity Trust,No
Http://opendatacommunities.org/id/metropolitan-district-council/leeds,Leeds City Council as Accountable Body,28/02/2021,Social Services Pooled Budgets,Jcs For People With Learning Disabilitie,Third Party Payments,Day Centre,564,05/02/2021,2102-00461,0,714.78,R,Affinity Trust,No
Http://opendatacommunities.org/id/metropolitan-district-council/leeds,Leeds City Council as Accountable Body,28/02/2021,Social Services Pooled Budgets,Jcs For People With Learning Disabilitie,Third Party Payments,Home Care,568,05/02/2021,2102-00462,0,2346.4,R,Affinity Trust,No
Http://opendatacommunities.org/id/metropolitan-district-council/leeds,Leeds City Council as Accountable Body,28/02/2021,Social Services Pooled Budgets,Jcs For People With Learning Disabilitie,Third Party Payments,Day Centre,564,05/02/2021,2102-00463,0,1440,R,Affinity Trust,No
Http://opendatacommunities.org/id/metropolitan-district-council/leeds,Leeds City Council as Accountable Body,28/02/2021,Social Services Pooled Budgets,Jcs For People With Learning Disabilitie,Third Party Payments,Home Care,568,05/02/2021,2102-00464,0,112.8,R,Affinity Trust,No
Http://opendatacommunities.org/id/metropolitan-district-council/leeds,Leeds City Council,28/02/2021,Adults and Health,Other Adult Services,Third Party Payments,Residential,580,08/02/2021,2102-00465,0,9438.13,R,Affinity Trust,No
Http://opendatacommunities.org/id/metropolitan-district-council/leeds,Leeds City Council as Accountable Body,28/02/2021,Social Services Pooled Budgets,Jcs For People With Learning Disabilitie,Third Party Payments,Home Care,568,09/02/2021,2102-00466,0,1504.72,R,Affinity Trust,No
Http://opendatacommunities.org/id/metropolitan-district-council/leeds,Leeds City Council as Accountable Body,28/02/2021,Social Services Pooled Budgets,Jcs For People With Learning Disabilitie,Third Party Payments,Home Care,568,11/02/2021,2102-00467,0,3979.02,R,Affinity Trust,No
Http://opendatacommunities.org/id/metropolitan-district-council/leeds,Leeds City Council as Accountable Body,28/02/2021,Social Services Pooled Budgets,Jcs For People With Learning Disabilitie,Third Party Payments,Home Care,568,11/02/2021,2102-00468,0,319.6,R,Affinity Trust,No
Http://opendatacommunities.org/id/metropolitan-district-council/leeds,Leeds City Council,28/02/2021,Adults and Health,Assessment And Care Management,Third Party Payments,Home Care,568,11/02/2021,2102-00469,0,62.84,R,Affinity Trust,No
Http://opendatacommunities.org/id/metropolitan-district-council/leeds,Leeds City Council,28/02/2021,Adults and Health,Services For Adults Under 65 Mental/Dis,Third Party Payments,HCAIT Community Support,575,11/02/2021,2102-00470,0,336.4,R,Affinity Trust,No
Http://opendatacommunities.org/id/metropolitan-district-council/leeds,Leeds City Council,28/02/2021,Adults and Health,Services For Older People - 65 And Over,Third Party Payments,HCAIT Community Support,575,11/02/2021,2102-00471,0,479.4,R,Affinity Trust,No
Http://opendatacommunities.org/id/metropolitan-district-council/leeds,Leeds City Council as Accountable Body,28/02/2021,Social Services Pooled Budgets,Jcs For People With Learning Disabilitie,Third Party Payments,Home Care,568,11/02/2021,2102-00472,0,-3979.02,R,Affinity Trust,No
Http://opendatacommunities.org/id/metropolitan-district-council/leeds,Leeds City Council as Accountable Body,28/02/2021,Social Services Pooled Budgets,Jcs For People With Learning Disabilitie,Third Party Payments,Home Care,568,19/02/2021,2102-00473,0,1539.03,R,Affinity Trust,No
Http://opendatacommunities.org/id/metropolitan-district-council/leeds,Leeds City Council as Accountable Body,28/02/2021,Social Services Pooled Budgets,Jcs For People With Learning Disabilitie,Third Party Payments,Home Care,568,26/02/2021,2102-00474,0,3835.2,R,Affinity Trust,No
Http://opendatacommunities.org/id/metropolitan-district-council/leeds,Leeds City Council as Accountable Body,28/02/2021,Social Services Pooled Budgets,Jcs For People With Learning Disabilitie,Third Party Payments,Day Centre,564,26/02/2021,2102-00475,0,416.64,R,Affinity Trust,No
Http://opendatacommunities.org/id/metropolitan-district-council/leeds,Leeds City Council as Accountable Body,28/02/2021,Social Services Pooled Budgets,Jcs For People With Learning Disabilitie,Third Party Payments,Home Care,568,26/02/2021,2102-00476,0,1513.8,R,Affinity Trust,No
Http://opendatacommunities.org/id/metropolitan-district-council/leeds,Leeds City Council as Accountable Body,28/02/2021,Social Services Pooled Budgets,Jcs For People With Learning Disabilitie,Third Party Payments,Home Care,568,26/02/2021,2102-00477,0,1211.04,R,Affinity Trust,No
Http://opendatacommunities.org/id/metropolitan-district-council/leeds,Leeds City Council as Accountable Body,28/02/2021,Social Services Pooled Budgets,Jcs For People With Learning Disabilitie,Third Party Payments,Home Care,568,26/02/2021,2102-00478,0,495.38,R,Affinity Trust,No
Http://opendatacommunities.org/id/metropolitan-district-council/leeds,Leeds City Council as Accountable Body,28/02/2021,Social Services Pooled Budgets,Jcs For People With Learning Disabilitie,Third Party Payments,Day Centre,564,26/02/2021,2102-00479,0,271.66,R,Affinity Trust,No
Http://opendatacommunities.org/id/metropolitan-district-council/leeds,Leeds City Council as Accountable Body,28/02/2021,Social Services Pooled Budgets,Jcs For People With Learning Disabilitie,Third Party Payments,Home Care,568,26/02/2021,2102-00480,0,408,R,Affinity Trust,No
Http://opendatacommunities.org/id/metropolitan-district-council/leeds,Leeds City Council as Accountable Body,28/02/2021,Social Services Pooled Budgets,Jcs For People With Learning Disabilitie,Third Party Payments,Home Care,568,26/02/2021,2102-00481,0,719.1,R,Affinity Trust,No
Http://opendatacommunities.org/id/metropolitan-district-council/leeds,Leeds City Council as Accountable Body,28/02/2021,Social Services Pooled Budgets,Jcs For People With Learning Disabilitie,Third Party Payments,Home Care,568,26/02/2021,2102-00482,0,3627.46,R,Affinity Trust,No
Http://opendatacommunities.org/id/metropolitan-district-council/leeds,Leeds City Council as Accountable Body,28/02/2021,Social Services Pooled Budgets,Jcs For People With Learning Disabilitie,Third Party Payments,Home Care,568,26/02/2021,2102-00483,0,408.64,R,Affinity Trust,No
Http://opendatacommunities.org/id/metropolitan-district-council/leeds,Leeds City Council as Accountable Body,28/02/2021,Social Services Pooled Budgets,Jcs For People With Learning Disabilitie,Third Party Payments,Home Care,568,26/02/2021,2102-00484,0,437.32,R,Affinity Trust,No
Http://opendatacommunities.org/id/metropolitan-district-council/leeds,Leeds City Council as Accountable Body,28/02/2021,Social Services Pooled Budgets,Jcs For People With Learning Disabilitie,Third Party Payments,Home Care,568,26/02/2021,2102-00485,0,958.8,R,Affinity Trust,No
Http://opendatacommunities.org/id/metropolitan-district-council/leeds,Leeds City Council as Accountable Body,28/02/2021,Social Services Pooled Budgets,Jcs For People With Learning Disabilitie,Third Party Payments,Home Care,568,26/02/2021,2102-00486,0,383.52,R,Affinity Trust,No
Http://opendatacommunities.org/id/metropolitan-district-council/leeds,Leeds City Council as Accountable Body,28/02/2021,Social Services Pooled Budgets,Jcs For People With Learning Disabilitie,Third Party Payments,Home Care,568,26/02/2021,2102-00487,0,95.88,R,Affinity Trust,No
Http://opendatacommunities.org/id/metropolitan-district-council/leeds,Leeds City Council as Accountable Body,28/02/2021,Social Services Pooled Budgets,Jcs For People With Learning Disabilitie,Third Party Payments,Home Care,568,26/02/2021,2102-00488,0,191.76,R,Affinity Trust,No
Http://opendatacommunities.org/id/metropolitan-district-council/leeds,Leeds City Council as Accountable Body,28/02/2021,Social Services Pooled Budgets,Jcs For People With Learning Disabilitie,Third Party Payments,Home Care,568,26/02/2021,2102-00489,0,375,R,Affinity Trust,No
Http://opendatacommunities.org/id/metropolitan-district-council/leeds,Leeds City Council,28/02/2021,Adults and Health,Services For Older People Under 65 P/Dis,Third Party Payments,Day Centre,564,26/02/2021,2102-00490,0,537.32,R,Affinity Trust,No
Http://opendatacommunities.org/id/metropolitan-district-council/leeds,Leeds City Council,28/02/2021,Adults and Health,Services For Older People - 65 And Over,Third Party Payments,Home Care,568,26/02/2021,2102-00491,0,239.7,R,Affinity Trust,No
Http://opendatacommunities.org/id/metropolitan-district-council/leeds,Leeds City Council,28/02/2021,Adults and Health,Services For Older People Under 65 P/Dis,Third Party Payments,Home Care,568,26/02/2021,2102-00492,0,551.31,R,Affinity Trust,No
Http://opendatacommunities.org/id/metropolitan-district-council/leeds,Leeds City Council as Accountable Body,28/02/2021,Social Services Pooled Budgets,Jcs For People With Learning Disabilitie,Third Party Payments,Home Care,568,26/02/2021,2102-00493,0,1683,R,Affinity Trust,No
Http://opendatacommunities.org/id/metropolitan-district-council/leeds,Leeds City Council as Accountable Body,28/02/2021,Social Services Pooled Budgets,Jcs For People With Learning Disabilitie,Third Party Payments,Day Centre,564,26/02/2021,2102-00494,0,990,R,Affinity Trust,No
Http://opendatacommunities.org/id/metropolitan-district-council/leeds,Leeds City Council as Accountable Body,28/02/2021,Social Services Pooled Budgets,Jcs For People With Learning Disabilitie,Third Party Payments,Home Care,568,26/02/2021,2102-00495,0,712.3,R,Affinity Trust,No
Http://opendatacommunities.org/id/metropolitan-district-council/leeds,Leeds City Council as Accountable Body,28/02/2021,Social Services Pooled Budgets,Jcs For People With Learning Disabilitie,Third Party Payments,Home Care,568,26/02/2021,2102-00496,0,2979.02,R,Affinity Trust,No
Http://opendatacommunities.org/id/metropolitan-district-council/leeds,Leeds City Council as Accountable Body,28/02/2021,Social Services Pooled Budgets,Jcs For People With Learning Disabilitie,Third Party Payments,Day Centre,564,26/02/2021,2102-00497,0,333.63,R,Affinity Trust,No
Http://opendatacommunities.org/id/metropolitan-district-council/leeds,Leeds City Council as Accountable Body,28/02/2021,Social Services Pooled Budgets,Jcs For People With Learning Disabilitie,Third Party Payments,Home Care,568,26/02/2021,2102-00498,0,1400.97,R,Affinity Trust,No
Http://opendatacommunities.org/id/metropolitan-district-council/leeds,Leeds City Council as Accountable Body,28/02/2021,Social Services Pooled Budgets,Jcs For People With Learning Disabilitie,Third Party Payments,Home Care,568,26/02/2021,2102-00499,0,754.2,R,Affinity Trust,No
Http://opendatacommunities.org/id/metropolitan-district-council/leeds,Leeds City Council as Accountable Body,28/02/2021,Social Services Pooled Budgets,Jcs For People With Learning Disabilitie,Third Party Payments,Home Care,568,26/02/2021,2102-00500,0,1433.95,R,Affinity Trust,No
Http://opendatacommunities.org/id/metropolitan-district-council/leeds,Leeds City Council as Accountable Body,28/02/2021,Social Services Pooled Budgets,Jcs For People With Learning Disabilitie,Third Party Payments,Home Care,568,26/02/2021,2102-00501,0,1530,R,Affinity Trust,No
Http://opendatacommunities.org/id/metropolitan-district-council/leeds,Leeds City Council as Accountable Body,28/02/2021,Social Services Pooled Budgets,Jcs For People With Learning Disabilitie,Third Party Payments,Home Care,568,26/02/2021,2102-00502,0,838,R,Affinity Trust,No
Http://opendatacommunities.org/id/metropolitan-district-council/leeds,Leeds City Council as Accountable Body,28/02/2021,Social Services Pooled Budgets,Jcs For People With Learning Disabilitie,Third Party Payments,Home Care,568,26/02/2021,2102-00503,0,360,R,Affinity Trust,No
Http://opendatacommunities.org/id/metropolitan-district-council/leeds,Leeds City Council as Accountable Body,28/02/2021,Social Services Pooled Budgets,Jcs For People With Learning Disabilitie,Third Party Payments,Day Centre,564,26/02/2021,2102-00504,0,583.11,R,Affinity Trust,No
Http://opendatacommunities.org/id/metropolitan-district-council/leeds,Leeds City Council as Accountable Body,28/02/2021,Social Services Pooled Budgets,Jcs For People With Learning Disabilitie,Third Party Payments,Home Care,568,26/02/2021,2102-00505,0,1994.44,R,Affinity Trust,No
Http://opendatacommunities.org/id/metropolitan-district-council/leeds,Leeds City Council as Accountable Body,28/02/2021,Social Services Pooled Budgets,Jcs For People With Learning Disabilitie,Third Party Payments,Day Centre,564,26/02/2021,2102-00506,0,1170,R,Affinity Trust,No
Http://opendatacommunities.org/id/metropolitan-district-council/leeds,Leeds City Council as Accountable Body,28/02/2021,Social Services Pooled Budgets,Jcs For People With Learning Disabilitie,Third Party Payments,Home Care,568,26/02/2021,2102-00507,0,1709.52,R,Affinity Trust,No
Http://opendatacommunities.org/id/metropolitan-district-council/leeds,Leeds City Council,28/02/2021,Adults and Health,Services For Adults Under 65 Mental/Dis,Third Party Payments,Home Care,568,26/02/2021,2102-00508,0,-1233.24,R,Affinity Trust,No
Http://opendatacommunities.org/id/metropolitan-district-council/leeds,Leeds City Council,28/02/2021,Adults and Health,Services For Older People Under 65 P/Dis,Third Party Payments,Sheltered Accommodation,569,03/02/2021,2102-00509,0,8290.8,R,Affinity Trust North Divisional Office,No
Http://opendatacommunities.org/id/metropolitan-district-council/leeds,Leeds City Council as Accountable Body,28/02/2021,Social Services Pooled Budgets,Jcs For People With Learning Disabilitie,Third Party Payments,Sheltered Accommodation,569,03/02/2021,2102-00510,0,213404.34,R,Affinity Trust North Divisional Office,No
Http://opendatacommunities.org/id/metropolitan-district-council/leeds,Leeds City Council,28/02/2021,Communities and Environment,Parks and Countryside  ,Transport,External Hire -Occasional,304,19/01/2021,2102-00511,0,760,R,Afi Uplift,Yes
Http://opendatacommunities.org/id/metropolitan-district-council/leeds,Leeds City Council,28/02/2021,Communities and Environment,Parks and Countryside  ,Transport,External Hire -Occasional,304,19/01/2021,2102-00512,0,950,R,Afi Uplift,Yes
Http://opendatacommunities.org/id/metropolitan-district-council/leeds,Leeds City Council,28/02/2021,Communities and Environment,Parks and Countryside  ,Transport,External Hire -Occasional,304,19/01/2021,2102-00513,0,950,R,Afi Uplift,Yes
Http://opendatacommunities.org/id/metropolitan-district-council/leeds,Leeds City Council,28/02/2021,Communities and Environment,Parks and Countryside  ,Transport,External Hire -Occasional,304,19/01/2021,2102-00514,0,760,R,Afi Uplift,Yes
Http://opendatacommunities.org/id/metropolitan-district-council/leeds,Leeds City Council,28/02/2021,Communities and Environment,Parks and Countryside  ,Transport,External Hire -Occasional,304,19/01/2021,2102-00515,0,950,R,Afi Uplift,Yes
Http://opendatacommunities.org/id/metropolitan-district-council/leeds,Leeds City Council,28/02/2021,Communities and Environment,Parks and Countryside  ,Supplies and Services,Operational Materials,205,20/01/2021,2102-00516,0,158,R,Afi Uplift,Yes
Http://opendatacommunities.org/id/metropolitan-district-council/leeds,Leeds City Council,28/02/2021,Children and Families,Social Care,Third Party Payments, Direct Work,549,17/02/2021,2102-00517,0,34,R,REDACTED PERSONAL DATA,No
Http://opendatacommunities.org/id/metropolitan-district-council/leeds,Leeds City Council,28/02/2021,Communities and Environment,Parks and Countryside,Supplies and Services,Operational Materials,205,17/02/2021,2102-00518,0,202,R,AFI-Uplift Limited,No
Http://opendatacommunities.org/id/metropolitan-district-council/leeds,Leeds City Council,28/02/2021,Adults and Health,Public Health,Third Party Payments,Services Rendered By Voluntary Sector,505,17/02/2021,2102-00519,0,5000,R,Age Uk Leeds,No
Http://opendatacommunities.org/id/metropolitan-district-council/leeds,Leeds City Council,28/02/2021,Adults and Health,Public Health,Supplies and Services,Non-Recurring Grants,227,17/02/2021,2102-00520,0,15000,R,Age Uk Leeds,No
Http://opendatacommunities.org/id/metropolitan-district-council/leeds,Leeds City Council,28/02/2021,Adults and Health,Public Health,Supplies and Services,Non-Recurring Grants,227,17/02/2021,2102-00521,0,30000,R,Age Uk Leeds,No
Http://opendatacommunities.org/id/metropolitan-district-council/leeds,Leeds City Council,28/02/2021,Insurance,Insurance,Supplies and Services,Insurance Claims,248,08/02/2021,2102-00522,0,1050,R,Ageas Insurance Limited,No
Http://opendatacommunities.org/id/metropolitan-district-council/leeds,Leeds City Council,28/02/2021,City Development,Economic Development,Supplies and Services,Grant Related Expenditure,298,12/02/2021,2102-00523,0,3588,R,REDACTED PERSONAL DATA,No
Http://opendatacommunities.org/id/metropolitan-district-council/leeds,Leeds City Council,28/02/2021,Communities and Environment,Elections Licensing and Registration,Income,Admissions Booking Fees & Ticket Sales,933,11/02/2021,2102-00524,0,70,R,REDACTED PERSONAL DATA,No
Http://opendatacommunities.org/id/metropolitan-district-council/leeds,Leeds City Council,28/02/2021,Communities and Environment,Benefits Wlefare and Poverty,Supplies and Services,Grant Related Expenditure,290,08/02/2021,2102-00525,0,500,R,REDACTED PERSONAL DATA,No
Http://opendatacommunities.org/id/metropolitan-district-council/leeds,Leeds City Council,28/02/2021,Communities and Environment,Customer Access,Supplies and Services,Bought In Professional Services,277,19/02/2021,2102-00526,0,13.5,R,Ahmed Moustafa Moustafa Mousa,No
Http://opendatacommunities.org/id/metropolitan-district-council/leeds,Leeds City Council,28/02/2021,Strategic Landlord,Property and Contracts,Transfer Payments,Disrepair Provision,644,12/02/2021,2102-00527,0,390,R,AHR Building Consultancy Ltd,No
Http://opendatacommunities.org/id/metropolitan-district-council/leeds,Leeds City Council,28/02/2021,Children and Families,Learning,Supplies and Services,Teaching Materials,202,19/02/2021,2102-00528,0,31.21,R,Aid Training & Operations Ltd,No
Http://opendatacommunities.org/id/metropolitan-district-council/leeds,Leeds City Council as Accountable Body,28/02/2021,Social Services Pooled Budgets,Leeds Community Equip Store Pooled Budgt,Supplies and Services,Other Equipment,203,02/02/2021,2102-00529,0,2048.2,R,AIDAPT BATHROOMS LTD,No
Http://opendatacommunities.org/id/metropolitan-district-council/leeds,Leeds City Council as Accountable Body,28/02/2021,Social Services Pooled Budgets,Leeds Community Equip Store Pooled Budgt,Supplies and Services,Other Equipment,203,02/02/2021,2102-00530,0,139.93,R,AIDAPT BATHROOMS LTD,No
Http://opendatacommunities.org/id/metropolitan-district-council/leeds,Leeds City Council as Accountable Body,28/02/2021,Social Services Pooled Budgets,Leeds Community Equip Store Pooled Budgt,Supplies and Services,Other Equipment,203,05/02/2021,2102-00531,0,681,R,AIDAPT BATHROOMS LTD,No
Http://opendatacommunities.org/id/metropolitan-district-council/leeds,Leeds City Council as Accountable Body,28/02/2021,Social Services Pooled Budgets,Leeds Community Equip Store Pooled Budgt,Supplies and Services,Other Equipment,203,17/02/2021,2102-00532,0,375,R,AIDAPT BATHROOMS LTD,No
Http://opendatacommunities.org/id/metropolitan-district-council/leeds,Leeds City Council,28/02/2021,Communities and Environment,Benefits Wlefare and Poverty,Supplies and Services,Grant Related Expenditure,298,26/02/2021,2102-00533,0,500,R,REDACTED PERSONAL DATA,No
Http://opendatacommunities.org/id/metropolitan-district-council/leeds,Leeds City Council,28/02/2021,City Development,Economic Development,Supplies and Services,Grant Related Expenditure,298,17/02/2021,2102-00534,0,9625,R,REDACTED PERSONAL DATA,No
Http://opendatacommunities.org/id/metropolitan-district-council/leeds,Leeds City Council,28/02/2021,Communities and Environment,Environmental Health,Supplies and Services,Other Hired And Contracted Services,265,09/02/2021,2102-00535,0,10.77,R,AIR LIQUIDE UK,No
Http://opendatacommunities.org/id/metropolitan-district-council/leeds,Leeds City Council,28/02/2021,Communities and Environment,Environmental Health,Supplies and Services,Other Hired And Contracted Services,265,09/02/2021,2102-00536,0,10.77,R,AIR LIQUIDE UK,No
Http://opendatacommunities.org/id/metropolitan-district-council/leeds,Leeds City Council,28/02/2021,Communities and Environment,Environmental Health,Supplies and Services,Other Hired And Contracted Services,265,09/02/2021,2102-00537,0,16.64,R,AIR LIQUIDE UK,No
Http://opendatacommunities.org/id/metropolitan-district-council/leeds,Leeds City Council,28/02/2021,Communities and Environment,Environmental Health,Supplies and Services,Other Hired And Contracted Services,265,09/02/2021,2102-00538,0,75.39,R,AIR LIQUIDE UK,No
Http://opendatacommunities.org/id/metropolitan-district-council/leeds,Leeds City Council,28/02/2021,Resources and Housing,Leeds Building Services,Supplies and Services,Operational Materials,205,18/02/2021,2102-00539,0,196.32,R,AIR LIQUIDE UK,No
Http://opendatacommunities.org/id/metropolitan-district-council/leeds,Leeds City Council,28/02/2021,Resources and Housing,Leeds Building Services,Employees,Training & Development,70,26/02/2021,2102-00540,0,1250,R,Airborne Environmental Consultants Ltd,No
Http://opendatacommunities.org/id/metropolitan-district-council/leeds,Leeds City Council,28/02/2021,City Development,Libraries Arts & Heritage,Supplies and Services,Non-Recurring Grants,227,26/02/2021,2102-00541,0,120,R,Aire Place Studios CIC,No
Http://opendatacommunities.org/id/metropolitan-district-council/leeds,Leeds City Council,28/02/2021,Adults and Health,Public Health,Third Party Payments,Public Health Commissioned Services,526,15/02/2021,2102-00542,0,2746.24,R,Aire Valley Surgery,No
Http://opendatacommunities.org/id/metropolitan-district-council/leeds,Leeds City Council,28/02/2021,Communities and Environment,Parks and Countryside,Supplies and Services,Other Hired And Contracted Services,265,12/02/2021,2102-00543,0,825,R,Aire Valley Tree Services Ltd,No
Http://opendatacommunities.org/id/metropolitan-district-council/leeds,Leeds City Council,28/02/2021,Adults and Health,Services For Older People - 65 And Over,Third Party Payments,Residential Care Dementia,571,03/02/2021,2102-00544,0,30153.39,R,Aire View Residential Home,No
Http://opendatacommunities.org/id/metropolitan-district-council/leeds,Leeds City Council,28/02/2021,Adults and Health,Services For Older People - 65 And Over,Third Party Payments,Residential,580,03/02/2021,2102-00545,0,4937.36,R,Aire View Residential Home,No
Http://opendatacommunities.org/id/metropolitan-district-council/leeds,Leeds City Council,28/02/2021,Adults and Health,Public Health,Third Party Payments,Public Health Commissioned Services,526,15/02/2021,2102-00546,0,978.2,R,Aireborough Family Practice,No
Http://opendatacommunities.org/id/metropolitan-district-council/leeds,Leeds City Council,28/02/2021,Adults and Health,Services For Older People - 65 And Over,Third Party Payments,Residential Care Dementia,571,03/02/2021,2102-00547,0,1511.6,R,Airedale Care Home,No
Http://opendatacommunities.org/id/metropolitan-district-council/leeds,Leeds City Council,28/02/2021,Adults and Health,Services For Older People - 65 And Over,Third Party Payments,Residential,580,03/02/2021,2102-00548,0,26103.84,R,Airedale Care Home,No
Http://opendatacommunities.org/id/metropolitan-district-council/leeds,Leeds City Council,28/02/2021,Resources and Housing,Commercial Services,Supplies and Services,Operational Furniture And Equipment,203,25/02/2021,2102-00549,0,4521,R,AIREDALE CATERING EQUIPMENT LTD,No
Http://opendatacommunities.org/id/metropolitan-district-council/leeds,Leeds City Council,28/02/2021,Resources and Housing,Commercial Services,Premises,Fixtures & Fittings,131,25/02/2021,2102-00550,0,8683,R,AIREDALE CATERING EQUIPMENT LTD,No
Http://opendatacommunities.org/id/metropolitan-district-council/leeds,Leeds City Council,28/02/2021,Resources and Housing,Commercial Services,Supplies and Services,Operational Furniture And Equipment,203,26/02/2021,2102-00551,0,1238,R,AIREDALE CATERING EQUIPMENT LTD,No
Http://opendatacommunities.org/id/metropolitan-district-council/leeds,Leeds City Council,28/02/2021,City Development,Economic Development,Supplies and Services,Grant Related Expenditure,290,03/02/2021,2102-00552,0,500,R,Airflow Solutions,No
Http://opendatacommunities.org/id/metropolitan-district-council/leeds,Leeds City Council,28/02/2021,Children and Families,Social Care  ,Third Party Payments,Placement Support,550,31/12/2020,2102-00553,0,6.55,R,Airpay,Yes
Http://opendatacommunities.org/id/metropolitan-district-council/leeds,Leeds City Council,28/02/2021,Communities and Environment,Community Safety,Supplies and Services,Bought In Professional Services,277,11/02/2021,2102-00554,0,1044.8,R,AIRWAVE SOLUTIONS LTD,No
Http://opendatacommunities.org/id/metropolitan-district-council/leeds,Leeds City Council,28/02/2021,Adults and Health,Assessment And Care Management,Supplies and Services,Bought In Professional Services,277,11/02/2021,2102-00555,0,11,R,REDACTED PERSONAL DATA,No
Http://opendatacommunities.org/id/metropolitan-district-council/leeds,Leeds City Council,28/02/2021,Adults and Health,Services For Adults Under 65 Mental/Dis,Third Party Payments,Home Care,568,09/02/2021,2102-00556,0,175,R,AIT Mitra Limited,No
Http://opendatacommunities.org/id/metropolitan-district-council/leeds,Leeds City Council,28/02/2021,Adults and Health,Services For Adults Under 65 Mental/Dis,Third Party Payments,Home Care,568,09/02/2021,2102-00557,0,175,R,AIT Mitra Limited,No
Http://opendatacommunities.org/id/metropolitan-district-council/leeds,Leeds City Council,28/02/2021,Adults and Health,Services For Adults Under 65 Mental/Dis,Third Party Payments,Home Care,568,09/02/2021,2102-00558,0,175,R,AIT Mitra Limited,No
Http://opendatacommunities.org/id/metropolitan-district-council/leeds,Leeds City Council,28/02/2021,Adults and Health,Services For Adults Under 65 Mental/Dis,Third Party Payments,Home Care,568,09/02/2021,2102-00559,0,175,R,AIT Mitra Limited,No
Http://opendatacommunities.org/id/metropolitan-district-council/leeds,Leeds City Council,28/02/2021,Adults and Health,Services For Adults Under 65 Mental/Dis,Third Party Payments,Home Care,568,09/02/2021,2102-00560,0,175,R,AIT Mitra Limited,No
Http://opendatacommunities.org/id/metropolitan-district-council/leeds,Leeds City Council,28/02/2021,Adults and Health,Services For Adults Under 65 Mental/Dis,Third Party Payments,Home Care,568,09/02/2021,2102-00561,0,175,R,AIT Mitra Limited,No
Http://opendatacommunities.org/id/metropolitan-district-council/leeds,Leeds City Council,28/02/2021,Adults and Health,Services For Adults Under 65 Mental/Dis,Third Party Payments,Home Care,568,09/02/2021,2102-00562,0,175,R,AIT Mitra Limited,No
Http://opendatacommunities.org/id/metropolitan-district-council/leeds,Leeds City Council,28/02/2021,Adults and Health,Services For Adults Under 65 Mental/Dis,Third Party Payments,Home Care,568,09/02/2021,2102-00563,0,175,R,AIT Mitra Limited,No
Http://opendatacommunities.org/id/metropolitan-district-council/leeds,Leeds City Council,28/02/2021,Adults and Health,Services For Adults Under 65 Mental/Dis,Third Party Payments,Home Care,568,09/02/2021,2102-00564,0,175,R,AIT Mitra Limited,No
Http://opendatacommunities.org/id/metropolitan-district-council/leeds,Leeds City Council,28/02/2021,Adults and Health,Services For Adults Under 65 Mental/Dis,Third Party Payments,Home Care,568,11/02/2021,2102-00565,0,175,R,AIT Mitra Limited,No
Http://opendatacommunities.org/id/metropolitan-district-council/leeds,Leeds City Council,28/02/2021,Adults and Health,Services For Adults Under 65 Mental/Dis,Third Party Payments,Home Care,568,11/02/2021,2102-00566,0,175,R,AIT Mitra Limited,No
Http://opendatacommunities.org/id/metropolitan-district-council/leeds,Leeds City Council,28/02/2021,Adults and Health,Services For Adults Under 65 Mental/Dis,Third Party Payments,Home Care,568,18/02/2021,2102-00567,0,175,R,AIT Mitra Limited,No
Http://opendatacommunities.org/id/metropolitan-district-council/leeds,Leeds City Council,28/02/2021,Adults and Health,Services For Adults Under 65 Mental/Dis,Third Party Payments,Home Care,568,18/02/2021,2102-00568,0,175,R,AIT Mitra Limited,No
Http://opendatacommunities.org/id/metropolitan-district-council/leeds,Leeds City Council,28/02/2021,Adults and Health,Services For Adults Under 65 Mental/Dis,Third Party Payments,Home Care,568,18/02/2021,2102-00569,0,175,R,AIT Mitra Limited,No
Http://opendatacommunities.org/id/metropolitan-district-council/leeds,Leeds City Council,28/02/2021,Adults and Health,Services For Adults Under 65 Mental/Dis,Third Party Payments,Home Care,568,18/02/2021,2102-00570,0,175,R,AIT Mitra Limited,No
Http://opendatacommunities.org/id/metropolitan-district-council/leeds,Leeds City Council,28/02/2021,Adults and Health,Services For Adults Under 65 Mental/Dis,Third Party Payments,Home Care,568,18/02/2021,2102-00571,0,175,R,AIT Mitra Limited,No
Http://opendatacommunities.org/id/metropolitan-district-council/leeds,Leeds City Council,28/02/2021,Adults and Health,Services For Adults Under 65 Mental/Dis,Third Party Payments,Home Care,568,23/02/2021,2102-00572,0,175,R,AIT Mitra Limited,No
Http://opendatacommunities.org/id/metropolitan-district-council/leeds,Leeds City Council,28/02/2021,Adults and Health,Services For Adults Under 65 Mental/Dis,Third Party Payments,Home Care,568,23/02/2021,2102-00573,0,175,R,AIT Mitra Limited,No
Http://opendatacommunities.org/id/metropolitan-district-council/leeds,Leeds City Council,28/02/2021,Adults and Health,Services For Adults Under 65 Mental/Dis,Third Party Payments,Home Care,568,23/02/2021,2102-00574,0,175,R,AIT Mitra Limited,No
Http://opendatacommunities.org/id/metropolitan-district-council/leeds,Leeds City Council,28/02/2021,Adults and Health,Services For Adults Under 65 Mental/Dis,Third Party Payments,Home Care,568,23/02/2021,2102-00575,0,175,R,AIT Mitra Limited,No
Http://opendatacommunities.org/id/metropolitan-district-council/leeds,Leeds City Council,28/02/2021,Adults and Health,Services For Adults Under 65 Mental/Dis,Third Party Payments,Fees - Level 4,520,23/02/2021,2102-00576,0,175,R,AIT Mitra Limited,No
Http://opendatacommunities.org/id/metropolitan-district-council/leeds,Leeds City Council as Accountable Body,28/02/2021,Social Services Pooled Budgets,Jcs For People With Learning Disabilitie,Third Party Payments,Residential,580,03/02/2021,2102-00577,0,6709.72,R,AITCH care homes,No
Http://opendatacommunities.org/id/metropolitan-district-council/leeds,Leeds City Council,28/02/2021,Resources and Housing,Leeds Building Services,Supplies and Services,Operational Furniture And Equipment,203,04/02/2021,2102-00578,0,52.4,R,AJM FIXINGS & POWER TOOLS LTD,No
Http://opendatacommunities.org/id/metropolitan-district-council/leeds,Leeds City Council,28/02/2021,Resources and Housing,Leeds Building Services,Supplies and Services,Operational Furniture And Equipment,203,04/02/2021,2102-00579,0,26.8,R,AJM FIXINGS & POWER TOOLS LTD,No
Http://opendatacommunities.org/id/metropolitan-district-council/leeds,Leeds City Council,28/02/2021,Resources and Housing,Leeds Building Services,Supplies and Services,Operational Furniture And Equipment,203,04/02/2021,2102-00580,0,79,R,AJM FIXINGS & POWER TOOLS LTD,No
Http://opendatacommunities.org/id/metropolitan-district-council/leeds,Leeds City Council,28/02/2021,Resources and Housing,Leeds Building Services,Supplies and Services,Operational Materials,205,04/02/2021,2102-00581,0,90.4,R,AJM FIXINGS & POWER TOOLS LTD,No
Http://opendatacommunities.org/id/metropolitan-district-council/leeds,Leeds City Council,28/02/2021,Resources and Housing,Leeds Building Services,Supplies and Services,Operational Furniture And Equipment,203,04/02/2021,2102-00582,0,260,R,AJM FIXINGS & POWER TOOLS LTD,No
Http://opendatacommunities.org/id/metropolitan-district-council/leeds,Leeds City Council,28/02/2021,Resources and Housing,Leeds Building Services,Supplies and Services,Operational Furniture And Equipment,203,04/02/2021,2102-00583,0,12.45,R,AJM FIXINGS & POWER TOOLS LTD,No
Http://opendatacommunities.org/id/metropolitan-district-council/leeds,Leeds City Council,28/02/2021,Resources and Housing,Leeds Building Services,Supplies and Services,Operational Furniture And Equipment,203,04/02/2021,2102-00584,0,41.8,R,AJM FIXINGS & POWER TOOLS LTD,No
Http://opendatacommunities.org/id/metropolitan-district-council/leeds,Leeds City Council,28/02/2021,Resources and Housing,Leeds Building Services,Supplies and Services,Operational Furniture And Equipment,203,04/02/2021,2102-00585,0,2758,R,AJM FIXINGS & POWER TOOLS LTD,No
Http://opendatacommunities.org/id/metropolitan-district-council/leeds,Leeds City Council,28/02/2021,Resources and Housing,Leeds Building Services,Supplies and Services,Operational Furniture And Equipment,203,04/02/2021,2102-00586,0,525,R,AJM FIXINGS & POWER TOOLS LTD,No
Http://opendatacommunities.org/id/metropolitan-district-council/leeds,Leeds City Council,28/02/2021,Resources and Housing,Leeds Building Services,Supplies and Services,Operational Furniture And Equipment,203,04/02/2021,2102-00587,0,1097.46,R,AJM FIXINGS & POWER TOOLS LTD,No
Http://opendatacommunities.org/id/metropolitan-district-council/leeds,Leeds City Council,28/02/2021,Resources and Housing,Leeds Building Services,Supplies and Services,Operational Furniture And Equipment,203,04/02/2021,2102-00588,0,85,R,AJM FIXINGS & POWER TOOLS LTD,No
Http://opendatacommunities.org/id/metropolitan-district-council/leeds,Leeds City Council,28/02/2021,Resources and Housing,Leeds Building Services,Supplies and Services,Operational Furniture And Equipment,203,09/02/2021,2102-00589,0,55.6,R,AJM FIXINGS & POWER TOOLS LTD,No
Http://opendatacommunities.org/id/metropolitan-district-council/leeds,Leeds City Council,28/02/2021,Resources and Housing,Leeds Building Services,Supplies and Services,Clothing & Uniforms,241,09/02/2021,2102-00590,0,1402.5,R,AJM FIXINGS & POWER TOOLS LTD,No
Http://opendatacommunities.org/id/metropolitan-district-council/leeds,Leeds City Council,28/02/2021,Resources and Housing,Leeds Building Services,Supplies and Services,Operational Furniture And Equipment,203,15/02/2021,2102-00591,0,282,R,AJM FIXINGS & POWER TOOLS LTD,No
Http://opendatacommunities.org/id/metropolitan-district-council/leeds,Leeds City Council,28/02/2021,Resources and Housing,Leeds Building Services,Supplies and Services,Operational Furniture And Equipment,203,15/02/2021,2102-00592,0,525,R,AJM FIXINGS & POWER TOOLS LTD,No
Http://opendatacommunities.org/id/metropolitan-district-council/leeds,Leeds City Council,28/02/2021,Resources and Housing,Leeds Building Services,Supplies and Services,Operational Furniture And Equipment,203,18/02/2021,2102-00593,0,127.4,R,AJM FIXINGS & POWER TOOLS LTD,No
Http://opendatacommunities.org/id/metropolitan-district-council/leeds,Leeds City Council,28/02/2021,Resources and Housing,Leeds Building Services,Supplies and Services,Operational Furniture And Equipment,203,18/02/2021,2102-00594,0,28.68,R,AJM FIXINGS & POWER TOOLS LTD,No
Http://opendatacommunities.org/id/metropolitan-district-council/leeds,Leeds City Council,28/02/2021,Resources and Housing,Leeds Building Services,Supplies and Services,Operational Furniture And Equipment,203,19/02/2021,2102-00595,0,639.9,R,AJM FIXINGS & POWER TOOLS LTD,No
Http://opendatacommunities.org/id/metropolitan-district-council/leeds,Leeds City Council,28/02/2021,Resources and Housing,Leeds Building Services,Supplies and Services,STORES - CENTRAL AND OTHER DEPOTS,5,25/02/2021,2102-00596,0,2016,R,AJM FIXINGS & POWER TOOLS LTD,No
Http://opendatacommunities.org/id/metropolitan-district-council/leeds,Leeds City Council,28/02/2021,Resources and Housing,Leeds Building Services,Supplies and Services,Operational Furniture And Equipment,203,25/02/2021,2102-00597,0,44.5,R,AJM FIXINGS & POWER TOOLS LTD,No
Http://opendatacommunities.org/id/metropolitan-district-council/leeds,Leeds City Council,28/02/2021,Resources and Housing,Leeds Building Services,Supplies and Services,Operational Furniture And Equipment,203,25/02/2021,2102-00598,0,22.48,R,AJM FIXINGS & POWER TOOLS LTD,No
Http://opendatacommunities.org/id/metropolitan-district-council/leeds,Leeds City Council,28/02/2021,Children and Families,Social Care  ,Transfer Payments,Leaving Care Allowances,634,21/01/2021,2102-00599,0,21,R,Ajs Convenience 20690,Yes
Http://opendatacommunities.org/id/metropolitan-district-council/leeds,Leeds City Council,28/02/2021,Communities and Environment,Waste Management,Premises,General Maintenance,104,05/02/2021,2102-00600,0,2750,R,AK Containers Technical Services Ltd,No
Http://opendatacommunities.org/id/metropolitan-district-council/leeds,Leeds City Council,28/02/2021,Communities and Environment,Benefits Wlefare and Poverty,Supplies and Services,Grant Related Expenditure,290,01/02/2021,2102-00601,0,500,R,REDACTED PERSONAL DATA,No
Http://opendatacommunities.org/id/metropolitan-district-council/leeds,Leeds City Council,28/02/2021,Adults and Health,Social Services Support Services,Employees,Training & Development,70,11/02/2021,2102-00602,0,7500,R,Akd Solutions Ltd,No
Http://opendatacommunities.org/id/metropolitan-district-council/leeds,Leeds City Council,28/02/2021,Communities and Environment,Waste Management,Premises,Cleaning Maintenance & Toiletries,127,23/02/2021,2102-00603,0,954.7,R,Akua Uk Ltd,No
Http://opendatacommunities.org/id/metropolitan-district-council/leeds,Leeds City Council,28/02/2021,Communities and Environment,Waste Management,Premises,Cleaning Maintenance & Toiletries,127,23/02/2021,2102-00604,0,168,R,Akua Uk Ltd,No
Http://opendatacommunities.org/id/metropolitan-district-council/leeds,Leeds City Council,28/02/2021,Communities and Environment,Waste Management,Premises,Cleaning Maintenance & Toiletries,127,26/02/2021,2102-00605,0,256.6,R,Akua Uk Ltd,No
Http://opendatacommunities.org/id/metropolitan-district-council/leeds,Leeds City Council,28/02/2021,Communities and Environment,Benefits Wlefare and Poverty,Supplies and Services,Grant Related Expenditure,290,08/02/2021,2102-00606,0,500,R,REDACTED PERSONAL DATA,No
Http://opendatacommunities.org/id/metropolitan-district-council/leeds,Leeds City Council,28/02/2021,Communities and Environment,Benefits Wlefare and Poverty,Supplies and Services,Grant Related Expenditure,290,12/02/2021,2102-00607,0,500,R,REDACTED PERSONAL DATA,No
Http://opendatacommunities.org/id/metropolitan-district-council/leeds,Leeds City Council,28/02/2021,Children and Families,Social Care,Third Party Payments,Services Rendered By Other Organisations,511,05/02/2021,2102-00608,0,788.4,R,REDACTED PERSONAL DATA,No
Http://opendatacommunities.org/id/metropolitan-district-council/leeds,Leeds City Council,28/02/2021,Resources and Housing,Commercial Services,Transport,Vehicle Spares,345,11/02/2021,2102-00609,0,66.67,R,ALBERT JAGGER LIMITED,No
Http://opendatacommunities.org/id/metropolitan-district-council/leeds,Leeds City Council,28/02/2021,Adults and Health,Services For Older People - 65 And Over,Third Party Payments,Residential,580,03/02/2021,2102-00610,0,1552.6,R,Albion Court Care Home,No
Http://opendatacommunities.org/id/metropolitan-district-council/leeds,Leeds City Council,28/02/2021,Communities and Environment,Communities,Supplies and Services,Computer Software & Equipment,214,18/02/2021,2102-00611,0,1228.33,R,Alcium Software Ltd,No
Http://opendatacommunities.org/id/metropolitan-district-council/leeds,Leeds City Council,28/02/2021,Children and Families,Social Care  ,Transfer Payments,Leaving Care Allowances,634,11/01/2021,2102-00612,0,14.93,R,Aldi,Yes
Http://opendatacommunities.org/id/metropolitan-district-council/leeds,Leeds City Council,28/02/2021,Children and Families,Social Care  ,Transfer Payments,Leaving Care Allowances,634,18/01/2021,2102-00613,0,15.67,R,Aldi,Yes
Http://opendatacommunities.org/id/metropolitan-district-council/leeds,Leeds City Council,28/02/2021,Children and Families,Social Care  ,Transfer Payments,Leaving Care Allowances,634,28/01/2021,2102-00614,0,15.58,R,Aldi 40 779,Yes
Http://opendatacommunities.org/id/metropolitan-district-council/leeds,Leeds City Council,28/02/2021,Children and Families,Social Care  ,Supplies and Services,Teaching Materials,202,05/01/2021,2102-00615,0,4.5,R,Aldi 49 779,Yes
Http://opendatacommunities.org/id/metropolitan-district-council/leeds,Leeds City Council,28/02/2021,Children and Families,Social Care  ,Supplies and Services,Food & Drink,231,05/01/2021,2102-00616,0,6.6,R,Aldi 71 779,Yes
Http://opendatacommunities.org/id/metropolitan-district-council/leeds,Leeds City Council,28/02/2021,Children and Families,Social Care  ,Supplies and Services,Food & Drink,231,26/01/2021,2102-00617,0,13.38,R,Aldi 779-126,Yes
Http://opendatacommunities.org/id/metropolitan-district-council/leeds,Leeds City Council,28/02/2021,Children and Families,Social Care  ,Supplies and Services,Food & Drink,231,28/01/2021,2102-00618,0,18.9,R,Aldi 779-126,Yes
Http://opendatacommunities.org/id/metropolitan-district-council/leeds,Leeds City Council,28/02/2021,Children and Families,Social Care  ,Supplies and Services,Food & Drink,231,09/01/2021,2102-00619,0,71.51,R,Aldi 85 779,Yes
Http://opendatacommunities.org/id/metropolitan-district-council/leeds,Leeds City Council,28/02/2021,Children and Families,Social Care  ,Supplies and Services,Food & Drink,231,28/01/2021,2102-00620,0,64.13,R,Aldi 85 779,Yes
Http://opendatacommunities.org/id/metropolitan-district-council/leeds,Leeds City Council,28/02/2021,Resources and Housing,Strategic Housing Partnership & Support  ,Supplies and Services,Other Hired And Contracted Services,265,14/01/2021,2102-00621,0,14.73,R,Aldi 88 779,Yes
Http://opendatacommunities.org/id/metropolitan-district-council/leeds,Leeds City Council,28/02/2021,Children and Families,Social Care  ,Supplies and Services,Food & Drink,231,18/01/2021,2102-00622,0,54.54,R,Aldi 89 779,Yes
Http://opendatacommunities.org/id/metropolitan-district-council/leeds,Leeds City Council,28/02/2021,Children and Families,Social Care  ,Supplies and Services,Food & Drink,231,23/01/2021,2102-00623,0,24.36,R,Aldi 89 779,Yes
Http://opendatacommunities.org/id/metropolitan-district-council/leeds,Leeds City Council,28/02/2021,Children and Families,Social Care  ,Supplies and Services,Food & Drink,231,24/01/2021,2102-00624,0,142.01,R,Aldi 89 779,Yes
Http://opendatacommunities.org/id/metropolitan-district-council/leeds,Leeds City Council,28/02/2021,Children and Families,Social Care  ,Supplies and Services,Food & Drink,231,25/01/2021,2102-00625,0,27.23,R,Aldi 89 779,Yes
Http://opendatacommunities.org/id/metropolitan-district-council/leeds,Leeds City Council,28/02/2021,Children and Families,Social Care  ,Supplies and Services,Food & Drink,231,12/01/2021,2102-00626,0,13.84,R,Aldi Stores,Yes
Http://opendatacommunities.org/id/metropolitan-district-council/leeds,Leeds City Council,28/02/2021,Communities and Environment,Benefits Wlefare and Poverty,Supplies and Services,Grant Related Expenditure,298,03/02/2021,2102-00627,0,500,R,REDACTED PERSONAL DATA,No
Http://opendatacommunities.org/id/metropolitan-district-council/leeds,Leeds City Council,28/02/2021,Communities and Environment,Customer Access,Supplies and Services,Bought In Professional Services,277,03/02/2021,2102-00628,0,39,R,Alena Zueva,No
Http://opendatacommunities.org/id/metropolitan-district-council/leeds,Leeds City Council,28/02/2021,Communities and Environment,Customer Access,Supplies and Services,Bought In Professional Services,277,10/02/2021,2102-00629,0,18,R,Alena Zueva,No
Http://opendatacommunities.org/id/metropolitan-district-council/leeds,Leeds City Council,28/02/2021,Communities and Environment,Customer Access,Supplies and Services,Bought In Professional Services,277,10/02/2021,2102-00630,0,25.5,R,Alena Zueva,No
Http://opendatacommunities.org/id/metropolitan-district-council/leeds,Leeds City Council,28/02/2021,Communities and Environment,Customer Access,Supplies and Services,Bought In Professional Services,277,10/02/2021,2102-00631,0,9,R,Alena Zueva,No
Http://opendatacommunities.org/id/metropolitan-district-council/leeds,Leeds City Council,28/02/2021,Communities and Environment,Customer Access,Supplies and Services,Bought In Professional Services,277,10/02/2021,2102-00632,0,33,R,Alena Zueva,No
Http://opendatacommunities.org/id/metropolitan-district-council/leeds,Leeds City Council,28/02/2021,Communities and Environment,Customer Access,Supplies and Services,Bought In Professional Services,277,10/02/2021,2102-00633,0,9,R,Alena Zueva,No
Http://opendatacommunities.org/id/metropolitan-district-council/leeds,Leeds City Council,28/02/2021,Children and Families,Social Care,Transfer Payments,Leaving Care Allowances,634,10/02/2021,2102-00634,0,50,R,REDACTED PERSONAL DATA,No
Http://opendatacommunities.org/id/metropolitan-district-council/leeds,Leeds City Council,28/02/2021,City Development,Economic Development,Supplies and Services,Grant Related Expenditure,298,10/02/2021,2102-00635,0,500,R,Alex Knight Photography,No
Http://opendatacommunities.org/id/metropolitan-district-council/leeds,Leeds City Council,28/02/2021,Children and Families,Social Care,Support Services,Legal Disbursements,411,12/02/2021,2102-00636,0,4620,R,Alex Taylor,No
Http://opendatacommunities.org/id/metropolitan-district-council/leeds,Leeds City Council,28/02/2021,Resources and Housing,Commercial Services,Transport,Vehicle Spares,345,01/02/2021,2102-00637,0,197,R,ALEX WAGG,No
Http://opendatacommunities.org/id/metropolitan-district-council/leeds,Leeds City Council,28/02/2021,Resources and Housing,Commercial Services,Supplies and Services,Other Hired And Contracted Services,265,03/02/2021,2102-00638,0,30,R,ALEX WAGG,No
Http://opendatacommunities.org/id/metropolitan-district-council/leeds,Leeds City Council,28/02/2021,Resources and Housing,Commercial Services,Supplies and Services,Other Hired And Contracted Services,265,03/02/2021,2102-00639,0,90,R,ALEX WAGG,No
Http://opendatacommunities.org/id/metropolitan-district-council/leeds,Leeds City Council,28/02/2021,Resources and Housing,Commercial Services,Supplies and Services,Other Hired And Contracted Services,265,03/02/2021,2102-00640,0,80,R,ALEX WAGG,No
Http://opendatacommunities.org/id/metropolitan-district-council/leeds,Leeds City Council,28/02/2021,Resources and Housing,Commercial Services,Supplies and Services,Other Hired And Contracted Services,265,03/02/2021,2102-00641,0,100,R,ALEX WAGG,No
Http://opendatacommunities.org/id/metropolitan-district-council/leeds,Leeds City Council,28/02/2021,Resources and Housing,Commercial Services,Supplies and Services,Other Hired And Contracted Services,265,05/02/2021,2102-00642,0,120,R,ALEX WAGG,No
Http://opendatacommunities.org/id/metropolitan-district-council/leeds,Leeds City Council,28/02/2021,Resources and Housing,Commercial Services,Supplies and Services,Other Hired And Contracted Services,265,10/02/2021,2102-00643,0,40,R,ALEX WAGG,No
Http://opendatacommunities.org/id/metropolitan-district-council/leeds,Leeds City Council,28/02/2021,Resources and Housing,Commercial Services,Supplies and Services,Other Hired And Contracted Services,265,10/02/2021,2102-00644,0,200,R,ALEX WAGG,No
Http://opendatacommunities.org/id/metropolitan-district-council/leeds,Leeds City Council,28/02/2021,Resources and Housing,Commercial Services,Supplies and Services,Other Hired And Contracted Services,265,10/02/2021,2102-00645,0,257,R,ALEX WAGG,No
Http://opendatacommunities.org/id/metropolitan-district-council/leeds,Leeds City Council,28/02/2021,Resources and Housing,Commercial Services,Supplies and Services,Other Hired And Contracted Services,265,12/02/2021,2102-00646,0,120,R,ALEX WAGG,No
Http://opendatacommunities.org/id/metropolitan-district-council/leeds,Leeds City Council,28/02/2021,Resources and Housing,Commercial Services,Supplies and Services,Other Hired And Contracted Services,265,12/02/2021,2102-00647,0,40,R,ALEX WAGG,No
Http://opendatacommunities.org/id/metropolitan-district-council/leeds,Leeds City Council,28/02/2021,Resources and Housing,Commercial Services,Supplies and Services,Other Hired And Contracted Services,265,12/02/2021,2102-00648,0,180,R,ALEX WAGG,No
Http://opendatacommunities.org/id/metropolitan-district-council/leeds,Leeds City Council,28/02/2021,Resources and Housing,Commercial Services,Supplies and Services,Other Hired And Contracted Services,265,12/02/2021,2102-00649,0,170,R,ALEX WAGG,No
Http://opendatacommunities.org/id/metropolitan-district-council/leeds,Leeds City Council,28/02/2021,Resources and Housing,Commercial Services,Supplies and Services,Other Hired And Contracted Services,265,16/02/2021,2102-00650,0,80,R,ALEX WAGG,No
Http://opendatacommunities.org/id/metropolitan-district-council/leeds,Leeds City Council,28/02/2021,Resources and Housing,Commercial Services,Supplies and Services,Other Hired And Contracted Services,265,16/02/2021,2102-00651,0,112.5,R,ALEX WAGG,No
Http://opendatacommunities.org/id/metropolitan-district-council/leeds,Leeds City Council,28/02/2021,Resources and Housing,Commercial Services,Transport,Vehicle Spares,345,16/02/2021,2102-00652,0,86.61,R,ALEX WAGG,No
Http://opendatacommunities.org/id/metropolitan-district-council/leeds,Leeds City Council,28/02/2021,Resources and Housing,Commercial Services,Supplies and Services,Other Hired And Contracted Services,265,19/02/2021,2102-00653,0,80,R,ALEX WAGG,No
Http://opendatacommunities.org/id/metropolitan-district-council/leeds,Leeds City Council,28/02/2021,Resources and Housing,Commercial Services,Transport,Vehicle Spares,345,19/02/2021,2102-00654,0,202,R,ALEX WAGG,No
Http://opendatacommunities.org/id/metropolitan-district-council/leeds,Leeds City Council,28/02/2021,Resources and Housing,Commercial Services,Supplies and Services,Other Hired And Contracted Services,265,19/02/2021,2102-00655,0,160,R,ALEX WAGG,No
Http://opendatacommunities.org/id/metropolitan-district-council/leeds,Leeds City Council,28/02/2021,Resources and Housing,Commercial Services,Supplies and Services,Other Hired And Contracted Services,265,19/02/2021,2102-00656,0,200,R,ALEX WAGG,No
Http://opendatacommunities.org/id/metropolitan-district-council/leeds,Leeds City Council,28/02/2021,Resources and Housing,Commercial Services,Supplies and Services,Other Hired And Contracted Services,265,19/02/2021,2102-00657,0,100,R,ALEX WAGG,No
Http://opendatacommunities.org/id/metropolitan-district-council/leeds,Leeds City Council,28/02/2021,Resources and Housing,Commercial Services,Supplies and Services,Other Hired And Contracted Services,265,19/02/2021,2102-00658,0,100,R,ALEX WAGG,No
Http://opendatacommunities.org/id/metropolitan-district-council/leeds,Leeds City Council,28/02/2021,City Development,Economic Development,Supplies and Services,Grant Related Expenditure,290,12/02/2021,2102-00659,0,500,R,Alexa Healthcare Limited,No
Http://opendatacommunities.org/id/metropolitan-district-council/leeds,Leeds City Council,28/02/2021,City Development,Economic Development,Supplies and Services,Grant Related Expenditure,290,18/02/2021,2102-00660,0,500,R,Alexa Healthcare Limited,No
Http://opendatacommunities.org/id/metropolitan-district-council/leeds,Leeds City Council,28/02/2021,Adults and Health,Services For Older People - 65 And Over,Third Party Payments,Residential Care Dementia,571,03/02/2021,2102-00661,0,40625.45,R,ALEXANDER RESIDENTIAL HOME,No
Http://opendatacommunities.org/id/metropolitan-district-council/leeds,Leeds City Council,28/02/2021,Adults and Health,Services For Older People - 65 And Over,Third Party Payments,Residential,580,03/02/2021,2102-00662,0,12063.8,R,ALEXANDER RESIDENTIAL HOME,No
Http://opendatacommunities.org/id/metropolitan-district-council/leeds,Leeds City Council,28/02/2021,Adults and Health,Services For Older People Under 65 P/Dis,Third Party Payments,Residential Care Dementia,571,03/02/2021,2102-00663,0,2058.4,R,ALEXANDER RESIDENTIAL HOME,No
Http://opendatacommunities.org/id/metropolitan-district-council/leeds,Leeds City Council,28/02/2021,Communities and Environment,Customer Access,Supplies and Services,Bought In Professional Services,277,10/02/2021,2102-00664,0,45,R,Alexandra Costenco,No
Http://opendatacommunities.org/id/metropolitan-district-council/leeds,Leeds City Council,28/02/2021,Communities and Environment,Customer Access,Supplies and Services,Bought In Professional Services,277,10/02/2021,2102-00665,0,45,R,Alexandra Costenco,No
Http://opendatacommunities.org/id/metropolitan-district-council/leeds,Leeds City Council,28/02/2021,Communities and Environment,Customer Access,Supplies and Services,Bought In Professional Services,277,19/02/2021,2102-00666,0,45,R,Alexandra Costenco,No
Http://opendatacommunities.org/id/metropolitan-district-council/leeds,Leeds City Council,28/02/2021,Communities and Environment,Customer Access,Supplies and Services,Bought In Professional Services,277,24/02/2021,2102-00667,0,45,R,Alexandra Costenco,No
Http://opendatacommunities.org/id/metropolitan-district-council/leeds,Leeds City Council,28/02/2021,Communities and Environment,Customer Access,Supplies and Services,Bought In Professional Services,277,24/02/2021,2102-00668,0,45,R,Alexandra Costenco,No
Http://opendatacommunities.org/id/metropolitan-district-council/leeds,Leeds City Council,28/02/2021,Communities and Environment,Customer Access,Supplies and Services,Bought In Professional Services,277,24/02/2021,2102-00669,0,45,R,Alexandra Costenco,No
Http://opendatacommunities.org/id/metropolitan-district-council/leeds,Leeds City Council,28/02/2021,Adults and Health,Services For Older People - 65 And Over,Third Party Payments,Residential Care Dementia,571,03/02/2021,2102-00670,0,3199.6,R,ALEXANDRA COURT,No
Http://opendatacommunities.org/id/metropolitan-district-council/leeds,Leeds City Council,28/02/2021,Adults and Health,Services For Older People - 65 And Over,Third Party Payments,Residential,580,03/02/2021,2102-00671,0,6210.28,R,ALEXANDRA COURT,No
Http://opendatacommunities.org/id/metropolitan-district-council/leeds,Leeds City Council,28/02/2021,Adults and Health,Other Adult Services,Third Party Payments,Residential,580,02/02/2021,2102-00672,0,7958.64,R,Alexandra Court Residential Home,No
Http://opendatacommunities.org/id/metropolitan-district-council/leeds,Leeds City Council,28/02/2021,Communities and Environment,Customer Access,Supplies and Services,Schools related grant expenditure,299,19/02/2021,2102-00673,0,500,R,REDACTED PERSONAL DATA,No
Http://opendatacommunities.org/id/metropolitan-district-council/leeds,Leeds City Council,28/02/2021,Children and Families,Social Care,Third Party Payments,Services Rendered By Other Organisations,511,03/02/2021,2102-00674,0,950.4,R,REDACTED PERSONAL DATA,No
Http://opendatacommunities.org/id/metropolitan-district-council/leeds,Leeds City Council,28/02/2021,Adults and Health,Services For Older People - 65 And Over  ,Supplies and Services,Clothing & Uniforms,241,04/01/2021,2102-00675,0,26.98,R,Alexandra Website,Yes
Http://opendatacommunities.org/id/metropolitan-district-council/leeds,Leeds City Council,28/02/2021,Adults and Health,Services For Older People - 65 And Over  ,Supplies and Services,Clothing & Uniforms,241,05/01/2021,2102-00676,0,83.94,R,Alexandra Website,Yes
Http://opendatacommunities.org/id/metropolitan-district-council/leeds,Leeds City Council,28/02/2021,Adults and Health,Services For Older People - 65 And Over  ,Supplies and Services,Clothing & Uniforms,241,06/01/2021,2102-00677,0,13.49,R,Alexandra Website,Yes
Http://opendatacommunities.org/id/metropolitan-district-council/leeds,Leeds City Council,28/02/2021,Adults and Health,Services For Older People - 65 And Over  ,Supplies and Services,Clothing & Uniforms,241,18/01/2021,2102-00678,0,18.97,R,Alexandra Website,Yes
Http://opendatacommunities.org/id/metropolitan-district-council/leeds,Leeds City Council,28/02/2021,Adults and Health,Services For Older People - 65 And Over  ,Supplies and Services,Clothing & Uniforms,241,22/01/2021,2102-00679,0,11.88,R,Alexandra Website,Yes
Http://opendatacommunities.org/id/metropolitan-district-council/leeds,Leeds City Council,28/02/2021,Adults and Health,Services For Older People - 65 And Over  ,Supplies and Services,Clothing & Uniforms,241,22/01/2021,2102-00680,0,25.48,R,Alexandra Website,Yes
Http://opendatacommunities.org/id/metropolitan-district-council/leeds,Leeds City Council,28/02/2021,Resources and Housing,Leeds Building Services,Supplies and Services,Other Hired And Contracted Services,265,09/02/2021,2102-00681,0,1790,R,Alfred Bagnall & Sons (Leeds) Ltd,No
Http://opendatacommunities.org/id/metropolitan-district-council/leeds,Leeds City Council,28/02/2021,Resources and Housing,Leeds Building Services,Supplies and Services,Other Hired And Contracted Services,265,16/02/2021,2102-00682,0,2500,R,Alfred Bagnall & Sons (Leeds) Ltd,No
Http://opendatacommunities.org/id/metropolitan-district-council/leeds,Leeds City Council,28/02/2021,Resources and Housing,Leeds Building Services,Supplies and Services,Other Hired And Contracted Services,265,19/02/2021,2102-00683,0,780,R,Alfred Bagnall & Sons (Leeds) Ltd,No
Http://opendatacommunities.org/id/metropolitan-district-council/leeds,Leeds City Council,28/02/2021,Resources and Housing,Leeds Building Services,Supplies and Services,Other Hired And Contracted Services,265,19/02/2021,2102-00684,0,390,R,Alfred Bagnall & Sons (Leeds) Ltd,No
Http://opendatacommunities.org/id/metropolitan-district-council/leeds,Leeds City Council,28/02/2021,Resources and Housing,Leeds Building Services,Supplies and Services,Other Hired And Contracted Services,265,24/02/2021,2102-00685,0,73516.24,R,Alfred Bagnall & Sons (Leeds) Ltd,No
Http://opendatacommunities.org/id/metropolitan-district-council/leeds,Leeds City Council,28/02/2021,Resources and Housing,Corporate Property Management,Capital,CONSTRUCTION,3,26/02/2021,2102-00686,0,4450,C,Alfred Bagnall & Sons (Leeds) Ltd,No
Http://opendatacommunities.org/id/metropolitan-district-council/leeds,Leeds City Council,28/02/2021,Resources and Housing,Leeds Building Services,Supplies and Services,Other Hired And Contracted Services,265,26/02/2021,2102-00687,0,550,R,Alfred Bagnall & Sons (Leeds) Ltd,No
Http://opendatacommunities.org/id/metropolitan-district-council/leeds,Leeds City Council,28/02/2021,Resources and Housing,Leeds Building Services,Supplies and Services,Other Hired And Contracted Services,265,26/02/2021,2102-00688,0,390,R,Alfred Bagnall & Sons (Leeds) Ltd,No
Http://opendatacommunities.org/id/metropolitan-district-council/leeds,Leeds City Council,28/02/2021,Communities and Environment,Benefits Wlefare and Poverty,Supplies and Services,Grant Related Expenditure,290,26/02/2021,2102-00689,0,500,R,REDACTED PERSONAL DATA,No
Http://opendatacommunities.org/id/metropolitan-district-council/leeds,Leeds City Council,28/02/2021,Communities and Environment,Customer Access,Supplies and Services,Bought In Professional Services,277,03/02/2021,2102-00690,0,18,R,Ali Pourakaberian,No
Http://opendatacommunities.org/id/metropolitan-district-council/leeds,Leeds City Council,28/02/2021,Communities and Environment,Customer Access,Supplies and Services,Bought In Professional Services,277,10/02/2021,2102-00691,0,27.1,R,Ali Pourakaberian,No
Http://opendatacommunities.org/id/metropolitan-district-council/leeds,Leeds City Council,28/02/2021,Communities and Environment,Customer Access,Supplies and Services,Bought In Professional Services,277,10/02/2021,2102-00692,0,18,R,Ali Pourakaberian,No
Http://opendatacommunities.org/id/metropolitan-district-council/leeds,Leeds City Council,28/02/2021,Communities and Environment,Customer Access,Supplies and Services,Bought In Professional Services,277,19/02/2021,2102-00693,0,18,R,Ali Pourakaberian,No
Http://opendatacommunities.org/id/metropolitan-district-council/leeds,Leeds City Council,28/02/2021,Communities and Environment,Customer Access,Supplies and Services,Bought In Professional Services,277,19/02/2021,2102-00694,0,18,R,Ali Pourakaberian,No
Http://opendatacommunities.org/id/metropolitan-district-council/leeds,Leeds City Council,28/02/2021,Communities and Environment,Customer Access,Supplies and Services,Bought In Professional Services,277,19/02/2021,2102-00695,0,9,R,Ali Pourakaberian,No
Http://opendatacommunities.org/id/metropolitan-district-council/leeds,Leeds City Council,28/02/2021,Communities and Environment,Customer Access,Supplies and Services,Bought In Professional Services,277,19/02/2021,2102-00696,0,18,R,Ali Pourakaberian,No
Http://opendatacommunities.org/id/metropolitan-district-council/leeds,Leeds City Council,28/02/2021,Communities and Environment,Customer Access,Supplies and Services,Bought In Professional Services,277,19/02/2021,2102-00697,0,18,R,Ali Pourakaberian,No
Http://opendatacommunities.org/id/metropolitan-district-council/leeds,Leeds City Council,28/02/2021,Communities and Environment,Customer Access,Supplies and Services,Bought In Professional Services,277,24/02/2021,2102-00698,0,10,R,Ali Pourakaberian,No
Http://opendatacommunities.org/id/metropolitan-district-council/leeds,Leeds City Council,28/02/2021,Communities and Environment,Customer Access,Supplies and Services,Bought In Professional Services,277,24/02/2021,2102-00699,0,326.88,R,Ali Pourakaberian,No
Http://opendatacommunities.org/id/metropolitan-district-council/leeds,Leeds City Council,28/02/2021,Communities and Environment,Customer Access,Supplies and Services,Bought In Professional Services,277,24/02/2021,2102-00700,0,9,R,Ali Pourakaberian,No
Http://opendatacommunities.org/id/metropolitan-district-council/leeds,Leeds City Council,28/02/2021,Communities and Environment,Customer Access,Supplies and Services,Bought In Professional Services,277,24/02/2021,2102-00701,0,22.5,R,Ali Pourakaberian,No
Http://opendatacommunities.org/id/metropolitan-district-council/leeds,Leeds City Council,28/02/2021,Children and Families,Social Care,Third Party Payments,Section 17,551,24/02/2021,2102-00702,0,1000,R,Alibaba Carpets Leeds Ltd,No
Http://opendatacommunities.org/id/metropolitan-district-council/leeds,Leeds City Council,28/02/2021,City Development,Recreation,Supplies and Services,Bought In Professional Services,277,01/02/2021,2102-00703,0,20,R,Alice M Richardson,No
Http://opendatacommunities.org/id/metropolitan-district-council/leeds,Leeds City Council,28/02/2021,City Development,Libraries Arts & Heritage,Supplies and Services,Bought In Professional Services,277,19/02/2021,2102-00704,0,1944.8,R,Alice Mary Duggan,No
Http://opendatacommunities.org/id/metropolitan-district-council/leeds,Leeds City Council,28/02/2021,Children and Families,Social Care,Transfer Payments,Leaving Care Allowances,634,12/02/2021,2102-00705,0,20,R,REDACTED PERSONAL DATA,No
Http://opendatacommunities.org/id/metropolitan-district-council/leeds,Leeds City Council,28/02/2021,Children and Families,Social Care,Transfer Payments,Leaving Care Allowances,634,26/02/2021,2102-00706,0,20,R,REDACTED PERSONAL DATA,No
Http://opendatacommunities.org/id/metropolitan-district-council/leeds,Leeds City Council,28/02/2021,Children and Families,Social Care,Transfer Payments,16 Plus Top Up Allowance,625,12/02/2021,2102-00707,0,80,R,REDACTED PERSONAL DATA,No
Http://opendatacommunities.org/id/metropolitan-district-council/leeds,Leeds City Council,28/02/2021,Children and Families,Social Care,Third Party Payments,Services Rendered By Other Organisations,511,03/02/2021,2102-00708,0,316.8,R,REDACTED PERSONAL DATA,No
Http://opendatacommunities.org/id/metropolitan-district-council/leeds,Leeds City Council,28/02/2021,Children and Families,Social Care,Third Party Payments,Services Rendered By Other Organisations,511,05/02/2021,2102-00709,0,262.8,R,REDACTED PERSONAL DATA,No
Http://opendatacommunities.org/id/metropolitan-district-council/leeds,Leeds City Council,28/02/2021,Communities and Environment,Customer Access  ,Supplies and Services,Other Hired And Contracted Services,265,04/01/2021,2102-00710,0,9963.3,R,Alison Handling Services,Yes
Http://opendatacommunities.org/id/metropolitan-district-council/leeds,Leeds City Council,28/02/2021,Strategic Landlord,Property and Contracts,Support Services,Legal Disbursements,411,02/02/2021,2102-00711,0,3515,R,Alison Law Solicitors,No
Http://opendatacommunities.org/id/metropolitan-district-council/leeds,Leeds City Council,28/02/2021,Communities and Environment,Benefits Wlefare and Poverty,Supplies and Services,Grant Related Expenditure,298,26/02/2021,2102-00712,0,500,R,REDACTED PERSONAL DATA,No
Http://opendatacommunities.org/id/metropolitan-district-council/leeds,Leeds City Council,28/02/2021,Children and Families,Social Care,Transfer Payments,Leaving Care Allowances,634,05/02/2021,2102-00713,0,60,R,REDACTED PERSONAL DATA,No
Http://opendatacommunities.org/id/metropolitan-district-council/leeds,Leeds City Council,28/02/2021,Children and Families,Social Care,Transfer Payments,Leaving Care Allowances,634,11/02/2021,2102-00714,0,60,R,REDACTED PERSONAL DATA,No
Http://opendatacommunities.org/id/metropolitan-district-council/leeds,Leeds City Council,28/02/2021,Children and Families,Learning,Supplies and Services,Teaching Furniture & Equipment,207,03/02/2021,2102-00715,0,805,R,ALL BRASS AND WOODWIND,No
Http://opendatacommunities.org/id/metropolitan-district-council/leeds,Leeds City Council,28/02/2021,City Development,Economic Development,Supplies and Services,Grant Related Expenditure,298,03/02/2021,2102-00716,0,3333,R,All Points North Publications Ltd,No
Http://opendatacommunities.org/id/metropolitan-district-council/leeds,Leeds City Council,28/02/2021,City Development,Economic Development,Supplies and Services,Grant Related Expenditure,298,03/02/2021,2102-00717,0,3333,R,All Points North Publications Ltd,No
Http://opendatacommunities.org/id/metropolitan-district-council/leeds,Leeds City Council,28/02/2021,City Development,Economic Development,Supplies and Services,Grant Related Expenditure,298,03/02/2021,2102-00718,0,5834,R,All Property Management,No
Http://opendatacommunities.org/id/metropolitan-district-council/leeds,Leeds City Council,28/02/2021,Children and Families,Social Care,Third Party Payments,Services Rendered By Other Organisations,511,03/02/2021,2102-00719,0,1584,R,All Stars Childcare,No
Http://opendatacommunities.org/id/metropolitan-district-council/leeds,Leeds City Council,28/02/2021,Children and Families,Social Care,Third Party Payments,Services Rendered By Other Organisations,511,05/02/2021,2102-00720,0,12614.4,R,All Stars Childcare,No
Http://opendatacommunities.org/id/metropolitan-district-council/leeds,Leeds City Council,28/02/2021,Children and Families,Social Care,Third Party Payments,Allowances,546,10/02/2021,2102-00721,0,246.44,R,REDACTED PERSONAL DATA,No
Http://opendatacommunities.org/id/metropolitan-district-council/leeds,Leeds City Council as Accountable Body,28/02/2021,Social Services Pooled Budgets,Jcs For People With Learning Disabilitie,Third Party Payments,Sheltered Accommodation,569,03/02/2021,2102-00722,0,8731.43,R,Allerton Avenue,No
Http://opendatacommunities.org/id/metropolitan-district-council/leeds,Leeds City Council,28/02/2021,Adults and Health,Public Health,Third Party Payments,Public Health Commissioned Services,526,15/02/2021,2102-00723,0,2497.88,R,Allerton Medical Centre,No
Http://opendatacommunities.org/id/metropolitan-district-council/leeds,Leeds City Council,28/02/2021,Adults and Health,Services For Older People - 65 And Over,Third Party Payments,Nursing Care Dementia,574,03/02/2021,2102-00724,0,2320.36,R,ALLERTON PARK N H,No
Http://opendatacommunities.org/id/metropolitan-district-council/leeds,Leeds City Council,28/02/2021,Communities and Environment,Parks and Countryside,Supplies and Services,Operational Materials,205,18/02/2021,2102-00725,0,169.95,R,Allflex UK Group Ltd,No
Http://opendatacommunities.org/id/metropolitan-district-council/leeds,Leeds City Council,28/02/2021,Communities and Environment,Parks and Countryside,Supplies and Services,Operational Materials,205,25/02/2021,2102-00726,0,100.5,R,Allflex UK Group Ltd,No
Http://opendatacommunities.org/id/metropolitan-district-council/leeds,Leeds City Council,28/02/2021,Resources and Housing,Finance,Supplies and Services,Bank Charges,263,04/02/2021,2102-00727,0,100.14,R,ALLIANCE & LEICESTER COMMERCIAL BANK,No
Http://opendatacommunities.org/id/metropolitan-district-council/leeds,Leeds City Council,28/02/2021,Resources and Housing,Finance,Supplies and Services,Bank Charges,263,04/02/2021,2102-00728,0,40.19,R,ALLIANCE & LEICESTER COMMERCIAL BANK,No
Http://opendatacommunities.org/id/metropolitan-district-council/leeds,Leeds City Council,28/02/2021,Resources and Housing,Commercial Services,Supplies and Services,Operational Materials,205,01/02/2021,2102-00729,0,61.86,R,ALLIANCE DISPOSABLES LTD,No
Http://opendatacommunities.org/id/metropolitan-district-council/leeds,Leeds City Council,28/02/2021,Resources and Housing,Commercial Services,Supplies and Services,Operational Materials,205,02/02/2021,2102-00730,0,61.86,R,ALLIANCE DISPOSABLES LTD,No
Http://opendatacommunities.org/id/metropolitan-district-council/leeds,Leeds City Council,28/02/2021,Resources and Housing,Commercial Services,Supplies and Services,Operational Materials,205,02/02/2021,2102-00731,0,201.57,R,ALLIANCE DISPOSABLES LTD,No
Http://opendatacommunities.org/id/metropolitan-district-council/leeds,Leeds City Council,28/02/2021,Resources and Housing,Commercial Services,Supplies and Services,Operational Materials,205,02/02/2021,2102-00732,0,50.61,R,ALLIANCE DISPOSABLES LTD,No
Http://opendatacommunities.org/id/metropolitan-district-council/leeds,Leeds City Council,28/02/2021,Resources and Housing,Commercial Services,Supplies and Services,Operational Materials,205,02/02/2021,2102-00733,0,61.86,R,ALLIANCE DISPOSABLES LTD,No
Http://opendatacommunities.org/id/metropolitan-district-council/leeds,Leeds City Council,28/02/2021,Resources and Housing,Commercial Services,Supplies and Services,Operational Materials,205,02/02/2021,2102-00734,0,30.93,R,ALLIANCE DISPOSABLES LTD,No
Http://opendatacommunities.org/id/metropolitan-district-council/leeds,Leeds City Council,28/02/2021,Resources and Housing,Commercial Services,Supplies and Services,Operational Materials,205,02/02/2021,2102-00735,0,118.31,R,ALLIANCE DISPOSABLES LTD,No
Http://opendatacommunities.org/id/metropolitan-district-council/leeds,Leeds City Council,28/02/2021,Resources and Housing,Commercial Services,Supplies and Services,Operational Materials,205,02/02/2021,2102-00736,0,92.79,R,ALLIANCE DISPOSABLES LTD,No
Http://opendatacommunities.org/id/metropolitan-district-council/leeds,Leeds City Council,28/02/2021,Resources and Housing,Commercial Services,Supplies and Services,Operational Materials,205,04/02/2021,2102-00737,0,61.86,R,ALLIANCE DISPOSABLES LTD,No
Http://opendatacommunities.org/id/metropolitan-district-council/leeds,Leeds City Council,28/02/2021,Resources and Housing,Commercial Services,Supplies and Services,Operational Materials,205,04/02/2021,2102-00738,0,61.86,R,ALLIANCE DISPOSABLES LTD,No
Http://opendatacommunities.org/id/metropolitan-district-council/leeds,Leeds City Council,28/02/2021,Resources and Housing,Commercial Services,Supplies and Services,Operational Materials,205,04/02/2021,2102-00739,0,92.79,R,ALLIANCE DISPOSABLES LTD,No
Http://opendatacommunities.org/id/metropolitan-district-council/leeds,Leeds City Council,28/02/2021,Resources and Housing,Commercial Services,Supplies and Services,Operational Materials,205,04/02/2021,2102-00740,0,61.86,R,ALLIANCE DISPOSABLES LTD,No
Http://opendatacommunities.org/id/metropolitan-district-council/leeds,Leeds City Council,28/02/2021,Resources and Housing,Commercial Services,Supplies and Services,Operational Materials,205,04/02/2021,2102-00741,0,61.86,R,ALLIANCE DISPOSABLES LTD,No
Http://opendatacommunities.org/id/metropolitan-district-council/leeds,Leeds City Council,28/02/2021,Resources and Housing,Commercial Services,Supplies and Services,Operational Materials,205,04/02/2021,2102-00742,0,58.72,R,ALLIANCE DISPOSABLES LTD,No
Http://opendatacommunities.org/id/metropolitan-district-council/leeds,Leeds City Council,28/02/2021,Resources and Housing,Commercial Services,Supplies and Services,Operational Materials,205,05/02/2021,2102-00743,0,61.86,R,ALLIANCE DISPOSABLES LTD,No
Http://opendatacommunities.org/id/metropolitan-district-council/leeds,Leeds City Council,28/02/2021,Resources and Housing,Commercial Services,Supplies and Services,Operational Materials,205,05/02/2021,2102-00744,0,92.79,R,ALLIANCE DISPOSABLES LTD,No
Http://opendatacommunities.org/id/metropolitan-district-council/leeds,Leeds City Council,28/02/2021,Resources and Housing,Commercial Services,Supplies and Services,Operational Materials,205,10/02/2021,2102-00745,0,30.93,R,ALLIANCE DISPOSABLES LTD,No
Http://opendatacommunities.org/id/metropolitan-district-council/leeds,Leeds City Council,28/02/2021,Resources and Housing,Commercial Services,Supplies and Services,Operational Materials,205,10/02/2021,2102-00746,0,61.86,R,ALLIANCE DISPOSABLES LTD,No
Http://opendatacommunities.org/id/metropolitan-district-council/leeds,Leeds City Council,28/02/2021,Resources and Housing,Commercial Services,Supplies and Services,Operational Materials,205,11/02/2021,2102-00747,0,-28.09,R,ALLIANCE DISPOSABLES LTD,No
Http://opendatacommunities.org/id/metropolitan-district-council/leeds,Leeds City Council,28/02/2021,Resources and Housing,Commercial Services,Supplies and Services,Operational Materials,205,11/02/2021,2102-00748,0,92.79,R,ALLIANCE DISPOSABLES LTD,No
Http://opendatacommunities.org/id/metropolitan-district-council/leeds,Leeds City Council,28/02/2021,Resources and Housing,Commercial Services,Supplies and Services,Operational Materials,205,17/02/2021,2102-00749,0,61.86,R,ALLIANCE DISPOSABLES LTD,No
Http://opendatacommunities.org/id/metropolitan-district-council/leeds,Leeds City Council,28/02/2021,Resources and Housing,Commercial Services,Supplies and Services,Operational Materials,205,18/02/2021,2102-00750,0,61.86,R,ALLIANCE DISPOSABLES LTD,No
Http://opendatacommunities.org/id/metropolitan-district-council/leeds,Leeds City Council,28/02/2021,Resources and Housing,Commercial Services,Supplies and Services,Operational Materials,205,19/02/2021,2102-00751,0,57.92,R,ALLIANCE DISPOSABLES LTD,No
Http://opendatacommunities.org/id/metropolitan-district-council/leeds,Leeds City Council,28/02/2021,Resources and Housing,Commercial Services,Supplies and Services,Operational Materials,205,19/02/2021,2102-00752,0,61.86,R,ALLIANCE DISPOSABLES LTD,No
Http://opendatacommunities.org/id/metropolitan-district-council/leeds,Leeds City Council,28/02/2021,Resources and Housing,Commercial Services,Supplies and Services,Operational Materials,205,24/02/2021,2102-00753,0,61.86,R,ALLIANCE DISPOSABLES LTD,No
Http://opendatacommunities.org/id/metropolitan-district-council/leeds,Leeds City Council,28/02/2021,Resources and Housing,Commercial Services,Supplies and Services,Operational Materials,205,24/02/2021,2102-00754,0,61.86,R,ALLIANCE DISPOSABLES LTD,No
Http://opendatacommunities.org/id/metropolitan-district-council/leeds,Leeds City Council,28/02/2021,Resources and Housing,Commercial Services,Supplies and Services,Operational Materials,205,26/02/2021,2102-00755,0,92.79,R,ALLIANCE DISPOSABLES LTD,No
Http://opendatacommunities.org/id/metropolitan-district-council/leeds,Leeds City Council,28/02/2021,Resources and Housing,Commercial Services,Supplies and Services,Operational Materials,205,26/02/2021,2102-00756,0,61.86,R,ALLIANCE DISPOSABLES LTD,No
Http://opendatacommunities.org/id/metropolitan-district-council/leeds,Leeds City Council,28/02/2021,Children and Families,Social Care,Third Party Payments,Independent Fostering Agencies,509,05/02/2021,2102-00757,0,3538.34,R,Alliance Foster Care,No
Http://opendatacommunities.org/id/metropolitan-district-council/leeds,Leeds City Council,28/02/2021,City Development,Highways,Supplies and Services,Other Hired And Contracted Services,265,02/02/2021,2102-00758,0,5890.86,R,ALLIED EXPLORATION & GEOTECHNICS LTD,No
Http://opendatacommunities.org/id/metropolitan-district-council/leeds,Leeds City Council,28/02/2021,City Development,Highways,Supplies and Services,Other Hired And Contracted Services,265,02/02/2021,2102-00759,0,4343.25,R,ALLIED EXPLORATION & GEOTECHNICS LTD,No
Http://opendatacommunities.org/id/metropolitan-district-council/leeds,Leeds City Council as Accountable Body,28/02/2021,Social Services Pooled Budgets,Jcs For People With Learning Disabilitie,Third Party Payments,Home Care,568,03/02/2021,2102-00760,0,1256.96,R,Allied Healthcare,No
Http://opendatacommunities.org/id/metropolitan-district-council/leeds,Leeds City Council,28/02/2021,Adults and Health,Other Generic Services,Third Party Payments,Home Care,568,03/02/2021,2102-00761,0,2138.4,R,Allied Healthcare,No
Http://opendatacommunities.org/id/metropolitan-district-council/leeds,Leeds City Council,28/02/2021,Adults and Health,Other Generic Services,Third Party Payments,Home Care,568,03/02/2021,2102-00762,0,1749.6,R,Allied Healthcare,No
Http://opendatacommunities.org/id/metropolitan-district-council/leeds,Leeds City Council as Accountable Body,28/02/2021,Social Services Pooled Budgets,Jcs For People With Learning Disabilitie,Third Party Payments,Home Care,568,09/02/2021,2102-00763,0,1824,R,Allied Healthcare,No
Http://opendatacommunities.org/id/metropolitan-district-council/leeds,Leeds City Council,28/02/2021,Adults and Health,Other Generic Services,Third Party Payments,Home Care,568,10/02/2021,2102-00764,0,2089.8,R,Allied Healthcare,No
Http://opendatacommunities.org/id/metropolitan-district-council/leeds,Leeds City Council,28/02/2021,Adults and Health,Other Generic Services,Third Party Payments,Home Care,568,10/02/2021,2102-00765,0,1749.6,R,Allied Healthcare,No
Http://opendatacommunities.org/id/metropolitan-district-council/leeds,Leeds City Council as Accountable Body,28/02/2021,Social Services Pooled Budgets,Jcs For People With Learning Disabilitie,Third Party Payments,Home Care,568,11/02/2021,2102-00766,0,14919.8,R,Allied Healthcare,No
Http://opendatacommunities.org/id/metropolitan-district-council/leeds,Leeds City Council as Accountable Body,28/02/2021,Social Services Pooled Budgets,Jcs For People With Learning Disabilitie,Third Party Payments,Home Care,568,11/02/2021,2102-00767,0,14852.83,R,Allied Healthcare,No
Http://opendatacommunities.org/id/metropolitan-district-council/leeds,Leeds City Council as Accountable Body,28/02/2021,Social Services Pooled Budgets,Jcs For People With Learning Disabilitie,Third Party Payments,Home Care,568,17/02/2021,2102-00768,0,1390.52,R,Allied Healthcare,No
Http://opendatacommunities.org/id/metropolitan-district-council/leeds,Leeds City Council,28/02/2021,Adults and Health,Services For Older People - 65 And Over,Third Party Payments,Home Care,568,24/02/2021,2102-00769,0,-0.01,R,Allied Healthcare,No
Http://opendatacommunities.org/id/metropolitan-district-council/leeds,Leeds City Council,28/02/2021,Adults and Health,Services For Older People - 65 And Over,Third Party Payments,HCAIT Other,577,24/02/2021,2102-00770,0,950.62,R,Allied Healthcare,No
Http://opendatacommunities.org/id/metropolitan-district-council/leeds,Leeds City Council,28/02/2021,Adults and Health,Services For Adults Under 65 Mental/Dis,Third Party Payments,Home Care,568,24/02/2021,2102-00771,0,761.08,R,Allied Healthcare,No
Http://opendatacommunities.org/id/metropolitan-district-council/leeds,Leeds City Council,28/02/2021,Adults and Health,Services For Older People - 65 And Over,Third Party Payments,Home Care,568,24/02/2021,2102-00772,0,4476.32,R,Allied Healthcare,No
Http://opendatacommunities.org/id/metropolitan-district-council/leeds,Leeds City Council,28/02/2021,Adults and Health,Services For Older People - 65 And Over,Third Party Payments,Home Care,568,24/02/2021,2102-00773,0,7613.21,R,Allied Healthcare,No
Http://opendatacommunities.org/id/metropolitan-district-council/leeds,Leeds City Council,28/02/2021,Adults and Health,Services For Older People Under 65 P/Dis,Third Party Payments,Home Care,568,24/02/2021,2102-00774,0,4283.52,R,Allied Healthcare,No
Http://opendatacommunities.org/id/metropolitan-district-council/leeds,Leeds City Council,28/02/2021,Adults and Health,Services For Adults Under 65 Mental/Dis,Third Party Payments,Home Care,568,24/02/2021,2102-00775,0,538.18,R,Allied Healthcare,No
Http://opendatacommunities.org/id/metropolitan-district-council/leeds,Leeds City Council,28/02/2021,Adults and Health,Services For Older People - 65 And Over,Third Party Payments,Home Care,568,24/02/2021,2102-00776,0,14179.27,R,Allied Healthcare,No
Http://opendatacommunities.org/id/metropolitan-district-council/leeds,Leeds City Council,28/02/2021,Adults and Health,Services For Older People Under 65 P/Dis,Third Party Payments,Home Care,568,24/02/2021,2102-00777,0,1189.63,R,Allied Healthcare,No
Http://opendatacommunities.org/id/metropolitan-district-council/leeds,Leeds City Council,28/02/2021,Adults and Health,Services For Older People Under 65 P/Dis,Third Party Payments,HCAIT Other,577,24/02/2021,2102-00778,0,556.8,R,Allied Healthcare,No
Http://opendatacommunities.org/id/metropolitan-district-council/leeds,Leeds City Council,28/02/2021,City Development,Markets & City Centre Management,Supplies and Services,Other Hired And Contracted Services,265,11/02/2021,2102-00779,0,20728.85,R,Alliot Ltd,No
Http://opendatacommunities.org/id/metropolitan-district-council/leeds,Leeds City Council,28/02/2021,City Development,Markets & City Centre Management,Supplies and Services,Other Hired And Contracted Services,265,11/02/2021,2102-00780,0,4270.15,R,Alliot Ltd,No
